{"text_format":"1","workbook":"xlsx","n_sheets":10,"sheets":["画面表示","Status","Set","Element","LoadData","3年後見込","損害率","保険料率","ツール構成","結果_Form"],"not_rendered":{"charts":0,"images":0,"macros":1,"external_links":0,"defined_names":362,"comments":3,"pivot_tables":0},"unopened":[],"bounds":{"document_bytes":16777216,"sheet_cells":100000,"rows_first":2000,"rows_last":500,"rows_between":2000,"halvings":0,"cell_chars":16384,"cell_head_chars":4096},"cells_cut":0,"cells_raw":0,"read":"whole","date_system":"1900"}

{"sheet":"画面表示","index":0,"n_rows":0,"n_cols":0,"rows_kept":0,"cut":false,"hidden":false,"merged":[]}

{"sheet":"Status","index":1,"n_rows":370,"n_cols":10,"rows_kept":370,"cut":false,"hidden":false,"merged":[[0,0,0,7],[1,2,1,5],[2,2,2,5],[3,3,3,5],[5,3,5,5],[6,3,6,5],[54,3,54,4],[55,3,55,4],[56,3,56,4],[57,3,57,4],[58,3,58,4],[59,3,59,4],[44,3,44,5],[46,4,46,5],[47,3,47,5],[48,3,50,4],[51,3,51,5],[53,3,53,4],[66,3,66,4],[67,3,67,4],[68,3,68,4],[69,3,69,4],[70,3,70,4],[71,3,71,4],[60,3,60,4],[61,3,61,4],[62,3,62,4],[63,3,63,4],[64,3,64,4],[65,3,65,4],[78,3,78,4],[79,3,79,4],[80,3,80,4],[81,3,81,4],[82,3,82,4],[83,3,83,4],[72,3,72,4],[73,3,73,4],[74,3,74,4],[75,3,75,4],[76,3,76,4],[77,3,77,4],[90,3,90,4],[91,3,91,4],[92,3,92,4],[93,3,93,4],[94,3,94,4],[95,3,95,4],[84,3,84,4],[85,3,85,4],[86,3,86,4],[87,3,87,4],[88,3,88,4],[89,3,89,4],[102,3,102,4],[103,3,103,4],[104,3,104,4],[105,3,105,4],[106,3,106,4],[107,3,107,4],[96,3,96,4],[97,3,97,4],[98,3,98,4],[99,3,99,4],[100,3,100,4],[101,3,101,4],[114,3,114,4],[115,3,115,4],[116,3,116,4],[117,3,117,4],[118,3,118,4],[119,3,119,4],[108,3,108,4],[109,3,109,4],[110,3,110,4],[111,3,111,4],[112,3,112,4],[113,3,113,4],[126,3,126,4],[127,3,127,4],[128,3,128,4],[129,3,129,4],[130,3,130,4],[131,3,131,4],[120,3,120,4],[121,3,121,4],[122,3,122,4],[123,3,123,4],[124,3,124,4],[125,3,125,4],[138,3,138,4],[139,3,139,4],[140,3,140,4],[141,3,141,4],[142,3,142,4],[143,3,143,4],[132,3,132,4],[133,3,133,4],[134,3,134,4],[135,3,135,4],[136,3,136,4],[137,3,137,4],[150,3,150,4],[151,3,151,4],[152,3,152,4],[153,3,153,4],[154,3,154,4],[155,3,155,4],[144,3,144,4],[145,3,145,4],[146,3,146,4],[147,3,147,4],[148,3,148,4],[149,3,149,4],[162,3,162,4],[163,3,163,4],[164,3,164,4],[165,3,165,4],[166,3,166,4],[167,3,167,4],[156,3,156,4],[157,3,157,4],[158,3,158,4],[159,3,159,4],[160,3,160,4],[161,3,161,4],[174,3,174,4],[175,3,175,4],[176,3,176,4],[177,3,177,4],[178,3,178,4],[179,3,179,4],[168,3,168,4],[169,3,169,4],[170,3,170,4],[171,3,171,4],[172,3,172,4],[173,3,173,4],[186,3,186,4],[187,3,187,4],[188,3,188,4],[189,3,189,4],[190,3,190,4],[191,3,191,4],[180,3,180,4],[181,3,181,4],[182,3,182,4],[183,3,183,4],[184,3,184,4],[185,3,185,4],[198,3,198,4],[199,3,199,4],[200,3,200,4],[201,3,201,4],[202,3,202,4],[203,3,203,4],[192,3,192,4],[193,3,193,4],[194,3,194,4],[195,3,195,4],[196,3,196,4],[197,3,197,4],[210,3,210,4],[211,3,211,4],[212,3,212,4],[213,3,213,4],[214,3,214,4],[215,3,215,4],[204,3,204,4],[205,3,205,4],[206,3,206,4],[207,3,207,4],[208,3,208,4],[209,3,209,4],[222,3,222,4],[223,3,223,4],[224,3,224,4],[225,3,225,4],[226,3,226,4],[227,3,227,4],[216,3,216,4],[217,3,217,4],[218,3,218,4],[219,3,219,4],[220,3,220,4],[221,3,221,4],[234,3,234,4],[235,3,235,4],[236,3,236,4],[237,3,237,4],[238,3,238,4],[239,3,239,4],[228,3,228,4],[229,3,229,4],[230,3,230,4],[231,3,231,4],[232,3,232,4],[233,3,233,4],[246,3,246,4],[247,3,247,4],[248,3,248,4],[249,3,249,4],[250,3,250,4],[251,3,251,4],[240,3,240,4],[241,3,241,4],[242,3,242,4],[243,3,243,4],[244,3,244,4],[245,3,245,4],[258,3,258,4],[259,3,259,4],[260,3,260,4],[261,3,261,4],[262,3,262,4],[263,3,263,4],[252,3,252,4],[253,3,253,4],[254,3,254,4],[255,3,255,4],[256,3,256,4],[257,3,257,4],[270,3,270,4],[271,3,271,4],[272,3,272,4],[273,3,273,4],[274,3,274,4],[275,3,275,4],[264,3,264,4],[265,3,265,4],[266,3,266,4],[267,3,267,4],[268,3,268,4],[269,3,269,4],[282,3,282,4],[283,3,283,4],[284,3,284,4],[285,3,285,4],[286,3,286,4],[287,3,287,4],[276,3,276,4],[277,3,277,4],[278,3,278,4],[279,3,279,4],[280,3,280,4],[281,3,281,4],[294,3,294,4],[295,3,295,4],[296,3,296,4],[297,3,297,4],[298,3,298,4],[299,3,299,4],[288,3,288,4],[289,3,289,4],[290,3,290,4],[291,3,291,4],[292,3,292,4],[293,3,293,4],[306,3,306,4],[307,3,307,4],[308,3,308,4],[309,3,309,4],[310,4,310,5],[311,4,311,5],[300,3,300,4],[301,3,301,4],[302,3,302,4],[303,3,303,4],[304,3,304,4],[305,3,305,4],[320,3,320,4],[321,3,321,4],[322,3,322,4],[323,3,323,4],[324,3,324,4],[325,3,325,4],[313,4,313,5],[314,4,314,5],[316,3,316,4],[317,3,317,4],[318,3,318,4],[319,3,319,4],[332,3,332,4],[333,3,333,4],[334,3,334,4],[335,3,335,4],[336,3,336,4],[337,3,337,4],[326,3,326,4],[327,3,327,4],[328,3,328,4],[329,3,329,4],[330,3,330,4],[331,3,331,4],[344,3,344,4],[345,3,345,4],[346,3,346,4],[347,3,347,4],[348,3,348,4],[349,3,349,4],[338,3,338,4],[339,3,339,4],[340,3,340,4],[341,3,341,4],[342,3,342,4],[343,3,343,4],[362,3,362,4],[356,3,356,4],[357,3,357,4],[358,3,358,4],[359,3,359,4],[360,3,360,4],[361,3,361,4],[350,3,350,4],[351,3,351,4],[352,3,352,4],[353,3,353,4],[354,3,354,4],[355,3,355,4]]}
["Status",null,null,null,null,null,null,null,null,"初期値"]
[null,1,"現在の頁",null,null,null,"Page_Now",1,null,1]
[null,2,"直前の頁",null,null,null,"Page_Before",{"$f":"Page_Now","v":1},null,{"$f":"Page_Now","v":1}]
[null,null,"入力１","保険期間開始年",null,null,"HokenStartY"]
[null,null,null,null,null,null,"StartY"]
[null,null,null,"基準収入金額",null,null,"KijunShunyu"]
[null,null,null,"補てん方式",null,null,"HotenHoshiki"]
[null,null,null,"保険方式","補償限度","９０％","Hoken_HoshoGendo90",false,null,false]
[null,null,null,null,null,"８８％","Hoken_HoshoGendo88",false,null,false]
[null,null,null,null,null,"８５％","Hoken_HoshoGendo85",false,null,false]
[null,null,null,null,null,"８３％","Hoken_HoshoGendo83",false,null,false]
[null,null,null,null,null,"８０％","Hoken_HoshoGendo80",true,null,true]
[null,null,null,null,null,"７８％","Hoken_HoshoGendo78",false,null,false]
[null,null,null,null,null,"７５％","Hoken_HoshoGendo75",false,null,false]
[null,null,null,null,null,"７０％","Hoken_HoshoGendo70",false,null,false]
[null,null,null,null,null,"６５％","Hoken_HoshoGendo65",false,null,false]
[null,null,null,null,null,"６０％","Hoken_HoshoGendo60",false,null,false]
[null,null,null,null,null,"５５％","Hoken_HoshoGendo55",false,null,false]
[null,null,null,null,null,"５０％","Hoken_HoshoGendo50",false,null,false]
[null,null,null,null,null,"適用","Hoken_HoshoGendo",80,null,80]
[null,null,null,null,"補償の下限","７０％","Hoken_HoshoKagen70",false,null,false]
[null,null,null,null,null,"６０％","Hoken_HoshoKagen60",false,null,false]
[null,null,null,null,null,"５０％","Hoken_HoshoKagen50",false,null,false]
[null,null,null,null,null,"選択なし","Hoken_HoshoKagen00",true,null,true]
[null,null,null,null,null,"適用","Hoken_HoshoKagen",0,null,0]
[null,null,null,null,"支払率","９０％","Hoken_Shiharairitsu90",true,null,true]
[null,null,null,null,null,"８０％","Hoken_Shiharairitsu80",false,null,false]
[null,null,null,null,null,"７０％","Hoken_Shiharairitsu70",false,null,false]
[null,null,null,null,null,"６０％","Hoken_Shiharairitsu60",false,null,false]
[null,null,null,null,null,"５０％","Hoken_Shiharairitsu50",false,null,false]
[null,null,null,null,null,"適用","Hoken_Shiharairitsu",90,null,90]
[null,null,null,"積立方式","補償幅","１０％","Tsumitate_HoshoHaba10",true,null,true]
[null,null,null,null,null,"５％","Tsumitate_HoshoHaba5",false,null,false]
[null,null,null,null,null,"適用","Tsumitate_HoshoHaba",10,null,10]
[null,null,null,null,"支払率","９０％","Tsumitate_Shiharairitsu90",true,null,true]
[null,null,null,null,null,"８０％","Tsumitate_Shiharairitsu80",false,null,false]
[null,null,null,null,null,"７０％","Tsumitate_Shiharairitsu70",false,null,false]
[null,null,null,null,null,"６０％","Tsumitate_Shiharairitsu60",false,null,false]
[null,null,null,null,null,"５０％","Tsumitate_Shiharairitsu50",false,null,false]
[null,null,null,null,null,"４０％","Tsumitate_Shiharairitsu40",false,null,false]
[null,null,null,null,null,"３０％","Tsumitate_Shiharairitsu30",false,null,false]
[null,null,null,null,null,"２０％","Tsumitate_Shiharairitsu20",false,null,false]
[null,null,null,null,null,"１０％","Tsumitate_Shiharairitsu10",false,null,false]
[null,null,null,null,null,"適用","Tsumitate_Shiharairitsu",90,null,90]
[null,null,null,"危険段階区分",null,null,"KikenDankaiKubun","  0区分",null,"  0区分"]
[null,null,null,null,null,"適用","KikenDankai"]
[null,null,null,null,"激変緩和措置適用",null,"GekihenKanwaSochiTekiyo","激変緩和措置適用なし",null,"激変緩和措置適用なし"]
[null,null,null,"つなぎ資金貸付残高",null,null,"TsunagiZandaka"]
[null,null,null,"加重平均損害率算定\n基礎数値",null,"①","KajuHeikinSongairitsuKiso1"]
[null,null,null,null,null,"②","KajuHeikinSongairitsuKiso2"]
[null,null,null,null,null,"③","KajuHeikinSongairitsuKiso3"]
[null,null,null,"見込農業収入対象品目数",null,null,"MikomiNogyoTaishoHinmoku",null,{"$f":"TRIM(SUBSTITUTE(MikomiNogyoTaishoHinmoku,\"品目\",\"\"))*1","v":{"$error":"#VALUE!"}}]
[null,null,null,null,null,null,"MikomiNogyoTaishoHinmokuNum"]
[null,null,"入力２","種類・品目",null,"明細０１","ShuruiHinmoku1"]
[null,null,null,null,null,"明細０２","ShuruiHinmoku2"]
[null,null,null,null,null,"明細０３","ShuruiHinmoku3"]
[null,null,null,null,null,"明細０４","ShuruiHinmoku4"]
[null,null,null,null,null,"明細０５","ShuruiHinmoku5"]
[null,null,null,null,null,"明細０６","ShuruiHinmoku6"]
[null,null,null,null,null,"明細０７","ShuruiHinmoku7"]
[null,null,null,null,null,"明細０８","ShuruiHinmoku8"]
[null,null,null,null,null,"明細０９","ShuruiHinmoku9"]
[null,null,null,null,null,"明細１０","ShuruiHinmoku10"]
[null,null,null,"期首棚卸高",null,"明細０１","KishuTanaoroshi1"]
[null,null,null,null,null,"明細０２","KishuTanaoroshi2"]
[null,null,null,null,null,"明細０３","KishuTanaoroshi3"]
[null,null,null,null,null,"明細０４","KishuTanaoroshi4"]
[null,null,null,null,null,"明細０５","KishuTanaoroshi5"]
[null,null,null,null,null,"明細０６","KishuTanaoroshi6"]
[null,null,null,null,null,"明細０７","KishuTanaoroshi7"]
[null,null,null,null,null,"明細０８","KishuTanaoroshi8"]
[null,null,null,null,null,"明細０９","KishuTanaoroshi9"]
[null,null,null,null,null,"明細１０","KishuTanaoroshi10"]
[null,null,null,null,null,"合計","KishuTanaoroshi11"]
[null,null,null,"事業消費単価",null,"明細０１","JigyoShohi1"]
[null,null,null,null,null,"明細０２","JigyoShohi2"]
[null,null,null,null,null,"明細０３","JigyoShohi3"]
[null,null,null,null,null,"明細０４","JigyoShohi4"]
[null,null,null,null,null,"明細０５","JigyoShohi5"]
[null,null,null,null,null,"明細０６","JigyoShohi6"]
[null,null,null,null,null,"明細０７","JigyoShohi7"]
[null,null,null,null,null,"明細０８","JigyoShohi8"]
[null,null,null,null,null,"明細０９","JigyoShohi9"]
[null,null,null,null,null,"明細１０","JigyoShohi10"]
[null,null,null,"期末棚卸単価",null,"明細０１","KimatsuTanaoroshi1"]
[null,null,null,null,null,"明細０２","KimatsuTanaoroshi2"]
[null,null,null,null,null,"明細０３","KimatsuTanaoroshi3"]
[null,null,null,null,null,"明細０４","KimatsuTanaoroshi4"]
[null,null,null,null,null,"明細０５","KimatsuTanaoroshi5"]
[null,null,null,null,null,"明細０６","KimatsuTanaoroshi6"]
[null,null,null,null,null,"明細０７","KimatsuTanaoroshi7"]
[null,null,null,null,null,"明細０８","KimatsuTanaoroshi8"]
[null,null,null,null,null,"明細０９","KimatsuTanaoroshi9"]
[null,null,null,null,null,"明細１０","KimatsuTanaoroshi10"]
[null,null,null,"見込農業収入金額",null,"明細０１","MikomiNogyoShunyu1"]
[null,null,null,null,null,"明細０２","MikomiNogyoShunyu2"]
[null,null,null,null,null,"明細０３","MikomiNogyoShunyu3"]
[null,null,null,null,null,"明細０４","MikomiNogyoShunyu4"]
[null,null,null,null,null,"明細０５","MikomiNogyoShunyu5"]
[null,null,null,null,null,"明細０６","MikomiNogyoShunyu6"]
[null,null,null,null,null,"明細０７","MikomiNogyoShunyu7"]
[null,null,null,null,null,"明細０８","MikomiNogyoShunyu8"]
[null,null,null,null,null,"明細０９","MikomiNogyoShunyu9"]
[null,null,null,null,null,"明細１０","MikomiNogyoShunyu10"]
[null,null,null,null,null,"合計","MikomiNogyoShunyu11"]
[null,null,"入力３","種類・品目",null,"明細０１","ShuruiHinmoku1"]
[null,null,null,null,null,"明細０２","ShuruiHinmoku2"]
[null,null,null,null,null,"明細０３","ShuruiHinmoku3"]
[null,null,null,null,null,"明細０４","ShuruiHinmoku4"]
[null,null,null,null,null,"明細０５","ShuruiHinmoku5"]
[null,null,null,null,null,"明細０６","ShuruiHinmoku6"]
[null,null,null,null,null,"明細０７","ShuruiHinmoku7"]
[null,null,null,null,null,"明細０８","ShuruiHinmoku8"]
[null,null,null,null,null,"明細０９","ShuruiHinmoku9"]
[null,null,null,null,null,"明細１０","ShuruiHinmoku10"]
[null,null,null,"数量払",null,"明細０１","Suryobarai1"]
[null,null,null,null,null,"明細０２","Suryobarai2"]
[null,null,null,null,null,"明細０３","Suryobarai3"]
[null,null,null,null,null,"明細０４","Suryobarai4"]
[null,null,null,null,null,"明細０５","Suryobarai5"]
[null,null,null,null,null,"明細０６","Suryobarai6"]
[null,null,null,null,null,"明細０７","Suryobarai7"]
[null,null,null,null,null,"明細０８","Suryobarai8"]
[null,null,null,null,null,"明細０９","Suryobarai9"]
[null,null,null,null,null,"明細１０","Suryobarai10"]
[null,null,null,null,null,"合計","Suryobarai11"]
[null,null,null,"面積払",null,"明細０１","MensekiBarai1"]
[null,null,null,null,null,"明細０２","MensekiBarai2"]
[null,null,null,null,null,"明細０３","MensekiBarai3"]
[null,null,null,null,null,"明細０４","MensekiBarai4"]
[null,null,null,null,null,"明細０５","MensekiBarai5"]
[null,null,null,null,null,"明細０６","MensekiBarai6"]
[null,null,null,null,null,"明細０７","MensekiBarai7"]
[null,null,null,null,null,"明細０８","MensekiBarai8"]
[null,null,null,null,null,"明細０９","MensekiBarai9"]
[null,null,null,null,null,"明細１０","MensekiBarai10"]
[null,null,null,null,null,"合計","MensekiBarai11"]
[null,null,"入力４","経営形態",null,null,"KeieiKeitaiKojin",true,null,true]
[null,null,null,null,null,null,"KeieiKeitaiHojin",false,null,false]
[null,null,null,"種類・品目",null,"明細０１","ShuruiHinmoku1"]
[null,null,null,null,null,"明細０２","ShuruiHinmoku2"]
[null,null,null,null,null,"明細０３","ShuruiHinmoku3"]
[null,null,null,null,null,"明細０４","ShuruiHinmoku4"]
[null,null,null,null,null,"明細０５","ShuruiHinmoku5"]
[null,null,null,null,null,"明細０６","ShuruiHinmoku6"]
[null,null,null,null,null,"明細０７","ShuruiHinmoku7"]
[null,null,null,null,null,"明細０８","ShuruiHinmoku8"]
[null,null,null,null,null,"明細０９","ShuruiHinmoku9"]
[null,null,null,null,null,"明細１０","ShuruiHinmoku10"]
[null,null,null,"青色申告区分",null,"明細０１","AoiroShinkokuKubun1"]
[null,null,null,null,null,"明細０２","AoiroShinkokuKubun2"]
[null,null,null,null,null,"明細０３","AoiroShinkokuKubun3"]
[null,null,null,null,null,"明細０４","AoiroShinkokuKubun4"]
[null,null,null,null,null,"明細０５","AoiroShinkokuKubun5"]
[null,null,null,null,null,"明細０６","AoiroShinkokuKubun6"]
[null,null,null,null,null,"明細０７","AoiroShinkokuKubun7"]
[null,null,null,null,null,"明細０８","AoiroShinkokuKubun8"]
[null,null,null,null,null,"明細０９","AoiroShinkokuKubun9"]
[null,null,null,null,null,"明細１０","AoiroShinkokuKubun10"]
[null,null,null,"青色申告販売金額",null,"明細０１","AoiroShinkokuHanbaiKingaku1"]
[null,null,null,null,null,"明細０２","AoiroShinkokuHanbaiKingaku2"]
[null,null,null,null,null,"明細０３","AoiroShinkokuHanbaiKingaku3"]
[null,null,null,null,null,"明細０４","AoiroShinkokuHanbaiKingaku4"]
[null,null,null,null,null,"明細０５","AoiroShinkokuHanbaiKingaku5"]
[null,null,null,null,null,"明細０６","AoiroShinkokuHanbaiKingaku6"]
[null,null,null,null,null,"明細０７","AoiroShinkokuHanbaiKingaku7"]
[null,null,null,null,null,"明細０８","AoiroShinkokuHanbaiKingaku8"]
[null,null,null,null,null,"明細０９","AoiroShinkokuHanbaiKingaku9"]
[null,null,null,null,null,"明細１０","AoiroShinkokuHanbaiKingaku10"]
[null,null,null,null,null,"合計","AoiroShinkokuHanbaiKingaku11"]
[null,null,null,"販売金額",null,"明細０１","HanbaiKingaku1"]
[null,null,null,null,null,"明細０２","HanbaiKingaku2"]
[null,null,null,null,null,"明細０３","HanbaiKingaku3"]
[null,null,null,null,null,"明細０４","HanbaiKingaku4"]
[null,null,null,null,null,"明細０５","HanbaiKingaku5"]
[null,null,null,null,null,"明細０６","HanbaiKingaku6"]
[null,null,null,null,null,"明細０７","HanbaiKingaku7"]
[null,null,null,null,null,"明細０８","HanbaiKingaku8"]
[null,null,null,null,null,"明細０９","HanbaiKingaku9"]
[null,null,null,null,null,"明細１０","HanbaiKingaku10"]
[null,null,null,null,null,"合計","HanbaiKingaku11"]
[null,null,null,"除外するもの",null,"明細０１","HanbaiKingakuJogai1"]
[null,null,null,null,null,"明細０２","HanbaiKingakuJogai2"]
[null,null,null,null,null,"明細０３","HanbaiKingakuJogai3"]
[null,null,null,null,null,"明細０４","HanbaiKingakuJogai4"]
[null,null,null,null,null,"明細０５","HanbaiKingakuJogai5"]
[null,null,null,null,null,"明細０６","HanbaiKingakuJogai6"]
[null,null,null,null,null,"明細０７","HanbaiKingakuJogai7"]
[null,null,null,null,null,"明細０８","HanbaiKingakuJogai8"]
[null,null,null,null,null,"明細０９","HanbaiKingakuJogai9"]
[null,null,null,null,null,"明細１０","HanbaiKingakuJogai10"]
[null,null,null,null,null,"合計","HanbaiKingakuJogai11"]
[null,null,null,"雑収入_数量払",null,"明細０１","ZatsushunyuHanbaiSuryo1"]
[null,null,null,null,null,"明細０２","ZatsushunyuHanbaiSuryo2"]
[null,null,null,null,null,"明細０３","ZatsushunyuHanbaiSuryo3"]
[null,null,null,null,null,"明細０４","ZatsushunyuHanbaiSuryo4"]
[null,null,null,null,null,"明細０５","ZatsushunyuHanbaiSuryo5"]
[null,null,null,null,null,"明細０６","ZatsushunyuHanbaiSuryo6"]
[null,null,null,null,null,"明細０７","ZatsushunyuHanbaiSuryo7"]
[null,null,null,null,null,"明細０８","ZatsushunyuHanbaiSuryo8"]
[null,null,null,null,null,"明細０９","ZatsushunyuHanbaiSuryo9"]
[null,null,null,null,null,"明細１０","ZatsushunyuHanbaiSuryo10"]
[null,null,null,null,null,"合計","ZatsushunyuHanbaiSuryo11"]
[null,null,null,"雑収入_数量・面積払",null,"明細０１","SuryobaraiMensekibarai1"]
[null,null,null,null,null,"明細０２","SuryobaraiMensekibarai2"]
[null,null,null,null,null,"明細０３","SuryobaraiMensekibarai3"]
[null,null,null,null,null,"明細０４","SuryobaraiMensekibarai4"]
[null,null,null,null,null,"明細０５","SuryobaraiMensekibarai5"]
[null,null,null,null,null,"明細０６","SuryobaraiMensekibarai6"]
[null,null,null,null,null,"明細０７","SuryobaraiMensekibarai7"]
[null,null,null,null,null,"明細０８","SuryobaraiMensekibarai8"]
[null,null,null,null,null,"明細０９","SuryobaraiMensekibarai9"]
[null,null,null,null,null,"明細１０","SuryobaraiMensekibarai10"]
[null,null,null,null,null,"合計","SuryobaraiMensekibarai11"]
[null,null,null,"雑収入_その他",null,"明細０１","ZatsushunyuHanbaiSonota1"]
[null,null,null,null,null,"明細０２","ZatsushunyuHanbaiSonota2"]
[null,null,null,null,null,"明細０３","ZatsushunyuHanbaiSonota3"]
[null,null,null,null,null,"明細０４","ZatsushunyuHanbaiSonota4"]
[null,null,null,null,null,"明細０５","ZatsushunyuHanbaiSonota5"]
[null,null,null,null,null,"明細０６","ZatsushunyuHanbaiSonota6"]
[null,null,null,null,null,"明細０７","ZatsushunyuHanbaiSonota7"]
[null,null,null,null,null,"明細０８","ZatsushunyuHanbaiSonota8"]
[null,null,null,null,null,"明細０９","ZatsushunyuHanbaiSonota9"]
[null,null,null,null,null,"明細１０","ZatsushunyuHanbaiSonota10"]
[null,null,null,null,null,"合計","ZatsushunyuHanbaiSonota11"]
[null,null,null,"収入金額申告",null,"明細０１","ShunyuKingakuShinkoku1"]
[null,null,null,null,null,"明細０２","ShunyuKingakuShinkoku2"]
[null,null,null,null,null,"明細０３","ShunyuKingakuShinkoku3"]
[null,null,null,null,null,"明細０４","ShunyuKingakuShinkoku4"]
[null,null,null,null,null,"明細０５","ShunyuKingakuShinkoku5"]
[null,null,null,null,null,"明細０６","ShunyuKingakuShinkoku6"]
[null,null,null,null,null,"明細０７","ShunyuKingakuShinkoku7"]
[null,null,null,null,null,"明細０８","ShunyuKingakuShinkoku8"]
[null,null,null,null,null,"明細０９","ShunyuKingakuShinkoku9"]
[null,null,null,null,null,"明細１０","ShunyuKingakuShinkoku10"]
[null,null,null,null,null,"合計","ShunyuKingakuShinkoku11"]
[null,null,"入力５","種類・品目",null,"明細０１","ShuruiHinmoku1"]
[null,null,null,null,null,"明細０２","ShuruiHinmoku2"]
[null,null,null,null,null,"明細０３","ShuruiHinmoku3"]
[null,null,null,null,null,"明細０４","ShuruiHinmoku4"]
[null,null,null,null,null,"明細０５","ShuruiHinmoku5"]
[null,null,null,null,null,"明細０６","ShuruiHinmoku6"]
[null,null,null,null,null,"明細０７","ShuruiHinmoku7"]
[null,null,null,null,null,"明細０８","ShuruiHinmoku8"]
[null,null,null,null,null,"明細０９","ShuruiHinmoku9"]
[null,null,null,null,null,"明細１０","ShuruiHinmoku10"]
[null,null,null,"期首棚卸高",null,"明細０１","KishuTanaoroshi1"]
[null,null,null,null,null,"明細０２","KishuTanaoroshi2"]
[null,null,null,null,null,"明細０３","KishuTanaoroshi3"]
[null,null,null,null,null,"明細０４","KishuTanaoroshi4"]
[null,null,null,null,null,"明細０５","KishuTanaoroshi5"]
[null,null,null,null,null,"明細０６","KishuTanaoroshi6"]
[null,null,null,null,null,"明細０７","KishuTanaoroshi7"]
[null,null,null,null,null,"明細０８","KishuTanaoroshi8"]
[null,null,null,null,null,"明細０９","KishuTanaoroshi9"]
[null,null,null,null,null,"明細１０","KishuTanaoroshi10"]
[null,null,null,null,null,"合計","KishuTanaoroshi11"]
[null,null,null,"販売金額",null,"明細０１","ShunyuKingakuShinkoku1"]
[null,null,null,null,null,"明細０２","ShunyuKingakuShinkoku2"]
[null,null,null,null,null,"明細０３","ShunyuKingakuShinkoku3"]
[null,null,null,null,null,"明細０４","ShunyuKingakuShinkoku4"]
[null,null,null,null,null,"明細０５","ShunyuKingakuShinkoku5"]
[null,null,null,null,null,"明細０６","ShunyuKingakuShinkoku6"]
[null,null,null,null,null,"明細０７","ShunyuKingakuShinkoku7"]
[null,null,null,null,null,"明細０８","ShunyuKingakuShinkoku8"]
[null,null,null,null,null,"明細０９","ShunyuKingakuShinkoku9"]
[null,null,null,null,null,"明細１０","ShunyuKingakuShinkoku10"]
[null,null,null,null,null,"合計","ShunyuKingakuShinkoku11"]
[null,null,null,"事業消費数量",null,"明細０１","JigyoShohiSuryo1"]
[null,null,null,null,null,"明細０２","JigyoShohiSuryo2"]
[null,null,null,null,null,"明細０３","JigyoShohiSuryo3"]
[null,null,null,null,null,"明細０４","JigyoShohiSuryo4"]
[null,null,null,null,null,"明細０５","JigyoShohiSuryo5"]
[null,null,null,null,null,"明細０６","JigyoShohiSuryo6"]
[null,null,null,null,null,"明細０７","JigyoShohiSuryo7"]
[null,null,null,null,null,"明細０８","JigyoShohiSuryo8"]
[null,null,null,null,null,"明細０９","JigyoShohiSuryo9"]
[null,null,null,null,null,"明細１０","JigyoShohiSuryo10"]
[null,null,null,"事業消費金額",null,"明細０１","JigyoShohiKingaku1"]
[null,null,null,null,null,"明細０２","JigyoShohiKingaku2"]
[null,null,null,null,null,"明細０３","JigyoShohiKingaku3"]
[null,null,null,null,null,"明細０４","JigyoShohiKingaku4"]
[null,null,null,null,null,"明細０５","JigyoShohiKingaku5"]
[null,null,null,null,null,"明細０６","JigyoShohiKingaku6"]
[null,null,null,null,null,"明細０７","JigyoShohiKingaku7"]
[null,null,null,null,null,"明細０８","JigyoShohiKingaku8"]
[null,null,null,null,null,"明細０９","JigyoShohiKingaku9"]
[null,null,null,null,null,"明細１０","JigyoShohiKingaku10"]
[null,null,null,null,null,"合計","JigyoShohiKingaku11"]
[null,null,null,"期末棚卸数量",null,"明細０１","KimatsuTanaoroshiSuryo1"]
[null,null,null,null,null,"明細０２","KimatsuTanaoroshiSuryo2"]
[null,null,null,null,null,"明細０３","KimatsuTanaoroshiSuryo3"]
[null,null,null,null,null,"明細０４","KimatsuTanaoroshiSuryo4"]
[null,null,null,null,null,"明細０５","KimatsuTanaoroshiSuryo5"]
[null,null,null,null,null,"明細０６","KimatsuTanaoroshiSuryo6"]
[null,null,null,null,null,"明細０７","KimatsuTanaoroshiSuryo7"]
[null,null,null,null,null,"明細０８","KimatsuTanaoroshiSuryo8"]
[null,null,null,null,null,"明細０９","KimatsuTanaoroshiSuryo9"]
[null,null,null,null,null,"明細１０","KimatsuTanaoroshiSuryo10"]
[null,null,null,"期末棚卸高",null,"明細０１","KimatsuTanaoroshiKingaku1"]
[null,null,null,null,null,"明細０２","KimatsuTanaoroshiKingaku2"]
[null,null,null,null,null,"明細０３","KimatsuTanaoroshiKingaku3"]
[null,null,null,null,null,"明細０４","KimatsuTanaoroshiKingaku4"]
[null,null,null,null,null,"明細０５","KimatsuTanaoroshiKingaku5"]
[null,null,null,null,null,"明細０６","KimatsuTanaoroshiKingaku6"]
[null,null,null,null,null,"明細０７","KimatsuTanaoroshiKingaku7"]
[null,null,null,null,null,"明細０８","KimatsuTanaoroshiKingaku8"]
[null,null,null,null,null,"明細０９","KimatsuTanaoroshiKingaku9"]
[null,null,null,null,null,"明細１０","KimatsuTanaoroshiKingaku10"]
[null,null,null,null,null,"合計","KimatsuTanaoroshiKingaku11"]
[null,null,"入力６","賠償金","受け取っていない",null,"Baishokin1",false,null,false]
[null,null,null,null,"受け取っている",null,"Baishokin2",false,null,false]
[null,null,null,null,null,"受取額","BaishokinKingaku"]
[null,null,null,"補てん調整","受け取っていない",null,"HotenChosei1",false,null,false]
[null,null,null,null,"受け取っている",null,"HotenChosei2",false,null,false]
[null,null,null,null,null,"調整額","HotenChoseigaku"]
[null,null,"結果１","数量払の調整",null,"明細０１","SuryobaraiChosei1"]
[null,null,null,null,null,"明細０２","SuryobaraiChosei2"]
[null,null,null,null,null,"明細０３","SuryobaraiChosei3"]
[null,null,null,null,null,"明細０４","SuryobaraiChosei4"]
[null,null,null,null,null,"明細０５","SuryobaraiChosei5"]
[null,null,null,null,null,"明細０６","SuryobaraiChosei6"]
[null,null,null,null,null,"明細０７","SuryobaraiChosei7"]
[null,null,null,null,null,"明細０８","SuryobaraiChosei8"]
[null,null,null,null,null,"明細０９","SuryobaraiChosei9"]
[null,null,null,null,null,"明細１０","SuryobaraiChosei10"]
[null,null,null,null,null,"合計","SuryobaraiChosei11"]
[null,null,null,"農業収入金額",null,"明細０１","NogyoShunyuKingaku1"]
[null,null,null,null,null,"明細０２","NogyoShunyuKingaku2"]
[null,null,null,null,null,"明細０３","NogyoShunyuKingaku3"]
[null,null,null,null,null,"明細０４","NogyoShunyuKingaku4"]
[null,null,null,null,null,"明細０５","NogyoShunyuKingaku5"]
[null,null,null,null,null,"明細０６","NogyoShunyuKingaku6"]
[null,null,null,null,null,"明細０７","NogyoShunyuKingaku7"]
[null,null,null,null,null,"明細０８","NogyoShunyuKingaku8"]
[null,null,null,null,null,"明細０９","NogyoShunyuKingaku9"]
[null,null,null,null,null,"明細１０","NogyoShunyuKingaku10"]
[null,null,null,null,null,"合計","NogyoShunyuKingaku11"]
[null,null,null,"農業収入増減額",null,"明細０１","NogyoShunyuZogengaku1"]
[null,null,null,null,null,"明細０２","NogyoShunyuZogengaku2"]
[null,null,null,null,null,"明細０３","NogyoShunyuZogengaku3"]
[null,null,null,null,null,"明細０４","NogyoShunyuZogengaku4"]
[null,null,null,null,null,"明細０５","NogyoShunyuZogengaku5"]
[null,null,null,null,null,"明細０６","NogyoShunyuZogengaku6"]
[null,null,null,null,null,"明細０７","NogyoShunyuZogengaku7"]
[null,null,null,null,null,"明細０８","NogyoShunyuZogengaku8"]
[null,null,null,null,null,"明細０９","NogyoShunyuZogengaku9"]
[null,null,null,null,null,"明細１０","NogyoShunyuZogengaku10"]
[null,null,null,null,null,"合計","NogyoShunyuZogengaku11"]
[null,null,"結果２","保険限度額",null,null,"HokenGendoGaku"]
[null,null,null,"保険金額",null,null,"HokenKingaku"]
[null,null,null,"補償の下限",null,null,"HoshoKagen"]
[null,null,null,"基準補填金額",null,null,"KijunHotenKingaku"]
[null,null,null,"補填対象金額",null,null,"HotenTaishoKingaku"]
[null,null,null,"保険金額算出基礎金額",null,null,"Hokenkin_SanshutsuKisoKingaku"]
[null,null,null,"特約補てん金額算出基礎金額",null,null,"TokuyakuHotenkin_SanshutsuKisoKingaku"]
[null,null,null,"暫定保険金額",null,null,"ZanteiHokenKingaku"]
[null,null,null,"暫定特約補てん金額",null,null,"ZanteiTokuyakuHotenKingaku"]
[null,null,null,"保険金予定額",null,null,"HokenkinYoteiGaku"]
[null,null,null,"特約補填金予定額",null,null,"TokuyakuHotenkinYoteiGaku"]
[null,null,null,"保険金等減額",null,null,"HokenkintoGengaku"]
[null,null,null,"保険金",null,null,"Hokenkin"]
[null,null,null,"特約補填金",null,null,"TokuyakuHotenkin"]
[null,null,null,"償還後つなぎ資金残高",null,"保険金等","ShokangoZandaka1"]
[null,null,null,null,null,"特約補填金","ShokangoZandaka2"]
[null,null,null,"保険金等請求する",null,null,"SeikyuSuru",false,null,false]
[null,null,null,"保険金請求する",null,null,"SeikyuSuruHokenkin",false,null,false]
[null,null,null,"特約補填金請求する",null,null,"SeikyuSuruTokuyakuHotenkin",false,null,false]
[null,null,null,"保険金等請求しない",null,null,"SeikyuShinai",false,null,false]
[null,null,"結果３","振込額",null,null,"Furikomigaku"]

{"sheet":"Set","index":2,"n_rows":817,"n_cols":12,"rows_kept":817,"cut":false,"hidden":false,"merged":[]}
["No","Page","Style","Object","Cell","Group","GroupA","GroupB","InitialVisible","Visible01","Visible02","RestartFLG"]
[1,3,"Label","Lbl3_HokenStartY","HokenStartY",null,null,null,true,"H31-Hoken"]
[{"$f":"A2+1","v":2},3,"Combo","CBx3_HokenStartY","HokenStartY",null,null,3,true,"H31-Hoken",null,3]
[{"$f":"A3+1","v":3},3,"Label","Lbl3_KijunShunyu","KijunShunyu",null,null,null,true,"H31-Hoken"]
[4,3,"Text","TBx3_KijunShunyu","KijunShunyu",null,null,3,true,"H31-Hoken","#,##0",3]
[5,3,"Label","Lbl3_HotenHoshiki","HotenHoshiki",null,null,null,true,"H31-Hoken"]
[6,3,"Combo","CBx3_HotenHoshiki","HotenHoshiki",null,null,3,true,"H31-Hoken",null,3]
[7,3,"Label","Lbl3_Hoken_HoshoGendo","Hoken_HoshoGendo",null,null,null,true,"H31-Hoken"]
[8,3,"Check","CBx3_Hoken_HoshoGendo90","Hoken_HoshoGendo90","Hoken_HoshoGendo",null,"3’",true,"R6-Hoken",null,3]
[9,3,"Check","CBx3_Hoken_HoshoGendo88","Hoken_HoshoGendo88","Hoken_HoshoGendo",null,"3’",true,"R6-Hoken",null,3]
[10,3,"Check","CBx3_Hoken_HoshoGendo85","Hoken_HoshoGendo85","Hoken_HoshoGendo",null,"3’",true,"R6-Hoken",null,3]
[11,3,"Check","CBx3_Hoken_HoshoGendo83","Hoken_HoshoGendo83","Hoken_HoshoGendo",null,"3’",true,"R6-Hoken",null,3]
[12,3,"Check","CBx3_Hoken_HoshoGendo80","Hoken_HoshoGendo80","Hoken_HoshoGendo",null,"3’",true,"H31-Hoken",null,3]
[13,3,"Check","CBx3_Hoken_HoshoGendo78","Hoken_HoshoGendo78","Hoken_HoshoGendo",null,"3’",true,"H31-Hoken",null,3]
[14,3,"Check","CBx3_Hoken_HoshoGendo75","Hoken_HoshoGendo75","Hoken_HoshoGendo",null,"3’",true,"H31-Hoken",null,3]
[15,3,"Check","CBx3_Hoken_HoshoGendo70","Hoken_HoshoGendo70","Hoken_HoshoGendo",null,"3’",true,"H31-Hoken",null,3]
[16,3,"Check","CBx3_Hoken_HoshoGendo65","Hoken_HoshoGendo65","Hoken_HoshoGendo",null,"3’",true,"R6-Hoken",null,3]
[17,3,"Check","CBx3_Hoken_HoshoGendo60","Hoken_HoshoGendo60","Hoken_HoshoGendo",null,"3’",true,"H31-Hoken",null,3]
[18,3,"Check","CBx3_Hoken_HoshoGendo55","Hoken_HoshoGendo55","Hoken_HoshoGendo",null,"3’",true,"R6-Hoken",null,3]
[19,3,"Check","CBx3_Hoken_HoshoGendo50","Hoken_HoshoGendo50","Hoken_HoshoGendo",null,"3’",true,"H31-Hoken",null,3]
[20,3,"Label","Lbl3_Hoken_HoshoKagen","Hoken_HoshoKagen",null,null,null,true,"R2-Hoken"]
[21,3,"Check","CBx3_Hoken_HoshoKagen70","Hoken_HoshoKagen70","Hoken_HoshoKagen",null,"3’",true,"R2-Hoken",null,3]
[22,3,"Check","CBx3_Hoken_HoshoKagen60","Hoken_HoshoKagen60","Hoken_HoshoKagen",null,"3’",true,"R2-Hoken",null,3]
[23,3,"Check","CBx3_Hoken_HoshoKagen50","Hoken_HoshoKagen50","Hoken_HoshoKagen",null,"3’",true,"R2-Hoken",null,3]
[24,3,"Check","CBx3_Hoken_HoshoKagen00","Hoken_HoshoKagen00","Hoken_HoshoKagen",null,"3’",true,"R2-Hoken",null,3]
[25,3,"Label","Lbl3_Hoken_Shiharairitsu","Hoken_Shiharairitsu",null,null,null,true,"H31-Hoken"]
[26,3,"Check","CBx3_Hoken_Shiharairitsu90","Hoken_Shiharairitsu90","Hoken_Shiharairitsu",null,"3’",true,"H31-Hoken",null,3]
[27,3,"Check","CBx3_Hoken_Shiharairitsu80","Hoken_Shiharairitsu80","Hoken_Shiharairitsu",null,"3’",true,"H31-Hoken",null,3]
[28,3,"Check","CBx3_Hoken_Shiharairitsu70","Hoken_Shiharairitsu70","Hoken_Shiharairitsu",null,"3’",true,"H31-Hoken",null,3]
[29,3,"Check","CBx3_Hoken_Shiharairitsu60","Hoken_Shiharairitsu60","Hoken_Shiharairitsu",null,"3’",true,"H31-Hoken",null,3]
[30,3,"Check","CBx3_Hoken_Shiharairitsu50","Hoken_Shiharairitsu50","Hoken_Shiharairitsu",null,"3’",true,"H31-Hoken",null,3]
[31,3,"Label","Lbl3_Tsumitate_HoshoHaba","Tsumitate_HoshoHaba",null,null,null,true,"H31-Tsumitate"]
[32,3,"Check","CBx3_Tsumitate_HoshoHaba10","Tsumitate_HoshoHaba10","Tsumitate_HoshoHaba",null,"3’",true,"H31-Tsumitate",null,3]
[33,3,"Check","CBx3_Tsumitate_HoshoHaba5","Tsumitate_HoshoHaba5","Tsumitate_HoshoHaba",null,"3’",true,"H31-Tsumitate",null,3]
[34,3,"Label","Lbl3_Tsumitate_Shiharairitsu","Tsumitate_Shiharairitsu",null,null,null,true,"H31-Tsumitate"]
[35,3,"Check","CBx3_Tsumitate_Shiharairitsu90","Tsumitate_Shiharairitsu90","Tsumitate_Shiharairitsu",null,"3’",true,"H31-Tsumitate",null,3]
[36,3,"Check","CBx3_Tsumitate_Shiharairitsu80","Tsumitate_Shiharairitsu80","Tsumitate_Shiharairitsu",null,"3’",true,"H31-Tsumitate",null,3]
[37,3,"Check","CBx3_Tsumitate_Shiharairitsu70","Tsumitate_Shiharairitsu70","Tsumitate_Shiharairitsu",null,"3’",true,"H31-Tsumitate",null,3]
[38,3,"Check","CBx3_Tsumitate_Shiharairitsu60","Tsumitate_Shiharairitsu60","Tsumitate_Shiharairitsu",null,"3’",true,"H31-Tsumitate",null,3]
[39,3,"Check","CBx3_Tsumitate_Shiharairitsu50","Tsumitate_Shiharairitsu50","Tsumitate_Shiharairitsu",null,"3’",true,"H31-Tsumitate",null,3]
[40,3,"Check","CBx3_Tsumitate_Shiharairitsu40","Tsumitate_Shiharairitsu40","Tsumitate_Shiharairitsu",null,"3’",true,"R2-Tsumitate",null,3]
[41,3,"Check","CBx3_Tsumitate_Shiharairitsu30","Tsumitate_Shiharairitsu30","Tsumitate_Shiharairitsu",null,"3’",true,"R2-Tsumitate",null,3]
[42,3,"Check","CBx3_Tsumitate_Shiharairitsu20","Tsumitate_Shiharairitsu20","Tsumitate_Shiharairitsu",null,"3’",true,"R2-Tsumitate",null,3]
[43,3,"Check","CBx3_Tsumitate_Shiharairitsu10","Tsumitate_Shiharairitsu10","Tsumitate_Shiharairitsu",null,"3’",true,"R2-Tsumitate",null,3]
[44,3,"Label","Lbl3_KikenDankaiKubun","KikenDankaiKubun",null,null,null,true,"R2-Hoken"]
[45,3,"Combo","CBx3_KikenDankaiKubun","KikenDankaiKubun",null,null,3,true,"R2-Hoken",null,3]
[46,3,"Combo","CBx3_GekihenKanwaSochiTekiyo","GekihenKanwaSochiTekiyo",null,null,3,true,"R2-Hoken",null,3]
[47,3,"Label","Lbl3_TsunagiZandaka","TsunagiZandaka",null,null,null,true,"H31-Hoken"]
[48,3,"Text","TBx3_TsunagiZandaka","TsunagiZandaka",null,null,3,true,"H31-Hoken","#,##0",3]
[49,3,"Label","Lbl3_KajuHeikinSongairitsuKiso","KajuHeikinSongairitsuKiso",null,null,null,true,"R2-Hoken"]
[50,3,"Label","Lbl3_KajuHeikinSongairitsuKiso1","KajuHeikinSongairitsuKiso1","KajuHeikinSongairitsuKiso",null,null,true,"R2-Hoken"]
[51,3,"Text","TBx3_KajuHeikinSongairitsuKiso1","KajuHeikinSongairitsuKiso1","KajuHeikinSongairitsuKiso",null,3,true,"R2-Hoken","#,##0",3]
[52,3,"Label","Lbl3_KajuHeikinSongairitsuKiso2","KajuHeikinSongairitsuKiso2","KajuHeikinSongairitsuKiso",null,null,true,"R2-Hoken"]
[53,3,"Text","TBx3_KajuHeikinSongairitsuKiso2","KajuHeikinSongairitsuKiso2","KajuHeikinSongairitsuKiso",null,3,true,"R2-Hoken","#,##0",3]
[54,3,"Label","Lbl3_KajuHeikinSongairitsuKiso3","KajuHeikinSongairitsuKiso3","KajuHeikinSongairitsuKiso",null,null,true,"R2-Hoken"]
[55,3,"Text","TBx3_KajuHeikinSongairitsuKiso3","KajuHeikinSongairitsuKiso3","KajuHeikinSongairitsuKiso",null,3,true,"R2-Hoken","#,##0",3]
[56,3,"Label","Lbl3_MikomiNogyoTaishoHinmoku","MikomiNogyoTaishoHinmoku",null,null,null,true,"H31-Hoken"]
[57,3,"Combo","CBx3_MikomiNogyoTaishoHinmoku","MikomiNogyoTaishoHinmoku",null,null,3,true,"H31-Hoken",null,3]
[58,4,"Label","Lbl4_Meisai1","Meisai1",null,1]
[59,4,"Label","Lbl4_Meisai2","Meisai2",null,2]
[60,4,"Label","Lbl4_Meisai3","Meisai3",null,3]
[61,4,"Label","Lbl4_Meisai4","Meisai4",null,4]
[62,4,"Label","Lbl4_Meisai5","Meisai5",null,5]
[63,4,"Label","Lbl4_Meisai6","Meisai6",null,6]
[64,4,"Label","Lbl4_Meisai7","Meisai7",null,7]
[65,4,"Label","Lbl4_Meisai8","Meisai8",null,8]
[66,4,"Label","Lbl4_Meisai9","Meisai9",null,9]
[{"$f":"A67+1","v":67},4,"Label","Lbl4_Meisai10","Meisai10",null,10]
[68,4,"Label","Lbl4_Meisai11","Meisai11"]
[69,4,"Label","Lbl4_ShuruiHinmoku","ShuruiHinmoku"]
[70,4,"Text","TBx4_ShuruiHinmoku1","ShuruiHinmoku1",null,1,4,null,null,null,4]
[71,4,"Text","TBx4_ShuruiHinmoku2","ShuruiHinmoku2",null,2,4,null,null,null,4]
[72,4,"Text","TBx4_ShuruiHinmoku3","ShuruiHinmoku3",null,3,4,null,null,null,4]
[73,4,"Text","TBx4_ShuruiHinmoku4","ShuruiHinmoku4",null,4,4,null,null,null,4]
[74,4,"Text","TBx4_ShuruiHinmoku5","ShuruiHinmoku5",null,5,4,null,null,null,4]
[75,4,"Text","TBx4_ShuruiHinmoku6","ShuruiHinmoku6",null,6,4,null,null,null,4]
[76,4,"Text","TBx4_ShuruiHinmoku7","ShuruiHinmoku7",null,7,4,null,null,null,4]
[77,4,"Text","TBx4_ShuruiHinmoku8","ShuruiHinmoku8",null,8,4,null,null,null,4]
[78,4,"Text","TBx4_ShuruiHinmoku9","ShuruiHinmoku9",null,9,4,null,null,null,4]
[79,4,"Text","TBx4_ShuruiHinmoku10","ShuruiHinmoku10",null,10,4,null,null,null,4]
[80,4,"Label","Lbl4_KishuTanaoroshi","KishuTanaoroshi"]
[81,4,"Text","TBx4_KishuTanaoroshi1","KishuTanaoroshi1","KishuTanaoroshi",1,4,null,null,"#,##0",4]
[82,4,"Text","TBx4_KishuTanaoroshi2","KishuTanaoroshi2","KishuTanaoroshi",2,4,null,null,"#,##0",4]
[83,4,"Text","TBx4_KishuTanaoroshi3","KishuTanaoroshi3","KishuTanaoroshi",3,4,null,null,"#,##0",4]
[84,4,"Text","TBx4_KishuTanaoroshi4","KishuTanaoroshi4","KishuTanaoroshi",4,4,null,null,"#,##0",4]
[85,4,"Text","TBx4_KishuTanaoroshi5","KishuTanaoroshi5","KishuTanaoroshi",5,4,null,null,"#,##0",4]
[86,4,"Text","TBx4_KishuTanaoroshi6","KishuTanaoroshi6","KishuTanaoroshi",6,4,null,null,"#,##0",4]
[87,4,"Text","TBx4_KishuTanaoroshi7","KishuTanaoroshi7","KishuTanaoroshi",7,4,null,null,"#,##0",4]
[88,4,"Text","TBx4_KishuTanaoroshi8","KishuTanaoroshi8","KishuTanaoroshi",8,4,null,null,"#,##0",4]
[89,4,"Text","TBx4_KishuTanaoroshi9","KishuTanaoroshi9","KishuTanaoroshi",9,4,null,null,"#,##0",4]
[90,4,"Text","TBx4_KishuTanaoroshi10","KishuTanaoroshi10","KishuTanaoroshi",10,4,null,null,"#,##0",4]
[91,4,"Text","TBx4_KishuTanaoroshi11","KishuTanaoroshi11","KishuTanaoroshi",null,4,null,null,"#,##0",4]
[92,4,"Label","Lbl4_KishuTanaoroshiYen1","KishuTanaoroshiYen1",null,1]
[93,4,"Label","Lbl4_KishuTanaoroshiYen2","KishuTanaoroshiYen2",null,2]
[94,4,"Label","Lbl4_KishuTanaoroshiYen3","KishuTanaoroshiYen3",null,3]
[95,4,"Label","Lbl4_KishuTanaoroshiYen4","KishuTanaoroshiYen4",null,4]
[96,4,"Label","Lbl4_KishuTanaoroshiYen5","KishuTanaoroshiYen5",null,5]
[97,4,"Label","Lbl4_KishuTanaoroshiYen6","KishuTanaoroshiYen6",null,6]
[98,4,"Label","Lbl4_KishuTanaoroshiYen7","KishuTanaoroshiYen7",null,7]
[99,4,"Label","Lbl4_KishuTanaoroshiYen8","KishuTanaoroshiYen8",null,8]
[100,4,"Label","Lbl4_KishuTanaoroshiYen9","KishuTanaoroshiYen9",null,9]
[101,4,"Label","Lbl4_KishuTanaoroshiYen10","KishuTanaoroshiYen10",null,10]
[102,4,"Label","Lbl4_KishuTanaoroshiYen11","KishuTanaoroshiYen11"]
[103,4,"Label","Lbl4_JigyoShohi","JigyoShohi"]
[104,4,"Text","TBx4_JigyoShohi1","JigyoShohi1","JigyoShohi",1,4,null,null,"#,##0.0",4]
[105,4,"Text","TBx4_JigyoShohi2","JigyoShohi2","JigyoShohi",2,4,null,null,"#,##0.0",4]
[106,4,"Text","TBx4_JigyoShohi3","JigyoShohi3","JigyoShohi",3,4,null,null,"#,##0.0",4]
[107,4,"Text","TBx4_JigyoShohi4","JigyoShohi4","JigyoShohi",4,4,null,null,"#,##0.0",4]
[108,4,"Text","TBx4_JigyoShohi5","JigyoShohi5","JigyoShohi",5,4,null,null,"#,##0.0",4]
[109,4,"Text","TBx4_JigyoShohi6","JigyoShohi6","JigyoShohi",6,4,null,null,"#,##0.0",4]
[110,4,"Text","TBx4_JigyoShohi7","JigyoShohi7","JigyoShohi",7,4,null,null,"#,##0.0",4]
[111,4,"Text","TBx4_JigyoShohi8","JigyoShohi8","JigyoShohi",8,4,null,null,"#,##0.0",4]
[112,4,"Text","TBx4_JigyoShohi9","JigyoShohi9","JigyoShohi",9,4,null,null,"#,##0.0",4]
[113,4,"Text","TBx4_JigyoShohi10","JigyoShohi10","JigyoShohi",10,4,null,null,"#,##0.0",4]
[114,4,"Label","Lbl4_JigyoShohiYenKgto1","JigyoShohiYenKgto1",null,1]
[115,4,"Label","Lbl4_JigyoShohiYenKgto2","JigyoShohiYenKgto2",null,2]
[116,4,"Label","Lbl4_JigyoShohiYenKgto3","JigyoShohiYenKgto3",null,3]
[117,4,"Label","Lbl4_JigyoShohiYenKgto4","JigyoShohiYenKgto4",null,4]
[118,4,"Label","Lbl4_JigyoShohiYenKgto5","JigyoShohiYenKgto5",null,5]
[119,4,"Label","Lbl4_JigyoShohiYenKgto6","JigyoShohiYenKgto6",null,6]
[120,4,"Label","Lbl4_JigyoShohiYenKgto7","JigyoShohiYenKgto7",null,7]
[121,4,"Label","Lbl4_JigyoShohiYenKgto8","JigyoShohiYenKgto8",null,8]
[122,4,"Label","Lbl4_JigyoShohiYenKgto9","JigyoShohiYenKgto9",null,9]
[123,4,"Label","Lbl4_JigyoShohiYenKgto10","JigyoShohiYenKgto10",null,10]
[124,4,"Label","Lbl4_KimatsuTanaoroshi","KimatsuTanaoroshi"]
[125,4,"Text","TBx4_KimatsuTanaoroshi1","KimatsuTanaoroshi1","KimatsuTanaoroshi",1,4,null,null,"#,##0.0",4]
[126,4,"Text","TBx4_KimatsuTanaoroshi2","KimatsuTanaoroshi2","KimatsuTanaoroshi",2,4,null,null,"#,##0.0",4]
[127,4,"Text","TBx4_KimatsuTanaoroshi3","KimatsuTanaoroshi3","KimatsuTanaoroshi",3,4,null,null,"#,##0.0",4]
[128,4,"Text","TBx4_KimatsuTanaoroshi4","KimatsuTanaoroshi4","KimatsuTanaoroshi",4,4,null,null,"#,##0.0",4]
[129,4,"Text","TBx4_KimatsuTanaoroshi5","KimatsuTanaoroshi5","KimatsuTanaoroshi",5,4,null,null,"#,##0.0",4]
[130,4,"Text","TBx4_KimatsuTanaoroshi6","KimatsuTanaoroshi6","KimatsuTanaoroshi",6,4,null,null,"#,##0.0",4]
[{"$f":"A131+1","v":131},4,"Text","TBx4_KimatsuTanaoroshi7","KimatsuTanaoroshi7","KimatsuTanaoroshi",7,4,null,null,"#,##0.0",4]
[132,4,"Text","TBx4_KimatsuTanaoroshi8","KimatsuTanaoroshi8","KimatsuTanaoroshi",8,4,null,null,"#,##0.0",4]
[133,4,"Text","TBx4_KimatsuTanaoroshi9","KimatsuTanaoroshi9","KimatsuTanaoroshi",9,4,null,null,"#,##0.0",4]
[134,4,"Text","TBx4_KimatsuTanaoroshi10","KimatsuTanaoroshi10","KimatsuTanaoroshi",10,4,null,null,"#,##0.0",4]
[135,4,"Label","Lbl4_KimatsuTanaoroshiYenKgto1","KimatsuTanaoroshiYenKgto1",null,1]
[136,4,"Label","Lbl4_KimatsuTanaoroshiYenKgto2","KimatsuTanaoroshiYenKgto2",null,2]
[137,4,"Label","Lbl4_KimatsuTanaoroshiYenKgto3","KimatsuTanaoroshiYenKgto3",null,3]
[138,4,"Label","Lbl4_KimatsuTanaoroshiYenKgto4","KimatsuTanaoroshiYenKgto4",null,4]
[139,4,"Label","Lbl4_KimatsuTanaoroshiYenKgto5","KimatsuTanaoroshiYenKgto5",null,5]
[140,4,"Label","Lbl4_KimatsuTanaoroshiYenKgto6","KimatsuTanaoroshiYenKgto6",null,6]
[141,4,"Label","Lbl4_KimatsuTanaoroshiYenKgto7","KimatsuTanaoroshiYenKgto7",null,7]
[142,4,"Label","Lbl4_KimatsuTanaoroshiYenKgto8","KimatsuTanaoroshiYenKgto8",null,8]
[143,4,"Label","Lbl4_KimatsuTanaoroshiYenKgto9","KimatsuTanaoroshiYenKgto9",null,9]
[144,4,"Label","Lbl4_KimatsuTanaoroshiYenKgto10","KimatsuTanaoroshiYenKgto10",null,10]
[145,4,"Label","Lbl4_MikomiNogyoShunyu","MikomiNogyoShunyu"]
[146,4,"Text","TBx4_MikomiNogyoShunyu1","MikomiNogyoShunyu1","MikomiNogyoShunyu",1,4,null,null,"#,##0",4]
[147,4,"Text","TBx4_MikomiNogyoShunyu2","MikomiNogyoShunyu2","MikomiNogyoShunyu",2,4,null,null,"#,##0",4]
[148,4,"Text","TBx4_MikomiNogyoShunyu3","MikomiNogyoShunyu3","MikomiNogyoShunyu",3,4,null,null,"#,##0",4]
[149,4,"Text","TBx4_MikomiNogyoShunyu4","MikomiNogyoShunyu4","MikomiNogyoShunyu",4,4,null,null,"#,##0",4]
[150,4,"Text","TBx4_MikomiNogyoShunyu5","MikomiNogyoShunyu5","MikomiNogyoShunyu",5,4,null,null,"#,##0",4]
[151,4,"Text","TBx4_MikomiNogyoShunyu6","MikomiNogyoShunyu6","MikomiNogyoShunyu",6,4,null,null,"#,##0",4]
[152,4,"Text","TBx4_MikomiNogyoShunyu7","MikomiNogyoShunyu7","MikomiNogyoShunyu",7,4,null,null,"#,##0",4]
[153,4,"Text","TBx4_MikomiNogyoShunyu8","MikomiNogyoShunyu8","MikomiNogyoShunyu",8,4,null,null,"#,##0",4]
[154,4,"Text","TBx4_MikomiNogyoShunyu9","MikomiNogyoShunyu9","MikomiNogyoShunyu",9,4,null,null,"#,##0",4]
[155,4,"Text","TBx4_MikomiNogyoShunyu10","MikomiNogyoShunyu10","MikomiNogyoShunyu",10,4,null,null,"#,##0",4]
[156,4,"Text","TBx4_MikomiNogyoShunyu11","MikomiNogyoShunyu11","MikomiNogyoShunyu",null,4,null,null,"#,##0",4]
[157,4,"Label","Lbl4_MikomiNogyoShunyuYen1","MikomiNogyoShunyuYen1",null,1]
[158,4,"Label","Lbl4_MikomiNogyoShunyuYen2","MikomiNogyoShunyuYen2",null,2]
[159,4,"Label","Lbl4_MikomiNogyoShunyuYen3","MikomiNogyoShunyuYen3",null,3]
[160,4,"Label","Lbl4_MikomiNogyoShunyuYen4","MikomiNogyoShunyuYen4",null,4]
[161,4,"Label","Lbl4_MikomiNogyoShunyuYen5","MikomiNogyoShunyuYen5",null,5]
[162,4,"Label","Lbl4_MikomiNogyoShunyuYen6","MikomiNogyoShunyuYen6",null,6]
[163,4,"Label","Lbl4_MikomiNogyoShunyuYen7","MikomiNogyoShunyuYen7",null,7]
[164,4,"Label","Lbl4_MikomiNogyoShunyuYen8","MikomiNogyoShunyuYen8",null,8]
[165,4,"Label","Lbl4_MikomiNogyoShunyuYen9","MikomiNogyoShunyuYen9",null,9]
[166,4,"Label","Lbl4_MikomiNogyoShunyuYen10","MikomiNogyoShunyuYen10",null,10]
[167,4,"Label","Lbl4_MikomiNogyoShunyuYen11","MikomiNogyoShunyuYen11"]
[168,5,"Label","Lbl5_Meisai1","Meisai1",null,1]
[169,5,"Label","Lbl5_Meisai2","Meisai2",null,2]
[170,5,"Label","Lbl5_Meisai3","Meisai3",null,3]
[171,5,"Label","Lbl5_Meisai4","Meisai4",null,4]
[172,5,"Label","Lbl5_Meisai5","Meisai5",null,5]
[173,5,"Label","Lbl5_Meisai6","Meisai6",null,6]
[174,5,"Label","Lbl5_Meisai7","Meisai7",null,7]
[175,5,"Label","Lbl5_Meisai8","Meisai8",null,8]
[176,5,"Label","Lbl5_Meisai9","Meisai9",null,9]
[177,5,"Label","Lbl5_Meisai10","Meisai10",null,10]
[178,5,"Label","Lbl5_ShuruiHinmoku","ShuruiHinmoku"]
[179,5,"Label","Lbl5_ShuruiHinmoku1","ShuruiHinmoku1",null,1]
[180,5,"Label","Lbl5_ShuruiHinmoku2","ShuruiHinmoku2",null,2]
[181,5,"Label","Lbl5_ShuruiHinmoku3","ShuruiHinmoku3",null,3]
[182,5,"Label","Lbl5_ShuruiHinmoku4","ShuruiHinmoku4",null,4]
[183,5,"Label","Lbl5_ShuruiHinmoku5","ShuruiHinmoku5",null,5]
[184,5,"Label","Lbl5_ShuruiHinmoku6","ShuruiHinmoku6",null,6]
[185,5,"Label","Lbl5_ShuruiHinmoku7","ShuruiHinmoku7",null,7]
[186,5,"Label","Lbl5_ShuruiHinmoku8","ShuruiHinmoku8",null,8]
[187,5,"Label","Lbl5_ShuruiHinmoku9","ShuruiHinmoku9",null,9]
[188,5,"Label","Lbl5_ShuruiHinmoku10","ShuruiHinmoku10",null,10]
[189,5,"Label","Lbl5_Suryobarai","Suryobarai"]
[190,5,"Text","TBx5_Suryobarai1","Suryobarai1","Suryobarai",1,5,null,null,"#,##0",5]
[191,5,"Text","TBx5_Suryobarai2","Suryobarai2","Suryobarai",2,5,null,null,"#,##0",5]
[192,5,"Text","TBx5_Suryobarai3","Suryobarai3","Suryobarai",3,5,null,null,"#,##0",5]
[193,5,"Text","TBx5_Suryobarai4","Suryobarai4","Suryobarai",4,5,null,null,"#,##0",5]
[194,5,"Text","TBx5_Suryobarai5","Suryobarai5","Suryobarai",5,5,null,null,"#,##0",5]
[{"$f":"A195+1","v":195},5,"Text","TBx5_Suryobarai6","Suryobarai6","Suryobarai",6,5,null,null,"#,##0",5]
[196,5,"Text","TBx5_Suryobarai7","Suryobarai7","Suryobarai",7,5,null,null,"#,##0",5]
[197,5,"Text","TBx5_Suryobarai8","Suryobarai8","Suryobarai",8,5,null,null,"#,##0",5]
[198,5,"Text","TBx5_Suryobarai9","Suryobarai9","Suryobarai",9,5,null,null,"#,##0",5]
[199,5,"Text","TBx5_Suryobarai10","Suryobarai10","Suryobarai",10,5,null,null,"#,##0",5]
[200,5,"Label","Lbl5_SuryobaraiYen1","SuryobaraiYen1",null,1]
[201,5,"Label","Lbl5_SuryobaraiYen2","SuryobaraiYen2",null,2]
[202,5,"Label","Lbl5_SuryobaraiYen3","SuryobaraiYen3",null,3]
[203,5,"Label","Lbl5_SuryobaraiYen4","SuryobaraiYen4",null,4]
[204,5,"Label","Lbl5_SuryobaraiYen5","SuryobaraiYen5",null,5]
[205,5,"Label","Lbl5_SuryobaraiYen6","SuryobaraiYen6",null,6]
[206,5,"Label","Lbl5_SuryobaraiYen7","SuryobaraiYen7",null,7]
[207,5,"Label","Lbl5_SuryobaraiYen8","SuryobaraiYen8",null,8]
[208,5,"Label","Lbl5_SuryobaraiYen9","SuryobaraiYen9",null,9]
[209,5,"Label","Lbl5_SuryobaraiYen10","SuryobaraiYen10",null,10]
[210,5,"Label","Lbl5_Mensekibarai","Mensekibarai"]
[211,5,"Text","TBx5_Mensekibarai1","Mensekibarai1","Mensekibarai",1,5,null,null,"#,##0",5]
[212,5,"Text","TBx5_Mensekibarai2","Mensekibarai2","Mensekibarai",2,5,null,null,"#,##0",5]
[213,5,"Text","TBx5_Mensekibarai3","Mensekibarai3","Mensekibarai",3,5,null,null,"#,##0",5]
[214,5,"Text","TBx5_Mensekibarai4","Mensekibarai4","Mensekibarai",4,5,null,null,"#,##0",5]
[215,5,"Text","TBx5_Mensekibarai5","Mensekibarai5","Mensekibarai",5,5,null,null,"#,##0",5]
[216,5,"Text","TBx5_Mensekibarai6","Mensekibarai6","Mensekibarai",6,5,null,null,"#,##0",5]
[217,5,"Text","TBx5_Mensekibarai7","Mensekibarai7","Mensekibarai",7,5,null,null,"#,##0",5]
[218,5,"Text","TBx5_Mensekibarai8","Mensekibarai8","Mensekibarai",8,5,null,null,"#,##0",5]
[219,5,"Text","TBx5_Mensekibarai9","Mensekibarai9","Mensekibarai",9,5,null,null,"#,##0",5]
[220,5,"Text","TBx5_Mensekibarai10","Mensekibarai10","Mensekibarai",10,5,null,null,"#,##0",5]
[221,5,"Label","Lbl5_MensekibaraiYen1","MensekibaraiYen1",null,1]
[222,5,"Label","Lbl5_MensekibaraiYen2","MensekibaraiYen2",null,2]
[223,5,"Label","Lbl5_MensekibaraiYen3","MensekibaraiYen3",null,3]
[224,5,"Label","Lbl5_MensekibaraiYen4","MensekibaraiYen4",null,4]
[225,5,"Label","Lbl5_MensekibaraiYen5","MensekibaraiYen5",null,5]
[226,5,"Label","Lbl5_MensekibaraiYen6","MensekibaraiYen6",null,6]
[227,5,"Label","Lbl5_MensekibaraiYen7","MensekibaraiYen7",null,7]
[228,5,"Label","Lbl5_MensekibaraiYen8","MensekibaraiYen8",null,8]
[229,5,"Label","Lbl5_MensekibaraiYen9","MensekibaraiYen9",null,9]
[230,5,"Label","Lbl5_MensekibaraiYen10","MensekibaraiYen10",null,10]
[231,6,"Frame","Frm6_Sub2","Sub2"]
[232,6,"Check","CBx6_KeieiKeitaiKojin","KeieiKeitaiKojin","KeieiKeitai",null,"6’",true,null,null,6]
[233,6,"Check","CBx6_KeieiKeitaiHojin","KeieiKeitaiHojin","KeieiKeitai",null,"6’",false,null,null,6]
[234,6,"Frame","Frm6_Sub","Sub"]
[235,6,"Image","Img6_AoiroShinkokuUchiwake","AoiroShinkokuUchiwake"]
[236,6,"Label","Lbl6_AoiroShinkokuKubun","AoiroShinkokuKubun"]
[237,6,"Text","TBx6_AoiroShinkokuKubun1","AoiroShinkokuKubun1","AoiroShinkokuKubun",null,6,null,null,null,6]
[238,6,"Text","TBx6_AoiroShinkokuKubun2","AoiroShinkokuKubun2","AoiroShinkokuKubun",null,6,null,null,null,6]
[239,6,"Text","TBx6_AoiroShinkokuKubun3","AoiroShinkokuKubun3","AoiroShinkokuKubun",null,6,null,null,null,6]
[240,6,"Text","TBx6_AoiroShinkokuKubun4","AoiroShinkokuKubun4","AoiroShinkokuKubun",null,6,null,null,null,6]
[241,6,"Text","TBx6_AoiroShinkokuKubun5","AoiroShinkokuKubun5","AoiroShinkokuKubun",null,6,null,null,null,6]
[242,6,"Text","TBx6_AoiroShinkokuKubun6","AoiroShinkokuKubun6","AoiroShinkokuKubun",null,6,null,null,null,6]
[243,6,"Text","TBx6_AoiroShinkokuKubun7","AoiroShinkokuKubun7","AoiroShinkokuKubun",null,6,null,null,null,6]
[244,6,"Text","TBx6_AoiroShinkokuKubun8","AoiroShinkokuKubun8","AoiroShinkokuKubun",null,6,null,null,null,6]
[245,6,"Text","TBx6_AoiroShinkokuKubun9","AoiroShinkokuKubun9","AoiroShinkokuKubun",null,6,null,null,null,6]
[246,6,"Text","TBx6_AoiroShinkokuKubun10","AoiroShinkokuKubun10","AoiroShinkokuKubun",null,6,null,null,null,6]
[247,6,"Label","Lbl6_AoiroShinkokuHanbaiKingaku","AoiroShinkokuHanbaiKingaku"]
[248,6,"Text","TBx6_AoiroShinkokuHanbaiKingaku1","AoiroShinkokuHanbaiKingaku1","AoiroShinkokuHanbaiKingaku",null,6,null,null,"#,##0",6]
[249,6,"Text","TBx6_AoiroShinkokuHanbaiKingaku2","AoiroShinkokuHanbaiKingaku2","AoiroShinkokuHanbaiKingaku",null,6,null,null,"#,##0",6]
[250,6,"Text","TBx6_AoiroShinkokuHanbaiKingaku3","AoiroShinkokuHanbaiKingaku3","AoiroShinkokuHanbaiKingaku",null,6,null,null,"#,##0",6]
[251,6,"Text","TBx6_AoiroShinkokuHanbaiKingaku4","AoiroShinkokuHanbaiKingaku4","AoiroShinkokuHanbaiKingaku",null,6,null,null,"#,##0",6]
[252,6,"Text","TBx6_AoiroShinkokuHanbaiKingaku5","AoiroShinkokuHanbaiKingaku5","AoiroShinkokuHanbaiKingaku",null,6,null,null,"#,##0",6]
[253,6,"Text","TBx6_AoiroShinkokuHanbaiKingaku6","AoiroShinkokuHanbaiKingaku6","AoiroShinkokuHanbaiKingaku",null,6,null,null,"#,##0",6]
[254,6,"Text","TBx6_AoiroShinkokuHanbaiKingaku7","AoiroShinkokuHanbaiKingaku7","AoiroShinkokuHanbaiKingaku",null,6,null,null,"#,##0",6]
[255,6,"Text","TBx6_AoiroShinkokuHanbaiKingaku8","AoiroShinkokuHanbaiKingaku8","AoiroShinkokuHanbaiKingaku",null,6,null,null,"#,##0",6]
[256,6,"Text","TBx6_AoiroShinkokuHanbaiKingaku9","AoiroShinkokuHanbaiKingaku9","AoiroShinkokuHanbaiKingaku",null,6,null,null,"#,##0",6]
[257,6,"Text","TBx6_AoiroShinkokuHanbaiKingaku10","AoiroShinkokuHanbaiKingaku10","AoiroShinkokuHanbaiKingaku",null,6,null,null,"#,##0",6]
[258,6,"Label","Lbl6_AoiroShinkokuHanbaiKingaku11","AoiroShinkokuHanbaiKingaku11"]
[{"$f":"A259+1","v":259},6,"Label","Lbl6_AoiroShinkokuHanbaiKingakuYen1","AoiroShinkokuHanbaiKingakuYen1"]
[260,6,"Label","Lbl6_AoiroShinkokuHanbaiKingakuYen2","AoiroShinkokuHanbaiKingakuYen2"]
[261,6,"Label","Lbl6_AoiroShinkokuHanbaiKingakuYen3","AoiroShinkokuHanbaiKingakuYen3"]
[262,6,"Label","Lbl6_AoiroShinkokuHanbaiKingakuYen4","AoiroShinkokuHanbaiKingakuYen4"]
[263,6,"Label","Lbl6_AoiroShinkokuHanbaiKingakuYen5","AoiroShinkokuHanbaiKingakuYen5"]
[264,6,"Label","Lbl6_AoiroShinkokuHanbaiKingakuYen6","AoiroShinkokuHanbaiKingakuYen6"]
[265,6,"Label","Lbl6_AoiroShinkokuHanbaiKingakuYen7","AoiroShinkokuHanbaiKingakuYen7"]
[266,6,"Label","Lbl6_AoiroShinkokuHanbaiKingakuYen8","AoiroShinkokuHanbaiKingakuYen8"]
[267,6,"Label","Lbl6_AoiroShinkokuHanbaiKingakuYen9","AoiroShinkokuHanbaiKingakuYen9"]
[268,6,"Label","Lbl6_AoiroShinkokuHanbaiKingakuYen10","AoiroShinkokuHanbaiKingakuYen10"]
[269,6,"Label","Lbl6_AoiroShinkokuHanbaiKingakuYen11","AoiroShinkokuHanbaiKingakuYen11"]
[270,6,"Label","Lbl6_ShuruiHinmoku","ShuruiHinmoku"]
[271,6,"Label","Lbl6_Meisai1","Meisai1","Meisai",1]
[272,6,"Label","Lbl6_Meisai2","Meisai2","Meisai",2]
[273,6,"Label","Lbl6_Meisai3","Meisai3","Meisai",3]
[274,6,"Label","Lbl6_Meisai4","Meisai4","Meisai",4]
[275,6,"Label","Lbl6_Meisai5","Meisai5","Meisai",5]
[276,6,"Label","Lbl6_Meisai6","Meisai6","Meisai",6]
[277,6,"Label","Lbl6_Meisai7","Meisai7","Meisai",7]
[278,6,"Label","Lbl6_Meisai8","Meisai8","Meisai",8]
[279,6,"Label","Lbl6_Meisai9","Meisai9","Meisai",9]
[280,6,"Label","Lbl6_Meisai10","Meisai10","Meisai",10]
[281,6,"Label","Lbl6_Meisai11","Meisai11"]
[282,6,"Label","Lbl6_ShuruiHinmoku1","ShuruiHinmoku1","ShuruiHinmoku",1]
[283,6,"Label","Lbl6_ShuruiHinmoku2","ShuruiHinmoku2","ShuruiHinmoku",2]
[284,6,"Label","Lbl6_ShuruiHinmoku3","ShuruiHinmoku3","ShuruiHinmoku",3]
[285,6,"Label","Lbl6_ShuruiHinmoku4","ShuruiHinmoku4","ShuruiHinmoku",4]
[286,6,"Label","Lbl6_ShuruiHinmoku5","ShuruiHinmoku5","ShuruiHinmoku",5]
[287,6,"Label","Lbl6_ShuruiHinmoku6","ShuruiHinmoku6","ShuruiHinmoku",6]
[288,6,"Label","Lbl6_ShuruiHinmoku7","ShuruiHinmoku7","ShuruiHinmoku",7]
[289,6,"Label","Lbl6_ShuruiHinmoku8","ShuruiHinmoku8","ShuruiHinmoku",8]
[290,6,"Label","Lbl6_ShuruiHinmoku9","ShuruiHinmoku9","ShuruiHinmoku",9]
[291,6,"Label","Lbl6_ShuruiHinmoku10","ShuruiHinmoku10","ShuruiHinmoku",10]
[292,6,"Label","Lbl6_HanbaiKingaku","HanbaiKingaku"]
[293,6,"Label","Lbl6_HanbaiKingaku_1","HanbaiKingaku_1"]
[294,6,"Text","TBx6_HanbaiKingaku1","HanbaiKingaku1","HanbaiKingaku",1,6,null,null,"#,##0",6]
[295,6,"Text","TBx6_HanbaiKingaku2","HanbaiKingaku2","HanbaiKingaku",2,6,null,null,"#,##0",6]
[296,6,"Text","TBx6_HanbaiKingaku3","HanbaiKingaku3","HanbaiKingaku",3,6,null,null,"#,##0",6]
[297,6,"Text","TBx6_HanbaiKingaku4","HanbaiKingaku4","HanbaiKingaku",4,6,null,null,"#,##0",6]
[298,6,"Text","TBx6_HanbaiKingaku5","HanbaiKingaku5","HanbaiKingaku",5,6,null,null,"#,##0",6]
[299,6,"Text","TBx6_HanbaiKingaku6","HanbaiKingaku6","HanbaiKingaku",6,6,null,null,"#,##0",6]
[300,6,"Text","TBx6_HanbaiKingaku7","HanbaiKingaku7","HanbaiKingaku",7,6,null,null,"#,##0",6]
[301,6,"Text","TBx6_HanbaiKingaku8","HanbaiKingaku8","HanbaiKingaku",8,6,null,null,"#,##0",6]
[302,6,"Text","TBx6_HanbaiKingaku9","HanbaiKingaku9","HanbaiKingaku",9,6,null,null,"#,##0",6]
[303,6,"Text","TBx6_HanbaiKingaku10","HanbaiKingaku10","HanbaiKingaku",10,6,null,null,"#,##0",6]
[304,6,"Label","Lbl6_HanbaiKingaku11","HanbaiKingaku11"]
[305,6,"Label","Lbl6_HanbaiKingakuYen1","HanbaiKingakuYen1",null,1]
[306,6,"Label","Lbl6_HanbaiKingakuYen2","HanbaiKingakuYen2",null,2]
[307,6,"Label","Lbl6_HanbaiKingakuYen3","HanbaiKingakuYen3",null,3]
[308,6,"Label","Lbl6_HanbaiKingakuYen4","HanbaiKingakuYen4",null,4]
[309,6,"Label","Lbl6_HanbaiKingakuYen5","HanbaiKingakuYen5",null,5]
[310,6,"Label","Lbl6_HanbaiKingakuYen6","HanbaiKingakuYen6",null,6]
[311,6,"Label","Lbl6_HanbaiKingakuYen7","HanbaiKingakuYen7",null,7]
[312,6,"Label","Lbl6_HanbaiKingakuYen8","HanbaiKingakuYen8",null,8]
[313,6,"Label","Lbl6_HanbaiKingakuYen9","HanbaiKingakuYen9",null,9]
[314,6,"Label","Lbl6_HanbaiKingakuYen10","HanbaiKingakuYen10",null,10]
[315,6,"Label","Lbl6_HanbaiKingakuYen11","HanbaiKingakuYen11"]
[316,6,"Label","Lbl6_HanbaiKingakuJogai","HanbaiKingakuJogai"]
[317,6,"Label","Lbl6_HanbaiKingakuJogai_1","HanbaiKingakuJogai_1"]
[318,6,"Label","Lbl6_HanbaiKingakuJogai_2","HanbaiKingakuJogai_2"]
[319,6,"Text","TBx6_HanbaiKingakuJogai1","HanbaiKingakuJogai1","HanbaiKingakuJogai",1,6,null,null,"#,##0",6]
[320,6,"Text","TBx6_HanbaiKingakuJogai2","HanbaiKingakuJogai2","HanbaiKingakuJogai",2,6,null,null,"#,##0",6]
[321,6,"Text","TBx6_HanbaiKingakuJogai3","HanbaiKingakuJogai3","HanbaiKingakuJogai",3,6,null,null,"#,##0",6]
[322,6,"Text","TBx6_HanbaiKingakuJogai4","HanbaiKingakuJogai4","HanbaiKingakuJogai",4,6,null,null,"#,##0",6]
[{"$f":"A323+1","v":323},6,"Text","TBx6_HanbaiKingakuJogai5","HanbaiKingakuJogai5","HanbaiKingakuJogai",5,6,null,null,"#,##0",6]
[324,6,"Text","TBx6_HanbaiKingakuJogai6","HanbaiKingakuJogai6","HanbaiKingakuJogai",6,6,null,null,"#,##0",6]
[325,6,"Text","TBx6_HanbaiKingakuJogai7","HanbaiKingakuJogai7","HanbaiKingakuJogai",7,6,null,null,"#,##0",6]
[326,6,"Text","TBx6_HanbaiKingakuJogai8","HanbaiKingakuJogai8","HanbaiKingakuJogai",8,6,null,null,"#,##0",6]
[327,6,"Text","TBx6_HanbaiKingakuJogai9","HanbaiKingakuJogai9","HanbaiKingakuJogai",9,6,null,null,"#,##0",6]
[328,6,"Text","TBx6_HanbaiKingakuJogai10","HanbaiKingakuJogai10","HanbaiKingakuJogai",10,6,null,null,"#,##0",6]
[329,6,"Label","Lbl6_HanbaiKingakuJogai11","HanbaiKingakuJogai11"]
[330,6,"Label","Lbl6_HanbaiKingakuJogaiYen1","HanbaiKingakuJogaiYen1",null,1]
[331,6,"Label","Lbl6_HanbaiKingakuJogaiYen2","HanbaiKingakuJogaiYen2",null,2]
[332,6,"Label","Lbl6_HanbaiKingakuJogaiYen3","HanbaiKingakuJogaiYen3",null,3]
[333,6,"Label","Lbl6_HanbaiKingakuJogaiYen4","HanbaiKingakuJogaiYen4",null,4]
[334,6,"Label","Lbl6_HanbaiKingakuJogaiYen5","HanbaiKingakuJogaiYen5",null,5]
[335,6,"Label","Lbl6_HanbaiKingakuJogaiYen6","HanbaiKingakuJogaiYen6",null,6]
[336,6,"Label","Lbl6_HanbaiKingakuJogaiYen7","HanbaiKingakuJogaiYen7",null,7]
[337,6,"Label","Lbl6_HanbaiKingakuJogaiYen8","HanbaiKingakuJogaiYen8",null,8]
[338,6,"Label","Lbl6_HanbaiKingakuJogaiYen9","HanbaiKingakuJogaiYen9",null,9]
[339,6,"Label","Lbl6_HanbaiKingakuJogaiYen10","HanbaiKingakuJogaiYen10",null,10]
[340,6,"Label","Lbl6_HanbaiKingakuJogaiYen11","HanbaiKingakuJogaiYen11"]
[341,6,"Label","Lbl6_ZatsushunyuHanbai","ZatsushunyuHanbai"]
[342,6,"Label","Lbl6_ZatsushunyuHanbai_1","ZatsushunyuHanbai_1"]
[343,6,"Label","Lbl6_ZatsushunyuHanbai_2","ZatsushunyuHanbai_2"]
[344,6,"Label","Lbl6_ZatsushunyuHanbaiSuryo","ZatsushunyuHanbaiSuryo"]
[345,6,"Label","Lbl6_ZatsushunyuHanbaiSuryo1","ZatsushunyuHanbaiSuryo1","ZatsushunyuHanbaiSuryo",1]
[346,6,"Label","Lbl6_ZatsushunyuHanbaiSuryo2","ZatsushunyuHanbaiSuryo2","ZatsushunyuHanbaiSuryo",2]
[347,6,"Label","Lbl6_ZatsushunyuHanbaiSuryo3","ZatsushunyuHanbaiSuryo3","ZatsushunyuHanbaiSuryo",3]
[348,6,"Label","Lbl6_ZatsushunyuHanbaiSuryo4","ZatsushunyuHanbaiSuryo4","ZatsushunyuHanbaiSuryo",4]
[349,6,"Label","Lbl6_ZatsushunyuHanbaiSuryo5","ZatsushunyuHanbaiSuryo5","ZatsushunyuHanbaiSuryo",5]
[350,6,"Label","Lbl6_ZatsushunyuHanbaiSuryo6","ZatsushunyuHanbaiSuryo6","ZatsushunyuHanbaiSuryo",6]
[351,6,"Label","Lbl6_ZatsushunyuHanbaiSuryo7","ZatsushunyuHanbaiSuryo7","ZatsushunyuHanbaiSuryo",7]
[352,6,"Label","Lbl6_ZatsushunyuHanbaiSuryo8","ZatsushunyuHanbaiSuryo8","ZatsushunyuHanbaiSuryo",8]
[353,6,"Label","Lbl6_ZatsushunyuHanbaiSuryo9","ZatsushunyuHanbaiSuryo9","ZatsushunyuHanbaiSuryo",9]
[354,6,"Label","Lbl6_ZatsushunyuHanbaiSuryo10","ZatsushunyuHanbaiSuryo10","ZatsushunyuHanbaiSuryo",10]
[355,6,"Label","Lbl6_ZatsushunyuHanbaiSuryo11","ZatsushunyuHanbaiSuryo11"]
[356,6,"Text","TBx6_SuryobaraiMensekibarai1","SuryobaraiMensekibarai1","SuryobaraiMensekibarai",1,6,null,null,"#,##0",6]
[357,6,"Text","TBx6_SuryobaraiMensekibarai2","SuryobaraiMensekibarai2","SuryobaraiMensekibarai",2,6,null,null,"#,##0",6]
[358,6,"Text","TBx6_SuryobaraiMensekibarai3","SuryobaraiMensekibarai3","SuryobaraiMensekibarai",3,6,null,null,"#,##0",6]
[359,6,"Text","TBx6_SuryobaraiMensekibarai4","SuryobaraiMensekibarai4","SuryobaraiMensekibarai",4,6,null,null,"#,##0",6]
[360,6,"Text","TBx6_SuryobaraiMensekibarai5","SuryobaraiMensekibarai5","SuryobaraiMensekibarai",5,6,null,null,"#,##0",6]
[361,6,"Text","TBx6_SuryobaraiMensekibarai6","SuryobaraiMensekibarai6","SuryobaraiMensekibarai",6,6,null,null,"#,##0",6]
[362,6,"Text","TBx6_SuryobaraiMensekibarai7","SuryobaraiMensekibarai7","SuryobaraiMensekibarai",7,6,null,null,"#,##0",6]
[363,6,"Text","TBx6_SuryobaraiMensekibarai8","SuryobaraiMensekibarai8","SuryobaraiMensekibarai",8,6,null,null,"#,##0",6]
[364,6,"Text","TBx6_SuryobaraiMensekibarai9","SuryobaraiMensekibarai9","SuryobaraiMensekibarai",9,6,null,null,"#,##0",6]
[365,6,"Text","TBx6_SuryobaraiMensekibarai10","SuryobaraiMensekibarai10","SuryobaraiMensekibarai",10,6,null,null,"#,##0",6]
[366,6,"Label","Lbl6_ZatsushunyuHanbaiSuryo11","SuryobaraiMensekibarai11"]
[367,6,"Label","Lbl6_ZatsushunyuHanbaiSuryoYen1","ZatsushunyuHanbaiSuryoYen1",null,1]
[368,6,"Label","Lbl6_ZatsushunyuHanbaiSuryoYen2","ZatsushunyuHanbaiSuryoYen2",null,2]
[369,6,"Label","Lbl6_ZatsushunyuHanbaiSuryoYen3","ZatsushunyuHanbaiSuryoYen3",null,3]
[370,6,"Label","Lbl6_ZatsushunyuHanbaiSuryoYen4","ZatsushunyuHanbaiSuryoYen4",null,4]
[371,6,"Label","Lbl6_ZatsushunyuHanbaiSuryoYen5","ZatsushunyuHanbaiSuryoYen5",null,5]
[372,6,"Label","Lbl6_ZatsushunyuHanbaiSuryoYen6","ZatsushunyuHanbaiSuryoYen6",null,6]
[373,6,"Label","Lbl6_ZatsushunyuHanbaiSuryoYen7","ZatsushunyuHanbaiSuryoYen7",null,7]
[374,6,"Label","Lbl6_ZatsushunyuHanbaiSuryoYen8","ZatsushunyuHanbaiSuryoYen8",null,8]
[375,6,"Label","Lbl6_ZatsushunyuHanbaiSuryoYen9","ZatsushunyuHanbaiSuryoYen9",null,9]
[376,6,"Label","Lbl6_ZatsushunyuHanbaiSuryoYen10","ZatsushunyuHanbaiSuryoYen10",null,10]
[377,6,"Label","Lbl6_ZatsushunyuHanbaiSuryoYen11","ZatsushunyuHanbaiSuryoYen11"]
[378,6,"Label","Lbl6_ZatsushunyuHanbaiSonota","ZatsushunyuHanbaiSonota"]
[379,6,"Text","TBx6_ZatsushunyuHanbaiSonota1","ZatsushunyuHanbaiSonota1","ZatsushunyuHanbaiSonota",1,6,null,null,"#,##0",6]
[380,6,"Text","TBx6_ZatsushunyuHanbaiSonota2","ZatsushunyuHanbaiSonota2","ZatsushunyuHanbaiSonota",2,6,null,null,"#,##0",6]
[381,6,"Text","TBx6_ZatsushunyuHanbaiSonota3","ZatsushunyuHanbaiSonota3","ZatsushunyuHanbaiSonota",3,6,null,null,"#,##0",6]
[382,6,"Text","TBx6_ZatsushunyuHanbaiSonota4","ZatsushunyuHanbaiSonota4","ZatsushunyuHanbaiSonota",4,6,null,null,"#,##0",6]
[383,6,"Text","TBx6_ZatsushunyuHanbaiSonota5","ZatsushunyuHanbaiSonota5","ZatsushunyuHanbaiSonota",5,6,null,null,"#,##0",6]
[384,6,"Text","TBx6_ZatsushunyuHanbaiSonota6","ZatsushunyuHanbaiSonota6","ZatsushunyuHanbaiSonota",6,6,null,null,"#,##0",6]
[385,6,"Text","TBx6_ZatsushunyuHanbaiSonota7","ZatsushunyuHanbaiSonota7","ZatsushunyuHanbaiSonota",7,6,null,null,"#,##0",6]
[386,6,"Text","TBx6_ZatsushunyuHanbaiSonota8","ZatsushunyuHanbaiSonota8","ZatsushunyuHanbaiSonota",8,6,null,null,"#,##0",6]
[{"$f":"A387+1","v":387},6,"Text","TBx6_ZatsushunyuHanbaiSonota9","ZatsushunyuHanbaiSonota9","ZatsushunyuHanbaiSonota",9,6,null,null,"#,##0",6]
[388,6,"Text","TBx6_ZatsushunyuHanbaiSonota10","ZatsushunyuHanbaiSonota10","ZatsushunyuHanbaiSonota",10,6,null,null,"#,##0",6]
[389,6,"Label","Lbl6_ZatsushunyuHanbaiSonota11","ZatsushunyuHanbaiSonota11"]
[390,6,"Label","Lbl6_ZatsushunyuHanbaiSonotaYen1","ZatsushunyuHanbaiSonotaYen1",null,1]
[391,6,"Label","Lbl6_ZatsushunyuHanbaiSonotaYen2","ZatsushunyuHanbaiSonotaYen2",null,2]
[392,6,"Label","Lbl6_ZatsushunyuHanbaiSonotaYen3","ZatsushunyuHanbaiSonotaYen3",null,3]
[393,6,"Label","Lbl6_ZatsushunyuHanbaiSonotaYen4","ZatsushunyuHanbaiSonotaYen4",null,4]
[394,6,"Label","Lbl6_ZatsushunyuHanbaiSonotaYen5","ZatsushunyuHanbaiSonotaYen5",null,5]
[395,6,"Label","Lbl6_ZatsushunyuHanbaiSonotaYen6","ZatsushunyuHanbaiSonotaYen6",null,6]
[396,6,"Label","Lbl6_ZatsushunyuHanbaiSonotaYen7","ZatsushunyuHanbaiSonotaYen7",null,7]
[397,6,"Label","Lbl6_ZatsushunyuHanbaiSonotaYen8","ZatsushunyuHanbaiSonotaYen8",null,8]
[398,6,"Label","Lbl6_ZatsushunyuHanbaiSonotaYen9","ZatsushunyuHanbaiSonotaYen9",null,9]
[399,6,"Label","Lbl6_ZatsushunyuHanbaiSonotaYen10","ZatsushunyuHanbaiSonotaYen10",null,10]
[400,6,"Label","Lbl6_ZatsushunyuHanbaiSonotaYen11","ZatsushunyuHanbaiSonotaYen11"]
[401,6,"Label","Lbl6_ShunyuKingakuShinkoku","ShunyuKingakuShinkoku"]
[402,6,"Label","Lbl6_ShunyuKingakuShinkoku_1","ShunyuKingakuShinkoku_1"]
[403,6,"Label","Lbl6_ShunyuKingakuShinkoku_2","ShunyuKingakuShinkoku_2"]
[404,6,"Label","Lbl6_ShunyuKingakuShinkoku_3","ShunyuKingakuShinkoku_3"]
[405,6,"Label","Lbl6_ShunyuKingakuShinkoku1","ShunyuKingakuShinkoku1","ShunyuKingakuShinkoku",1]
[406,6,"Label","Lbl6_ShunyuKingakuShinkoku2","ShunyuKingakuShinkoku2","ShunyuKingakuShinkoku",2]
[407,6,"Label","Lbl6_ShunyuKingakuShinkoku3","ShunyuKingakuShinkoku3","ShunyuKingakuShinkoku",3]
[408,6,"Label","Lbl6_ShunyuKingakuShinkoku4","ShunyuKingakuShinkoku4","ShunyuKingakuShinkoku",4]
[409,6,"Label","Lbl6_ShunyuKingakuShinkoku5","ShunyuKingakuShinkoku5","ShunyuKingakuShinkoku",5]
[410,6,"Label","Lbl6_ShunyuKingakuShinkoku6","ShunyuKingakuShinkoku6","ShunyuKingakuShinkoku",6]
[411,6,"Label","Lbl6_ShunyuKingakuShinkoku7","ShunyuKingakuShinkoku7","ShunyuKingakuShinkoku",7]
[412,6,"Label","Lbl6_ShunyuKingakuShinkoku8","ShunyuKingakuShinkoku8","ShunyuKingakuShinkoku",8]
[413,6,"Label","Lbl6_ShunyuKingakuShinkoku9","ShunyuKingakuShinkoku9","ShunyuKingakuShinkoku",9]
[414,6,"Label","Lbl6_ShunyuKingakuShinkoku10","ShunyuKingakuShinkoku10","ShunyuKingakuShinkoku",10]
[415,6,"Label","Lbl6_ShunyuKingakuShinkoku11","ShunyuKingakuShinkoku11"]
[416,6,"Label","Lbl6_ShunyuKingakuShinkokuYen1","ShunyuKingakuShinkokuYen1",null,1]
[417,6,"Label","Lbl6_ShunyuKingakuShinkokuYen2","ShunyuKingakuShinkokuYen2",null,2]
[418,6,"Label","Lbl6_ShunyuKingakuShinkokuYen3","ShunyuKingakuShinkokuYen3",null,3]
[419,6,"Label","Lbl6_ShunyuKingakuShinkokuYen4","ShunyuKingakuShinkokuYen4",null,4]
[420,6,"Label","Lbl6_ShunyuKingakuShinkokuYen5","ShunyuKingakuShinkokuYen5",null,5]
[421,6,"Label","Lbl6_ShunyuKingakuShinkokuYen6","ShunyuKingakuShinkokuYen6",null,6]
[422,6,"Label","Lbl6_ShunyuKingakuShinkokuYen7","ShunyuKingakuShinkokuYen7",null,7]
[423,6,"Label","Lbl6_ShunyuKingakuShinkokuYen8","ShunyuKingakuShinkokuYen8",null,8]
[424,6,"Label","Lbl6_ShunyuKingakuShinkokuYen9","ShunyuKingakuShinkokuYen9",null,9]
[425,6,"Label","Lbl6_ShunyuKingakuShinkokuYen10","ShunyuKingakuShinkokuYen10",null,10]
[426,6,"Label","Lbl6_ShunyuKingakuShinkokuYen11","ShunyuKingakuShinkokuYen11"]
[427,7,"Label","Lbl7_Meisai1","Meisai1","Meisai",1]
[428,7,"Label","Lbl7_Meisai2","Meisai2","Meisai",2]
[429,7,"Label","Lbl7_Meisai3","Meisai3","Meisai",3]
[430,7,"Label","Lbl7_Meisai4","Meisai4","Meisai",4]
[431,7,"Label","Lbl7_Meisai5","Meisai5","Meisai",5]
[432,7,"Label","Lbl7_Meisai6","Meisai6","Meisai",6]
[433,7,"Label","Lbl7_Meisai7","Meisai7","Meisai",7]
[434,7,"Label","Lbl7_Meisai8","Meisai8","Meisai",8]
[435,7,"Label","Lbl7_Meisai9","Meisai9","Meisai",9]
[436,7,"Label","Lbl7_Meisai10","Meisai10","Meisai",10]
[437,7,"Label","Lbl7_Meisai11","Meisai11"]
[438,7,"Label","Lbl7_ShuruiHinmoku","ShuruiHinmoku"]
[439,7,"Label","Lbl7_ShuruiHinmoku1","ShuruiHinmoku1","ShuruiHinmoku",1]
[440,7,"Label","Lbl7_ShuruiHinmoku2","ShuruiHinmoku2","ShuruiHinmoku",2]
[441,7,"Label","Lbl7_ShuruiHinmoku3","ShuruiHinmoku3","ShuruiHinmoku",3]
[442,7,"Label","Lbl7_ShuruiHinmoku4","ShuruiHinmoku4","ShuruiHinmoku",4]
[443,7,"Label","Lbl7_ShuruiHinmoku5","ShuruiHinmoku5","ShuruiHinmoku",5]
[444,7,"Label","Lbl7_ShuruiHinmoku6","ShuruiHinmoku6","ShuruiHinmoku",6]
[445,7,"Label","Lbl7_ShuruiHinmoku7","ShuruiHinmoku7","ShuruiHinmoku",7]
[446,7,"Label","Lbl7_ShuruiHinmoku8","ShuruiHinmoku8","ShuruiHinmoku",8]
[447,7,"Label","Lbl7_ShuruiHinmoku9","ShuruiHinmoku9","ShuruiHinmoku",9]
[448,7,"Label","Lbl7_ShuruiHinmoku10","ShuruiHinmoku10","ShuruiHinmoku",10]
[449,7,"Label","Lbl7_KishuTanaoroshi","KishuTanaoroshi"]
[450,7,"Label","Lbl7_KishuTanaoroshi1","KishuTanaoroshi1","KishuTanaoroshi",1]
[{"$f":"A451+1","v":451},7,"Label","Lbl7_KishuTanaoroshi2","KishuTanaoroshi2","KishuTanaoroshi",2]
[452,7,"Label","Lbl7_KishuTanaoroshi3","KishuTanaoroshi3","KishuTanaoroshi",3]
[453,7,"Label","Lbl7_KishuTanaoroshi4","KishuTanaoroshi4","KishuTanaoroshi",4]
[454,7,"Label","Lbl7_KishuTanaoroshi5","KishuTanaoroshi5","KishuTanaoroshi",5]
[455,7,"Label","Lbl7_KishuTanaoroshi6","KishuTanaoroshi6","KishuTanaoroshi",6]
[456,7,"Label","Lbl7_KishuTanaoroshi7","KishuTanaoroshi7","KishuTanaoroshi",7]
[457,7,"Label","Lbl7_KishuTanaoroshi8","KishuTanaoroshi8","KishuTanaoroshi",8]
[458,7,"Label","Lbl7_KishuTanaoroshi9","KishuTanaoroshi9","KishuTanaoroshi",9]
[459,7,"Label","Lbl7_KishuTanaoroshi10","KishuTanaoroshi10","KishuTanaoroshi",10]
[460,7,"Label","Lbl7_KishuTanaoroshi11","KishuTanaoroshi11"]
[461,7,"Label","Lbl7_KishuTanaoroshiYen1","KishuTanaoroshiYen1",null,1]
[462,7,"Label","Lbl7_KishuTanaoroshiYen2","KishuTanaoroshiYen2",null,2]
[463,7,"Label","Lbl7_KishuTanaoroshiYen3","KishuTanaoroshiYen3",null,3]
[464,7,"Label","Lbl7_KishuTanaoroshiYen4","KishuTanaoroshiYen4",null,4]
[465,7,"Label","Lbl7_KishuTanaoroshiYen5","KishuTanaoroshiYen5",null,5]
[466,7,"Label","Lbl7_KishuTanaoroshiYen6","KishuTanaoroshiYen6",null,6]
[467,7,"Label","Lbl7_KishuTanaoroshiYen7","KishuTanaoroshiYen7",null,7]
[468,7,"Label","Lbl7_KishuTanaoroshiYen8","KishuTanaoroshiYen8",null,8]
[469,7,"Label","Lbl7_KishuTanaoroshiYen9","KishuTanaoroshiYen9",null,9]
[470,7,"Label","Lbl7_KishuTanaoroshiYen10","KishuTanaoroshiYen10",null,10]
[471,7,"Label","Lbl7_KishuTanaoroshiYen11","KishuTanaoroshiYen11"]
[472,7,"Label","Lbl7_ShunyuKingakuShinkoku","ShunyuKingakuShinkoku"]
[473,7,"Label","Lbl7_ShunyuKingakuShinkoku1","ShunyuKingakuShinkoku1","ShunyuKingakuShinkoku",1]
[474,7,"Label","Lbl7_ShunyuKingakuShinkoku2","ShunyuKingakuShinkoku2","ShunyuKingakuShinkoku",2]
[475,7,"Label","Lbl7_ShunyuKingakuShinkoku3","ShunyuKingakuShinkoku3","ShunyuKingakuShinkoku",3]
[476,7,"Label","Lbl7_ShunyuKingakuShinkoku4","ShunyuKingakuShinkoku4","ShunyuKingakuShinkoku",4]
[477,7,"Label","Lbl7_ShunyuKingakuShinkoku5","ShunyuKingakuShinkoku5","ShunyuKingakuShinkoku",5]
[478,7,"Label","Lbl7_ShunyuKingakuShinkoku6","ShunyuKingakuShinkoku6","ShunyuKingakuShinkoku",6]
[479,7,"Label","Lbl7_ShunyuKingakuShinkoku7","ShunyuKingakuShinkoku7","ShunyuKingakuShinkoku",7]
[480,7,"Label","Lbl7_ShunyuKingakuShinkoku8","ShunyuKingakuShinkoku8","ShunyuKingakuShinkoku",8]
[481,7,"Label","Lbl7_ShunyuKingakuShinkoku9","ShunyuKingakuShinkoku9","ShunyuKingakuShinkoku",9]
[482,7,"Label","Lbl7_ShunyuKingakuShinkoku10","ShunyuKingakuShinkoku10","ShunyuKingakuShinkoku",10]
[483,7,"Label","Lbl7_ShunyuKingakuShinkoku11","ShunyuKingakuShinkoku11"]
[484,7,"Label","Lbl7_ShunyuKingakuShinkokuYen1","ShunyuKingakuShinkokuYen1",null,1]
[485,7,"Label","Lbl7_ShunyuKingakuShinkokuYen2","ShunyuKingakuShinkokuYen2",null,2]
[486,7,"Label","Lbl7_ShunyuKingakuShinkokuYen3","ShunyuKingakuShinkokuYen3",null,3]
[487,7,"Label","Lbl7_ShunyuKingakuShinkokuYen4","ShunyuKingakuShinkokuYen4",null,4]
[488,7,"Label","Lbl7_ShunyuKingakuShinkokuYen5","ShunyuKingakuShinkokuYen5",null,5]
[489,7,"Label","Lbl7_ShunyuKingakuShinkokuYen6","ShunyuKingakuShinkokuYen6",null,6]
[490,7,"Label","Lbl7_ShunyuKingakuShinkokuYen7","ShunyuKingakuShinkokuYen7",null,7]
[491,7,"Label","Lbl7_ShunyuKingakuShinkokuYen8","ShunyuKingakuShinkokuYen8",null,8]
[492,7,"Label","Lbl7_ShunyuKingakuShinkokuYen9","ShunyuKingakuShinkokuYen9",null,9]
[493,7,"Label","Lbl7_ShunyuKingakuShinkokuYen10","ShunyuKingakuShinkokuYen10",null,10]
[494,7,"Label","Lbl7_ShunyuKingakuShinkokuYen11","ShunyuKingakuShinkokuYen11"]
[495,7,"Label","Lbl7_JigyoShohiSuryo","JigyoShohiSuryo"]
[496,7,"Text","TBx7_JigyoShohiSuryo1","JigyoShohiSuryo1","JigyoShohiSuryo",1,7,null,null,"#,##0",7]
[497,7,"Text","TBx7_JigyoShohiSuryo2","JigyoShohiSuryo2","JigyoShohiSuryo",2,7,null,null,"#,##0",7]
[498,7,"Text","TBx7_JigyoShohiSuryo3","JigyoShohiSuryo3","JigyoShohiSuryo",3,7,null,null,"#,##0",7]
[499,7,"Text","TBx7_JigyoShohiSuryo4","JigyoShohiSuryo4","JigyoShohiSuryo",4,7,null,null,"#,##0",7]
[500,7,"Text","TBx7_JigyoShohiSuryo5","JigyoShohiSuryo5","JigyoShohiSuryo",5,7,null,null,"#,##0",7]
[501,7,"Text","TBx7_JigyoShohiSuryo6","JigyoShohiSuryo6","JigyoShohiSuryo",6,7,null,null,"#,##0",7]
[502,7,"Text","TBx7_JigyoShohiSuryo7","JigyoShohiSuryo7","JigyoShohiSuryo",7,7,null,null,"#,##0",7]
[503,7,"Text","TBx7_JigyoShohiSuryo8","JigyoShohiSuryo8","JigyoShohiSuryo",8,7,null,null,"#,##0",7]
[504,7,"Text","TBx7_JigyoShohiSuryo9","JigyoShohiSuryo9","JigyoShohiSuryo",9,7,null,null,"#,##0",7]
[505,7,"Text","TBx7_JigyoShohiSuryo10","JigyoShohiSuryo10","JigyoShohiSuryo",10,7,null,null,"#,##0",7]
[506,7,"Label","Lbl7_JigyoShohiSuryoKgto1","JigyoShohiSuryoKgto1",null,1]
[507,7,"Label","Lbl7_JigyoShohiSuryoKgto2","JigyoShohiSuryoKgto2",null,2]
[508,7,"Label","Lbl7_JigyoShohiSuryoKgto3","JigyoShohiSuryoKgto3",null,3]
[509,7,"Label","Lbl7_JigyoShohiSuryoKgto4","JigyoShohiSuryoKgto4",null,4]
[510,7,"Label","Lbl7_JigyoShohiSuryoKgto5","JigyoShohiSuryoKgto5",null,5]
[511,7,"Label","Lbl7_JigyoShohiSuryoKgto6","JigyoShohiSuryoKgto6",null,6]
[512,7,"Label","Lbl7_JigyoShohiSuryoKgto7","JigyoShohiSuryoKgto7",null,7]
[513,7,"Label","Lbl7_JigyoShohiSuryoKgto8","JigyoShohiSuryoKgto8",null,8]
[514,7,"Label","Lbl7_JigyoShohiSuryoKgto9","JigyoShohiSuryoKgto9",null,9]
[{"$f":"A515+1","v":515},7,"Label","Lbl7_JigyoShohiSuryoKgto10","JigyoShohiSuryoKgto10",null,10]
[516,7,"Label","LBl7_JigyoShohiKingaku","JigyoShohiKingaku"]
[517,7,"Label","Lbl7_JigyoShohiKingaku1","JigyoShohiKingaku1","JigyoShohiKingaku",1]
[518,7,"Label","Lbl7_JigyoShohiKingaku2","JigyoShohiKingaku2","JigyoShohiKingaku",2]
[519,7,"Label","Lbl7_JigyoShohiKingaku3","JigyoShohiKingaku3","JigyoShohiKingaku",3]
[520,7,"Label","Lbl7_JigyoShohiKingaku4","JigyoShohiKingaku4","JigyoShohiKingaku",4]
[521,7,"Label","Lbl7_JigyoShohiKingaku5","JigyoShohiKingaku5","JigyoShohiKingaku",5]
[522,7,"Label","Lbl7_JigyoShohiKingaku6","JigyoShohiKingaku6","JigyoShohiKingaku",6]
[523,7,"Label","Lbl7_JigyoShohiKingaku7","JigyoShohiKingaku7","JigyoShohiKingaku",7]
[524,7,"Label","Lbl7_JigyoShohiKingaku8","JigyoShohiKingaku8","JigyoShohiKingaku",8]
[525,7,"Label","Lbl7_JigyoShohiKingaku9","JigyoShohiKingaku9","JigyoShohiKingaku",9]
[526,7,"Label","Lbl7_JigyoShohiKingaku10","JigyoShohiKingaku10","JigyoShohiKingaku",10]
[527,7,"Label","Lbl7_JigyoShohiKingaku11","JigyoShohiKingaku11"]
[528,7,"Label","Lbl7_JigyoShohiKingakuYen1","JigyoShohiKingakuYen1",null,1]
[529,7,"Label","Lbl7_JigyoShohiKingakuYen2","JigyoShohiKingakuYen2",null,2]
[530,7,"Label","Lbl7_JigyoShohiKingakuYen3","JigyoShohiKingakuYen3",null,3]
[531,7,"Label","Lbl7_JigyoShohiKingakuYen4","JigyoShohiKingakuYen4",null,4]
[532,7,"Label","Lbl7_JigyoShohiKingakuYen5","JigyoShohiKingakuYen5",null,5]
[533,7,"Label","Lbl7_JigyoShohiKingakuYen6","JigyoShohiKingakuYen6",null,6]
[534,7,"Label","Lbl7_JigyoShohiKingakuYen7","JigyoShohiKingakuYen7",null,7]
[535,7,"Label","Lbl7_JigyoShohiKingakuYen8","JigyoShohiKingakuYen8",null,8]
[536,7,"Label","Lbl7_JigyoShohiKingakuYen9","JigyoShohiKingakuYen9",null,9]
[537,7,"Label","Lbl7_JigyoShohiKingakuYen10","JigyoShohiKingakuYen10",null,10]
[538,7,"Label","Lbl7_JigyoShohiKingakuYen11","JigyoShohiKingakuYen11"]
[539,7,"Label","LBl7_KimatsuTanaoroshiSuryo","KimatsuTanaoroshiSuryo"]
[540,7,"Text","TBx7_KimatsuTanaoroshiSuryo1","KimatsuTanaoroshiSuryo1","KimatsuTanaoroshiSuryo",1,7,null,null,"#,##0",7]
[541,7,"Text","TBx7_KimatsuTanaoroshiSuryo2","KimatsuTanaoroshiSuryo2","KimatsuTanaoroshiSuryo",2,7,null,null,"#,##0",7]
[542,7,"Text","TBx7_KimatsuTanaoroshiSuryo3","KimatsuTanaoroshiSuryo3","KimatsuTanaoroshiSuryo",3,7,null,null,"#,##0",7]
[543,7,"Text","TBx7_KimatsuTanaoroshiSuryo4","KimatsuTanaoroshiSuryo4","KimatsuTanaoroshiSuryo",4,7,null,null,"#,##0",7]
[544,7,"Text","TBx7_KimatsuTanaoroshiSuryo5","KimatsuTanaoroshiSuryo5","KimatsuTanaoroshiSuryo",5,7,null,null,"#,##0",7]
[545,7,"Text","TBx7_KimatsuTanaoroshiSuryo6","KimatsuTanaoroshiSuryo6","KimatsuTanaoroshiSuryo",6,7,null,null,"#,##0",7]
[546,7,"Text","TBx7_KimatsuTanaoroshiSuryo7","KimatsuTanaoroshiSuryo7","KimatsuTanaoroshiSuryo",7,7,null,null,"#,##0",7]
[547,7,"Text","TBx7_KimatsuTanaoroshiSuryo8","KimatsuTanaoroshiSuryo8","KimatsuTanaoroshiSuryo",8,7,null,null,"#,##0",7]
[548,7,"Text","TBx7_KimatsuTanaoroshiSuryo9","KimatsuTanaoroshiSuryo9","KimatsuTanaoroshiSuryo",9,7,null,null,"#,##0",7]
[549,7,"Text","TBx7_KimatsuTanaoroshiSuryo10","KimatsuTanaoroshiSuryo10","KimatsuTanaoroshiSuryo",10,7,null,null,"#,##0",7]
[550,7,"Label","Lbl7_KimatsuTanaoroshiSuryoKgto1","KimatsuTanaoroshiSuryoKgto1",null,1]
[551,7,"Label","Lbl7_KimatsuTanaoroshiSuryoKgto2","KimatsuTanaoroshiSuryoKgto2",null,2]
[552,7,"Label","Lbl7_KimatsuTanaoroshiSuryoKgto3","KimatsuTanaoroshiSuryoKgto3",null,3]
[553,7,"Label","Lbl7_KimatsuTanaoroshiSuryoKgto4","KimatsuTanaoroshiSuryoKgto4",null,4]
[554,7,"Label","Lbl7_KimatsuTanaoroshiSuryoKgto5","KimatsuTanaoroshiSuryoKgto5",null,5]
[555,7,"Label","Lbl7_KimatsuTanaoroshiSuryoKgto6","KimatsuTanaoroshiSuryoKgto6",null,6]
[556,7,"Label","Lbl7_KimatsuTanaoroshiSuryoKgto7","KimatsuTanaoroshiSuryoKgto7",null,7]
[557,7,"Label","Lbl7_KimatsuTanaoroshiSuryoKgto8","KimatsuTanaoroshiSuryoKgto8",null,8]
[558,7,"Label","Lbl7_KimatsuTanaoroshiSuryoKgto9","KimatsuTanaoroshiSuryoKgto9",null,9]
[559,7,"Label","Lbl7_KimatsuTanaoroshiSuryoKgto10","KimatsuTanaoroshiSuryoKgto10",null,10]
[560,7,"Label","Lbl7_KimatsuTanaoroshiKingaku_1","KimatsuTanaoroshiKingaku_1"]
[561,7,"Label","Lbl7_KimatsuTanaoroshiKingaku1","KimatsuTanaoroshiKingaku1","KimatsuTanaoroshiKingaku",1]
[562,7,"Label","Lbl7_KimatsuTanaoroshiKingaku2","KimatsuTanaoroshiKingaku2","KimatsuTanaoroshiKingaku",2]
[563,7,"Label","Lbl7_KimatsuTanaoroshiKingaku3","KimatsuTanaoroshiKingaku3","KimatsuTanaoroshiKingaku",3]
[564,7,"Label","Lbl7_KimatsuTanaoroshiKingaku4","KimatsuTanaoroshiKingaku4","KimatsuTanaoroshiKingaku",4]
[565,7,"Label","Lbl7_KimatsuTanaoroshiKingaku5","KimatsuTanaoroshiKingaku5","KimatsuTanaoroshiKingaku",5]
[566,7,"Label","Lbl7_KimatsuTanaoroshiKingaku6","KimatsuTanaoroshiKingaku6","KimatsuTanaoroshiKingaku",6]
[567,7,"Label","Lbl7_KimatsuTanaoroshiKingaku7","KimatsuTanaoroshiKingaku7","KimatsuTanaoroshiKingaku",7]
[568,7,"Label","Lbl7_KimatsuTanaoroshiKingaku8","KimatsuTanaoroshiKingaku8","KimatsuTanaoroshiKingaku",8]
[569,7,"Label","Lbl7_KimatsuTanaoroshiKingaku9","KimatsuTanaoroshiKingaku9","KimatsuTanaoroshiKingaku",9]
[570,7,"Label","Lbl7_KimatsuTanaoroshiKingaku10","KimatsuTanaoroshiKingaku10","KimatsuTanaoroshiKingaku",10]
[571,7,"Label","Lbl7_KimatsuTanaoroshiKingaku11","KimatsuTanaoroshiKingaku11"]
[572,7,"Label","Lbl7_KimatsuTanaoroshiKingakuYen1","KimatsuTanaoroshiKingakuYen1",null,1]
[573,7,"Label","Lbl7_KimatsuTanaoroshiKingakuYen2","KimatsuTanaoroshiKingakuYen2",null,2]
[574,7,"Label","Lbl7_KimatsuTanaoroshiKingakuYen3","KimatsuTanaoroshiKingakuYen3",null,3]
[575,7,"Label","Lbl7_KimatsuTanaoroshiKingakuYen4","KimatsuTanaoroshiKingakuYen4",null,4]
[576,7,"Label","Lbl7_KimatsuTanaoroshiKingakuYen5","KimatsuTanaoroshiKingakuYen5",null,5]
[577,7,"Label","Lbl7_KimatsuTanaoroshiKingakuYen6","KimatsuTanaoroshiKingakuYen6",null,6]
[578,7,"Label","Lbl7_KimatsuTanaoroshiKingakuYen7","KimatsuTanaoroshiKingakuYen7",null,7]
[{"$f":"A579+1","v":579},7,"Label","Lbl7_KimatsuTanaoroshiKingakuYen8","KimatsuTanaoroshiKingakuYen8",null,8]
[580,7,"Label","Lbl7_KimatsuTanaoroshiKingakuYen9","KimatsuTanaoroshiKingakuYen9",null,9]
[581,7,"Label","Lbl7_KimatsuTanaoroshiKingakuYen10","KimatsuTanaoroshiKingakuYen10",null,10]
[582,7,"Label","Lbl7_KimatsuTanaoroshiKingakuYen11","KimatsuTanaoroshiKingakuYen11"]
[583,8,"Label","LBl8_Baishokin","Baishokin"]
[584,8,"Check","CBx8_Baishokin1","Baishokin1",null,null,"8’",null,null,null,8]
[585,8,"Check","CBx8_Baishokin2","Baishokin2",null,null,"8’",null,null,null,8]
[586,8,"Text","TBx8_BaishokinKingaku","BaishokinKingaku",null,null,8,false,null,"#,##0",8]
[587,8,"Label","Lbl8_BaishokinKingakuYen","BaishokinKingakuYen",null,null,null,false]
[588,8,"Label","LBl8_HotenChosei","HotenChosei"]
[589,8,"Check","CBx8_HotenChosei1","HotenChosei1",null,null,"8’",null,null,null,8]
[590,8,"Check","CBx8_HotenChosei2","HotenChosei2",null,null,"8’",null,null,null,8]
[591,8,"Text","TBx8_HotenChoseigaku","HotenChoseigaku",null,null,8,false,null,"#,##0",8]
[592,8,"Label","LBl8_HotenChoseigakuYen","HotenChoseigakuYen",null,null,null,false]
[593,9,"Label","Lbl9_Meisai1","Meisai1","Meisai",1]
[594,9,"Label","Lbl9_Meisai2","Meisai2","Meisai",2]
[595,9,"Label","Lbl9_Meisai3","Meisai3","Meisai",3]
[596,9,"Label","Lbl9_Meisai4","Meisai4","Meisai",4]
[597,9,"Label","Lbl9_Meisai5","Meisai5","Meisai",5]
[598,9,"Label","Lbl9_Meisai6","Meisai6","Meisai",6]
[599,9,"Label","Lbl9_Meisai7","Meisai7","Meisai",7]
[600,9,"Label","Lbl9_Meisai8","Meisai8","Meisai",8]
[601,9,"Label","Lbl9_Meisai9","Meisai9","Meisai",9]
[602,9,"Label","Lbl9_Meisai10","Meisai10","Meisai",10]
[603,9,"Label","Lbl9_Meisai11","Meisai11"]
[604,9,"Label","Lbl9_ShuruiHinmoku","ShuruiHinmoku"]
[605,9,"Label","Lbl9_ShuruiHinmoku1","ShuruiHinmoku1","ShuruiHinmoku",1]
[606,9,"Label","Lbl9_ShuruiHinmoku2","ShuruiHinmoku2","ShuruiHinmoku",2]
[607,9,"Label","Lbl9_ShuruiHinmoku3","ShuruiHinmoku3","ShuruiHinmoku",3]
[608,9,"Label","Lbl9_ShuruiHinmoku4","ShuruiHinmoku4","ShuruiHinmoku",4]
[609,9,"Label","Lbl9_ShuruiHinmoku5","ShuruiHinmoku5","ShuruiHinmoku",5]
[610,9,"Label","Lbl9_ShuruiHinmoku6","ShuruiHinmoku6","ShuruiHinmoku",6]
[611,9,"Label","Lbl9_ShuruiHinmoku7","ShuruiHinmoku7","ShuruiHinmoku",7]
[612,9,"Label","Lbl9_ShuruiHinmoku8","ShuruiHinmoku8","ShuruiHinmoku",8]
[613,9,"Label","Lbl9_ShuruiHinmoku9","ShuruiHinmoku9","ShuruiHinmoku",9]
[614,9,"Label","Lbl9_ShuruiHinmoku10","ShuruiHinmoku10","ShuruiHinmoku",10]
[615,9,"Label","Lbl9_KishuTanaoroshi","KishuTanaoroshi"]
[616,9,"Label","Lbl9_KishuTanaoroshi_1","KishuTanaoroshi_1"]
[617,9,"Label","Lbl9_KishuTanaoroshiLbl1","KishuTanaoroshiLbl1","KishuTanaoroshiLbl",1]
[618,9,"Label","Lbl9_KishuTanaoroshiLbl2","KishuTanaoroshiLbl2","KishuTanaoroshiLbl",2]
[619,9,"Label","Lbl9_KishuTanaoroshiLbl3","KishuTanaoroshiLbl3","KishuTanaoroshiLbl",3]
[620,9,"Label","Lbl9_KishuTanaoroshiLbl4","KishuTanaoroshiLbl4","KishuTanaoroshiLbl",4]
[621,9,"Label","Lbl9_KishuTanaoroshiLbl5","KishuTanaoroshiLbl5","KishuTanaoroshiLbl",5]
[622,9,"Label","Lbl9_KishuTanaoroshiLbl6","KishuTanaoroshiLbl6","KishuTanaoroshiLbl",6]
[623,9,"Label","Lbl9_KishuTanaoroshiLbl7","KishuTanaoroshiLbl7","KishuTanaoroshiLbl",7]
[624,9,"Label","Lbl9_KishuTanaoroshiLbl8","KishuTanaoroshiLbl8","KishuTanaoroshiLbl",8]
[625,9,"Label","Lbl9_KishuTanaoroshiLbl9","KishuTanaoroshiLbl9","KishuTanaoroshiLbl",9]
[626,9,"Label","Lbl9_KishuTanaoroshiLbl10","KishuTanaoroshiLbl10","KishuTanaoroshiLbl",10]
[627,9,"Label","Lbl9_KishuTanaoroshiLbl11","KishuTanaoroshiLbl11"]
[628,9,"Label","Lbl9_KishuTanaoroshiYen1","KishuTanaoroshiYen1",null,1]
[629,9,"Label","Lbl9_KishuTanaoroshiYen2","KishuTanaoroshiYen2",null,2]
[630,9,"Label","Lbl9_KishuTanaoroshiYen3","KishuTanaoroshiYen3",null,3]
[631,9,"Label","Lbl9_KishuTanaoroshiYen4","KishuTanaoroshiYen4",null,4]
[632,9,"Label","Lbl9_KishuTanaoroshiYen5","KishuTanaoroshiYen5",null,5]
[633,9,"Label","Lbl9_KishuTanaoroshiYen6","KishuTanaoroshiYen6",null,6]
[634,9,"Label","Lbl9_KishuTanaoroshiYen7","KishuTanaoroshiYen7",null,7]
[635,9,"Label","Lbl9_KishuTanaoroshiYen8","KishuTanaoroshiYen8",null,8]
[636,9,"Label","Lbl9_KishuTanaoroshiYen9","KishuTanaoroshiYen9",null,9]
[637,9,"Label","Lbl9_KishuTanaoroshiYen10","KishuTanaoroshiYen10",null,10]
[638,9,"Label","Lbl9_KishuTanaoroshiYen11","KishuTanaoroshiYen11"]
[639,9,"Label","Lbl9_HanbaiKingaku","HanbaiKingaku"]
[640,9,"Label","Lbl9_HanbaiKingaku_1","HanbaiKingaku_2"]
[641,9,"Label","Lbl9_HanbaiKingakuLbl1","HanbaiKingakuLbl1","HanbaiKingakuLbl",1]
[642,9,"Label","Lbl9_HanbaiKingakuLbl2","HanbaiKingakuLbl2","HanbaiKingakuLbl",2]
[{"$f":"A643+1","v":643},9,"Label","Lbl9_HanbaiKingakuLbl3","HanbaiKingakuLbl3","HanbaiKingakuLbl",3]
[644,9,"Label","Lbl9_HanbaiKingakuLbl4","HanbaiKingakuLbl4","HanbaiKingakuLbl",4]
[645,9,"Label","Lbl9_HanbaiKingakuLbl5","HanbaiKingakuLbl5","HanbaiKingakuLbl",5]
[646,9,"Label","Lbl9_HanbaiKingakuLbl6","HanbaiKingakuLbl6","HanbaiKingakuLbl",6]
[647,9,"Label","Lbl9_HanbaiKingakuLbl7","HanbaiKingakuLbl7","HanbaiKingakuLbl",7]
[648,9,"Label","Lbl9_HanbaiKingakuLbl8","HanbaiKingakuLbl8","HanbaiKingakuLbl",8]
[649,9,"Label","Lbl9_HanbaiKingakuLbl9","HanbaiKingakuLbl9","HanbaiKingakuLbl",9]
[650,9,"Label","Lbl9_HanbaiKingakuLbl10","HanbaiKingakuLbl10","HanbaiKingakuLbl",10]
[651,9,"Label","Lbl9_HanbaiKingakuLbl11","HanbaiKingakuLbl11"]
[652,9,"Label","Lbl9_HanbaiKingakuYen1","HanbaiKingakuYen1",null,1]
[653,9,"Label","Lbl9_HanbaiKingakuYen2","HanbaiKingakuYen2",null,2]
[654,9,"Label","Lbl9_HanbaiKingakuYen3","HanbaiKingakuYen3",null,3]
[655,9,"Label","Lbl9_HanbaiKingakuYen4","HanbaiKingakuYen4",null,4]
[656,9,"Label","Lbl9_HanbaiKingakuYen5","HanbaiKingakuYen5",null,5]
[657,9,"Label","Lbl9_HanbaiKingakuYen6","HanbaiKingakuYen6",null,6]
[658,9,"Label","Lbl9_HanbaiKingakuYen7","HanbaiKingakuYen7",null,7]
[659,9,"Label","Lbl9_HanbaiKingakuYen8","HanbaiKingakuYen8",null,8]
[660,9,"Label","Lbl9_HanbaiKingakuYen9","HanbaiKingakuYen9",null,9]
[661,9,"Label","Lbl9_HanbaiKingakuYen10","HanbaiKingakuYen10",null,10]
[662,9,"Label","Lbl9_HanbaiKingakuYen11","HanbaiKingakuYen11"]
[663,9,"Label","Lbl9_JigyoShohiKingaku","JigyoShohiKingaku"]
[664,9,"Label","Lbl9_JigyoShohiKingaku_1","JigyoShohiKingaku_2"]
[665,9,"Label","Lbl9_JigyoShohiKingakuLbl1","JigyoShohiKingakuLbl1","JigyoShohiKingakuLbl",1]
[666,9,"Label","Lbl9_JigyoShohiKingakuLbl2","JigyoShohiKingakuLbl2","JigyoShohiKingakuLbl",2]
[667,9,"Label","Lbl9_JigyoShohiKingakuLbl3","JigyoShohiKingakuLbl3","JigyoShohiKingakuLbl",3]
[668,9,"Label","Lbl9_JigyoShohiKingakuLbl4","JigyoShohiKingakuLbl4","JigyoShohiKingakuLbl",4]
[669,9,"Label","Lbl9_JigyoShohiKingakuLbl5","JigyoShohiKingakuLbl5","JigyoShohiKingakuLbl",5]
[670,9,"Label","Lbl9_JigyoShohiKingakuLbl6","JigyoShohiKingakuLbl6","JigyoShohiKingakuLbl",6]
[671,9,"Label","Lbl9_JigyoShohiKingakuLbl7","JigyoShohiKingakuLbl7","JigyoShohiKingakuLbl",7]
[672,9,"Label","Lbl9_JigyoShohiKingakuLbl8","JigyoShohiKingakuLbl8","JigyoShohiKingakuLbl",8]
[673,9,"Label","Lbl9_JigyoShohiKingakuLbl9","JigyoShohiKingakuLbl9","JigyoShohiKingakuLbl",9]
[674,9,"Label","Lbl9_JigyoShohiKingakuLbl10","JigyoShohiKingakuLbl10","JigyoShohiKingakuLbl",10]
[675,9,"Label","Lbl9_JigyoShohiKingakuLbl11","JigyoShohiKingakuLbl11"]
[676,9,"Label","Lbl9_JigyoShohiKingakuYen1","JigyoShohiKingakuYen1",null,1]
[677,9,"Label","Lbl9_JigyoShohiKingakuYen2","JigyoShohiKingakuYen2",null,2]
[678,9,"Label","Lbl9_JigyoShohiKingakuYen3","JigyoShohiKingakuYen3",null,3]
[679,9,"Label","Lbl9_JigyoShohiKingakuYen4","JigyoShohiKingakuYen4",null,4]
[680,9,"Label","Lbl9_JigyoShohiKingakuYen5","JigyoShohiKingakuYen5",null,5]
[681,9,"Label","Lbl9_JigyoShohiKingakuYen6","JigyoShohiKingakuYen6",null,6]
[682,9,"Label","Lbl9_JigyoShohiKingakuYen7","JigyoShohiKingakuYen7",null,7]
[683,9,"Label","Lbl9_JigyoShohiKingakuYen8","JigyoShohiKingakuYen8",null,8]
[684,9,"Label","Lbl9_JigyoShohiKingakuYen9","JigyoShohiKingakuYen9",null,9]
[685,9,"Label","Lbl9_JigyoShohiKingakuYen10","JigyoShohiKingakuYen10",null,10]
[686,9,"Label","Lbl9_JigyoShohiKingakuYen11","JigyoShohiKingakuYen11"]
[687,9,"Label","Lbl9_KimatsuTanaoroshi","KimatsuTanaoroshi"]
[688,9,"Label","Lbl9_KimatsuTanaoroshi_1","KimatsuTanaoroshi_1"]
[689,9,"Label","Lbl9_KimatsuTanaoroshiKingakuLbl1","KimatsuTanaoroshiKingakuLbl1","KimatsuTanaoroshiKingakuLbl",1]
[690,9,"Label","Lbl9_KimatsuTanaoroshiKingakuLbl2","KimatsuTanaoroshiKingakuLbl2","KimatsuTanaoroshiKingakuLbl",2]
[691,9,"Label","Lbl9_KimatsuTanaoroshiKingakuLbl3","KimatsuTanaoroshiKingakuLbl3","KimatsuTanaoroshiKingakuLbl",3]
[692,9,"Label","Lbl9_KimatsuTanaoroshiKingakuLbl4","KimatsuTanaoroshiKingakuLbl4","KimatsuTanaoroshiKingakuLbl",4]
[693,9,"Label","Lbl9_KimatsuTanaoroshiKingakuLbl5","KimatsuTanaoroshiKingakuLbl5","KimatsuTanaoroshiKingakuLbl",5]
[694,9,"Label","Lbl9_KimatsuTanaoroshiKingakuLbl6","KimatsuTanaoroshiKingakuLbl6","KimatsuTanaoroshiKingakuLbl",6]
[695,9,"Label","Lbl9_KimatsuTanaoroshiKingakuLbl7","KimatsuTanaoroshiKingakuLbl7","KimatsuTanaoroshiKingakuLbl",7]
[696,9,"Label","Lbl9_KimatsuTanaoroshiKingakuLbl8","KimatsuTanaoroshiKingakuLbl8","KimatsuTanaoroshiKingakuLbl",8]
[697,9,"Label","Lbl9_KimatsuTanaoroshiKingakuLbl9","KimatsuTanaoroshiKingakuLbl9","KimatsuTanaoroshiKingakuLbl",9]
[698,9,"Label","Lbl9_KimatsuTanaoroshiKingakuLbl10","KimatsuTanaoroshiKingakuLbl10","KimatsuTanaoroshiKingakuLbl",10]
[699,9,"Label","Lbl9_KimatsuTanaoroshiKingakuLbl11","KimatsuTanaoroshiKingakuLbl11"]
[700,9,"Label","Lbl9_KimatsuTanaoroshiYen1","KimatsuTanaoroshiYen1",null,1]
[701,9,"Label","Lbl9_KimatsuTanaoroshiYen2","KimatsuTanaoroshiYen2",null,2]
[702,9,"Label","Lbl9_KimatsuTanaoroshiYen3","KimatsuTanaoroshiYen3",null,3]
[703,9,"Label","Lbl9_KimatsuTanaoroshiYen4","KimatsuTanaoroshiYen4",null,4]
[704,9,"Label","Lbl9_KimatsuTanaoroshiYen5","KimatsuTanaoroshiYen5",null,5]
[705,9,"Label","Lbl9_KimatsuTanaoroshiYen6","KimatsuTanaoroshiYen6",null,6]
[706,9,"Label","Lbl9_KimatsuTanaoroshiYen7","KimatsuTanaoroshiYen7",null,7]
[{"$f":"A707+1","v":707},9,"Label","Lbl9_KimatsuTanaoroshiYen8","KimatsuTanaoroshiYen8",null,8]
[708,9,"Label","Lbl9_KimatsuTanaoroshiYen9","KimatsuTanaoroshiYen9",null,9]
[709,9,"Label","Lbl9_KimatsuTanaoroshiYen10","KimatsuTanaoroshiYen10",null,10]
[710,9,"Label","Lbl9_KimatsuTanaoroshiYen11","KimatsuTanaoroshiYen11"]
[711,9,"Label","Lbl9_SuryobaraiChosei","SuryobaraiChosei","SuryobaraiChosei"]
[712,9,"Label","Lbl9_SuryobaraiChosei_1","SuryobaraiChosei_1","SuryobaraiChosei"]
[713,9,"Label","Lbl9_SuryobaraiChosei1","SuryobaraiChosei1","SuryobaraiChosei",1]
[714,9,"Label","Lbl9_SuryobaraiChosei2","SuryobaraiChosei2","SuryobaraiChosei",2]
[715,9,"Label","Lbl9_SuryobaraiChosei3","SuryobaraiChosei3","SuryobaraiChosei",3]
[716,9,"Label","Lbl9_SuryobaraiChosei4","SuryobaraiChosei4","SuryobaraiChosei",4]
[717,9,"Label","Lbl9_SuryobaraiChosei5","SuryobaraiChosei5","SuryobaraiChosei",5]
[718,9,"Label","Lbl9_SuryobaraiChosei6","SuryobaraiChosei6","SuryobaraiChosei",6]
[719,9,"Label","Lbl9_SuryobaraiChosei7","SuryobaraiChosei7","SuryobaraiChosei",7]
[720,9,"Label","Lbl9_SuryobaraiChosei8","SuryobaraiChosei8","SuryobaraiChosei",8]
[721,9,"Label","Lbl9_SuryobaraiChosei9","SuryobaraiChosei9","SuryobaraiChosei",9]
[722,9,"Label","Lbl9_SuryobaraiChosei10","SuryobaraiChosei10","SuryobaraiChosei",10]
[723,9,"Label","Lbl9_SuryobaraiChosei11","SuryobaraiChosei11","SuryobaraiChosei"]
[724,9,"Label","Lbl9_SuryobaraiChoseiYen1","SuryobaraiChoseiYen1",null,1]
[725,9,"Label","Lbl9_SuryobaraiChoseiYen2","SuryobaraiChoseiYen2",null,2]
[726,9,"Label","Lbl9_SuryobaraiChoseiYen3","SuryobaraiChoseiYen3",null,3]
[727,9,"Label","Lbl9_SuryobaraiChoseiYen4","SuryobaraiChoseiYen4",null,4]
[728,9,"Label","Lbl9_SuryobaraiChoseiYen5","SuryobaraiChoseiYen5",null,5]
[729,9,"Label","Lbl9_SuryobaraiChoseiYen6","SuryobaraiChoseiYen6",null,6]
[730,9,"Label","Lbl9_SuryobaraiChoseiYen7","SuryobaraiChoseiYen7",null,7]
[731,9,"Label","Lbl9_SuryobaraiChoseiYen8","SuryobaraiChoseiYen8",null,8]
[732,9,"Label","Lbl9_SuryobaraiChoseiYen9","SuryobaraiChoseiYen9",null,9]
[733,9,"Label","Lbl9_SuryobaraiChoseiYen10","SuryobaraiChoseiYen10",null,10]
[734,9,"Label","Lbl9_SuryobaraiChoseiYen11","SuryobaraiChoseiYen11"]
[735,9,"Label","Lbl9_NogyoShunyuKingaku","NogyoShunyuKingaku"]
[736,9,"Label","Lbl9_NogyoShunyuKingaku_1","NogyoShunyuKingaku_1"]
[737,9,"Label","Lbl9_NogyoShunyuKingaku_2","NogyoShunyuKingaku_2"]
[738,9,"Label","Lbl9_NogyoShunyuKingaku1","NogyoShunyuKingaku1","NogyoShunyuKingaku",1]
[739,9,"Label","Lbl9_NogyoShunyuKingaku2","NogyoShunyuKingaku2","NogyoShunyuKingaku",2]
[740,9,"Label","Lbl9_NogyoShunyuKingaku3","NogyoShunyuKingaku3","NogyoShunyuKingaku",3]
[741,9,"Label","Lbl9_NogyoShunyuKingaku4","NogyoShunyuKingaku4","NogyoShunyuKingaku",4]
[742,9,"Label","Lbl9_NogyoShunyuKingaku5","NogyoShunyuKingaku5","NogyoShunyuKingaku",5]
[743,9,"Label","Lbl9_NogyoShunyuKingaku6","NogyoShunyuKingaku6","NogyoShunyuKingaku",6]
[744,9,"Label","Lbl9_NogyoShunyuKingaku7","NogyoShunyuKingaku7","NogyoShunyuKingaku",7]
[745,9,"Label","Lbl9_NogyoShunyuKingaku8","NogyoShunyuKingaku8","NogyoShunyuKingaku",8]
[746,9,"Label","Lbl9_NogyoShunyuKingaku9","NogyoShunyuKingaku9","NogyoShunyuKingaku",9]
[747,9,"Label","Lbl9_NogyoShunyuKingaku10","NogyoShunyuKingaku10","NogyoShunyuKingaku",10]
[748,9,"Label","Lbl9_NogyoShunyuKingaku11","NogyoShunyuKingaku11"]
[749,9,"Label","Lbl9_NogyoShunyuKingakuYen1","NogyoShunyuKingakuYen1",null,1]
[750,9,"Label","Lbl9_NogyoShunyuKingakuYen2","NogyoShunyuKingakuYen2",null,2]
[751,9,"Label","Lbl9_NogyoShunyuKingakuYen3","NogyoShunyuKingakuYen3",null,3]
[752,9,"Label","Lbl9_NogyoShunyuKingakuYen4","NogyoShunyuKingakuYen4",null,4]
[753,9,"Label","Lbl9_NogyoShunyuKingakuYen5","NogyoShunyuKingakuYen5",null,5]
[754,9,"Label","Lbl9_NogyoShunyuKingakuYen6","NogyoShunyuKingakuYen6",null,6]
[755,9,"Label","Lbl9_NogyoShunyuKingakuYen7","NogyoShunyuKingakuYen7",null,7]
[756,9,"Label","Lbl9_NogyoShunyuKingakuYen8","NogyoShunyuKingakuYen8",null,8]
[757,9,"Label","Lbl9_NogyoShunyuKingakuYen9","NogyoShunyuKingakuYen9",null,9]
[758,9,"Label","Lbl9_NogyoShunyuKingakuYen10","NogyoShunyuKingakuYen10",null,10]
[759,9,"Label","Lbl9_NogyoShunyuKingakuYen11","NogyoShunyuKingakuYen11"]
[760,9,"Label","Lbl9_MikomiNogyoShunyu","MikomiNogyoShunyu"]
[761,9,"Label","Lbl9_MikomiNogyoShunyu_1","MikomiNogyoShunyu_1"]
[762,9,"Label","Lbl9_MikomiNogyoShunyu1","MikomiNogyoShunyu1","MikomiNogyoShunyu",1]
[763,9,"Label","Lbl9_MikomiNogyoShunyu2","MikomiNogyoShunyu2","MikomiNogyoShunyu",2]
[764,9,"Label","Lbl9_MikomiNogyoShunyu3","MikomiNogyoShunyu3","MikomiNogyoShunyu",3]
[765,9,"Label","Lbl9_MikomiNogyoShunyu4","MikomiNogyoShunyu4","MikomiNogyoShunyu",4]
[766,9,"Label","Lbl9_MikomiNogyoShunyu5","MikomiNogyoShunyu5","MikomiNogyoShunyu",5]
[767,9,"Label","Lbl9_MikomiNogyoShunyu6","MikomiNogyoShunyu6","MikomiNogyoShunyu",6]
[768,9,"Label","Lbl9_MikomiNogyoShunyu7","MikomiNogyoShunyu7","MikomiNogyoShunyu",7]
[769,9,"Label","Lbl9_MikomiNogyoShunyu8","MikomiNogyoShunyu8","MikomiNogyoShunyu",8]
[770,9,"Label","Lbl9_MikomiNogyoShunyu9","MikomiNogyoShunyu9","MikomiNogyoShunyu",9]
[{"$f":"A771+1","v":771},9,"Label","Lbl9_MikomiNogyoShunyu10","MikomiNogyoShunyu10","MikomiNogyoShunyu",10]
[772,9,"Label","Lbl9_MikomiNogyoShunyu11","MikomiNogyoShunyu11"]
[773,9,"Label","Lbl9_MikomiNogyoShunyuYen1","MikomiNogyoShunyuYen1",null,1]
[774,9,"Label","Lbl9_MikomiNogyoShunyuYen2","MikomiNogyoShunyuYen2",null,2]
[775,9,"Label","Lbl9_MikomiNogyoShunyuYen3","MikomiNogyoShunyuYen3",null,3]
[776,9,"Label","Lbl9_MikomiNogyoShunyuYen4","MikomiNogyoShunyuYen4",null,4]
[777,9,"Label","Lbl9_MikomiNogyoShunyuYen5","MikomiNogyoShunyuYen5",null,5]
[778,9,"Label","Lbl9_MikomiNogyoShunyuYen6","MikomiNogyoShunyuYen6",null,6]
[779,9,"Label","Lbl9_MikomiNogyoShunyuYen7","MikomiNogyoShunyuYen7",null,7]
[780,9,"Label","Lbl9_MikomiNogyoShunyuYen8","MikomiNogyoShunyuYen8",null,8]
[781,9,"Label","Lbl9_MikomiNogyoShunyuYen9","MikomiNogyoShunyuYen9",null,9]
[782,9,"Label","Lbl9_MikomiNogyoShunyuYen10","MikomiNogyoShunyuYen10",null,10]
[783,9,"Label","Lbl9_MikomiNogyoShunyuYen11","MikomiNogyoShunyuYen11"]
[784,9,"Label","Lbl9_NogyoShunyuZogengaku","NogyoShunyuZogengaku"]
[785,9,"Label","Lbl9_NogyoShunyuZogengaku_1","NogyoShunyuZogengaku_1"]
[786,9,"Label","Lbl9_NogyoShunyuZogengaku1","NogyoShunyuZogengaku1","NogyoShunyuZogengaku",1]
[787,9,"Label","Lbl9_NogyoShunyuZogengaku2","NogyoShunyuZogengaku2","NogyoShunyuZogengaku",2]
[788,9,"Label","Lbl9_NogyoShunyuZogengaku3","NogyoShunyuZogengaku3","NogyoShunyuZogengaku",3]
[789,9,"Label","Lbl9_NogyoShunyuZogengaku4","NogyoShunyuZogengaku4","NogyoShunyuZogengaku",4]
[790,9,"Label","Lbl9_NogyoShunyuZogengaku5","NogyoShunyuZogengaku5","NogyoShunyuZogengaku",5]
[791,9,"Label","Lbl9_NogyoShunyuZogengaku6","NogyoShunyuZogengaku6","NogyoShunyuZogengaku",6]
[792,9,"Label","Lbl9_NogyoShunyuZogengaku7","NogyoShunyuZogengaku7","NogyoShunyuZogengaku",7]
[793,9,"Label","Lbl9_NogyoShunyuZogengaku8","NogyoShunyuZogengaku8","NogyoShunyuZogengaku",8]
[794,9,"Label","Lbl9_NogyoShunyuZogengaku9","NogyoShunyuZogengaku9","NogyoShunyuZogengaku",9]
[795,9,"Label","Lbl9_NogyoShunyuZogengaku10","NogyoShunyuZogengaku10","NogyoShunyuZogengaku",10]
[796,9,"Label","Lbl9_NogyoShunyuZogengaku11","NogyoShunyuZogengaku11"]
[797,9,"Label","Lbl9_NogyoShunyuZogengakuYen1","NogyoShunyuZogengakuYen1",null,1]
[798,9,"Label","Lbl9_NogyoShunyuZogengakuYen2","NogyoShunyuZogengakuYen2",null,2]
[799,9,"Label","Lbl9_NogyoShunyuZogengakuYen3","NogyoShunyuZogengakuYen3",null,3]
[800,9,"Label","Lbl9_NogyoShunyuZogengakuYen4","NogyoShunyuZogengakuYen4",null,4]
[801,9,"Label","Lbl9_NogyoShunyuZogengakuYen5","NogyoShunyuZogengakuYen5",null,5]
[802,9,"Label","Lbl9_NogyoShunyuZogengakuYen6","NogyoShunyuZogengakuYen6",null,6]
[803,9,"Label","Lbl9_NogyoShunyuZogengakuYen7","NogyoShunyuZogengakuYen7",null,7]
[804,9,"Label","Lbl9_NogyoShunyuZogengakuYen8","NogyoShunyuZogengakuYen8",null,8]
[805,9,"Label","Lbl9_NogyoShunyuZogengakuYen9","NogyoShunyuZogengakuYen9",null,9]
[806,9,"Label","Lbl9_NogyoShunyuZogengakuYen10","NogyoShunyuZogengakuYen10",null,10]
[807,9,"Label","Lbl9_NogyoShunyuZogengakuYen11","NogyoShunyuZogengakuYen11"]
[808,10,"Label","Lbl10_Chushaku2","Chushaku2",null,null,null,true]
[809,10,"Label","Lbl10_HokenryoShisan1","HokenryoShisan1",null,null,null,true]
[810,10,"Label","Lbl10_HokenryoShisan2","HokenryoShisan2",null,null,null,true]
[811,10,"Label","Lbl10_HokenryoShisan3","HokenryoShisan3",null,null,null,true]
[812,10,"Button","Btn10_HokenryoShisan","HokenryoShisan",null,null,null,true]
[813,10,"Check","CBx10_SeikyuSuru","SeikyuSuru",null,null,"10’",true,null,null,10]
[814,10,"Check","CBx10_SeikyuSuruHokenkin","SeikyuSuruHokenkin",null,null,"10’",true,null,null,10]
[815,10,"Check","CBx10_SeikyuSuruTokuyakuHotenkin","SeikyuSuruTokuyakuHotenkin",null,null,"10’",true,null,null,10]
[816,10,"Check","CBx10_SeikyuShinai","SeikyuShinai",null,null,"10’",true,null,null,10]

{"sheet":"Element","index":3,"n_rows":11,"n_cols":24,"rows_kept":11,"cut":false,"hidden":false,"merged":[]}
["縦要素数",{"$f":"COUNTA(A5:A104)","v":5}]
["横要素数",{"$f":"MAX(C5:C104)","v":21}]
[]
[null,null,"要素数",1,2,3,4,5,6,7,8,9,10,11,12,13,14,15,16,17,18,19,20,21]
["CBx3_HokenStartY","HokenStartY",{"$f":"COUNTA(D5:X5)","v":1},"令和  7年"]
["CBx3_HotenHoshiki","HotenHoshiki",{"$f":"COUNTA(D6:X6)","v":2},"保険方式＋積立方式","保険方式のみ"]
["CBx3_KikenDankaiKubun","KikenDankaiKubun",{"$f":"COUNTA(D7:X7)","v":21}," 10区分","  9区分","  8区分","  7区分","  6区分","  5区分","  4区分","  3区分","  2区分","  1区分","  0区分"," -1区分"," -2区分"," -3区分"," -4区分"," -5区分"," -6区分"," -7区分"," -8区分"," -9区分","-10区分"]
["CBx3_GekihenKanwaSochiTekiyo","GekihenKanwaSochiTekiyo",{"$f":"COUNTA(D8:X8)","v":2},"激変緩和措置適用なし","激変緩和措置適用あり"]
["CBx3_MikomiNogyoTaishoHinmoku","MikomiNogyoTaishoHinmoku",{"$f":"COUNTA(D9:X9)","v":11}," 1品目"," 2品目"," 3品目"," 4品目"," 5品目"," 6品目"," 7品目"," 8品目"," 9品目","10品目","11品目以上"]
[]
[null,null,null,null,"令和  7年","令和  8年","令和  9年"]

{"sheet":"LoadData","index":4,"n_rows":0,"n_cols":0,"rows_kept":0,"cut":false,"hidden":false,"merged":[]}

{"sheet":"3年後見込","index":5,"n_rows":44,"n_cols":22,"rows_kept":44,"cut":false,"hidden":false,"merged":[[42,2,42,8],[9,2,9,10],[15,2,15,9],[21,2,21,8],[30,2,30,10],[36,2,36,9]]}
[null,null,"10年前","9年前","8年前","7年前","6年前","5年前","4年前","3年前","2年前","1年前","計",null,"保険料率","保険限度","補償の下限","危険段階","KEY",null,"標準保険料率","KEY"]
[null,"損害率",100,100,100,100,100,100,100,100,100,100,null,null,{"$f":"VLOOKUP(S2,保険料率!D:E,2,FALSE)","v":2.3570000000000002},{"$f":"Hoken_HoshoGendo","v":80},{"$f":"Hoken_HoshoKagen","v":0},{"$f":"KikenDankai","v":0},{"$f":"TEXT(P2,\"00\")&TEXT(Q2,\"00\")&TEXT(R2+10,\"00\")","v":"800010"},null,{"$f":"VLOOKUP(V2,保険料率!I:J,2,FALSE)","v":2.3570000000000002},{"$f":"TEXT(P2,\"00\")&TEXT(Q2,\"00\")","v":"8000"}]
[null,"ウェイト",10,20,30,40,50,60,70,80,90,100,null,null,"保険料",null,null,null,null,null,"標準保険料"]
[null,"ポイント",{"$f":"C2*C3","v":1000},{"$f":"D2*D3","v":2000},3000,4000,5000,6000,7000,8000,9000,10000,{"$f":"SUM(C4:L4)","v":55000},null,{"$f":"ROUNDUP(ROUNDDOWN(HokenKingaku*O2/100,0)/2,0)","v":0},null,null,null,null,null,{"$f":"ROUNDDOWN(HokenKingaku*U2/100,0)","v":0}]
[]
[]
[null,null,"10年前","9年前","8年前","7年前","6年前","5年前","4年前","3年前","2年前","1年前","計",null,"保険料率","保険限度","補償の下限","危険段階","KEY",null,"標準保険料率","KEY"]
[null,"損害率",null,null,null,null,null,null,null,null,null,{"$f":"ROUNDDOWN(結果_Form!K57/'3年後見込'!U4*100,0)","v":{"$error":"#DIV/0!"}},null,null,{"$f":"VLOOKUP(S8,保険料率!D:E,2,FALSE)","v":{"$error":"#DIV/0!"}},{"$f":"Hoken_HoshoGendo","v":80},{"$f":"Hoken_HoshoKagen","v":0},{"$f":"損害率!D27","v":{"$error":"#DIV/0!"}},{"$f":"TEXT(P8,\"00\")&TEXT(Q8,\"00\")&TEXT(R8+10,\"00\")","v":{"$error":"#DIV/0!"}},null,{"$f":"VLOOKUP(V8,保険料率!I:J,2,FALSE)","v":2.3570000000000002},{"$f":"TEXT(P8,\"00\")&TEXT(Q8,\"00\")","v":"8000"}]
[null,"ウェイト",null,null,null,null,null,null,null,null,null,{"$f":"L3","v":100},null,null,"保険料","標準保険料",null,null,null,null,"標準保険料"]
[null,"ポイント",{"$f":"IF(KajuHeikinSongairitsuKiso1>0,KajuHeikinSongairitsuKiso1,SUM(C4:K4))","v":45000},null,null,null,null,null,null,null,null,{"$f":"L8*L9","v":{"$error":"#DIV/0!"}},{"$f":"SUM(C10:L10)","v":{"$error":"#DIV/0!"}},null,{"$f":"ROUNDUP(ROUNDDOWN(HokenKingaku*O8/100,0)/2,0)","v":{"$error":"#DIV/0!"}},{"$f":"ROUNDDOWN(HokenKingaku*O8/100,0)","v":{"$error":"#DIV/0!"}},null,null,null,null,{"$f":"ROUNDDOWN(HokenKingaku*U8/100,0)","v":0}]
[null,"加重平均損害率",null,null,null,null,null,null,null,null,null,null,{"$f":"M10/M$4*100","v":{"$error":"#DIV/0!"}}]
[]
[null,null,"10年前","9年前","8年前","7年前","6年前","5年前","4年前","3年前","2年前","1年前","計",null,"保険料率","保険限度","補償の下限","危険段階","KEY",null,"標準保険料率","KEY"]
[null,"損害率",null,null,null,null,null,null,null,null,{"$f":"L8","v":{"$error":"#DIV/0!"}},0,null,null,{"$f":"VLOOKUP(S14,保険料率!D:E,2,FALSE)","v":{"$error":"#DIV/0!"}},{"$f":"Hoken_HoshoGendo","v":80},{"$f":"Hoken_HoshoKagen","v":0},{"$f":"損害率!E27","v":{"$error":"#DIV/0!"}},{"$f":"TEXT(P14,\"00\")&TEXT(Q14,\"00\")&TEXT(R14+10,\"00\")","v":{"$error":"#DIV/0!"}},null,{"$f":"VLOOKUP(V14,保険料率!I:J,2,FALSE)","v":2.3570000000000002},{"$f":"TEXT(P14,\"00\")&TEXT(Q14,\"00\")","v":"8000"}]
[null,"ウェイト",null,null,null,null,null,null,null,null,{"$f":"K3","v":90},{"$f":"L3","v":100},null,null,"保険料",null,null,null,null,null,"標準保険料"]
[null,"ポイント",{"$f":"IF(KajuHeikinSongairitsuKiso2>0,KajuHeikinSongairitsuKiso2,SUM(C4:J4))","v":36000},null,null,null,null,null,null,null,{"$f":"K14*K15","v":{"$error":"#DIV/0!"}},{"$f":"L14*L15","v":0},{"$f":"SUM(C16:L16)","v":{"$error":"#DIV/0!"}},null,{"$f":"ROUNDUP(ROUNDDOWN(HokenKingaku*O14/100,0)/2,0)","v":{"$error":"#DIV/0!"}},null,null,null,null,null,{"$f":"ROUNDDOWN(HokenKingaku*U14/100,0)","v":0}]
[null,"加重平均損害率",null,null,null,null,null,null,null,null,null,null,{"$f":"M16/M$4*100","v":{"$error":"#DIV/0!"}}]
[]
[null,null,"10年前","9年前","8年前","7年前","6年前","5年前","4年前","3年前","2年前","1年前","計",null,"保険料率","保険限度","補償の下限","危険段階","KEY",null,"標準保険料率","KEY"]
[null,"損害率",null,null,null,null,null,null,null,{"$f":"K14","v":{"$error":"#DIV/0!"}},0,0,null,null,{"$f":"VLOOKUP(S20,保険料率!D:E,2,FALSE)","v":{"$error":"#DIV/0!"}},{"$f":"Hoken_HoshoGendo","v":80},{"$f":"Hoken_HoshoKagen","v":0},{"$f":"損害率!F27","v":{"$error":"#DIV/0!"}},{"$f":"TEXT(P20,\"00\")&TEXT(Q20,\"00\")&TEXT(R20+10,\"00\")","v":{"$error":"#DIV/0!"}},null,{"$f":"VLOOKUP(V20,保険料率!I:J,2,FALSE)","v":2.3570000000000002},{"$f":"TEXT(P20,\"00\")&TEXT(Q20,\"00\")","v":"8000"}]
[null,"ウェイト",null,null,null,null,null,null,null,{"$f":"J3","v":80},{"$f":"K3","v":90},{"$f":"L3","v":100},null,null,"保険料",null,null,null,null,null,"標準保険料"]
[null,"ポイント",{"$f":"IF(KajuHeikinSongairitsuKiso3>0,KajuHeikinSongairitsuKiso3,SUM(C4:I4))","v":28000},null,null,null,null,null,null,{"$f":"J20*J21","v":{"$error":"#DIV/0!"}},{"$f":"K20*K21","v":0},{"$f":"L20*L21","v":0},{"$f":"SUM(C22:L22)","v":{"$error":"#DIV/0!"}},null,{"$f":"ROUNDUP(ROUNDDOWN(HokenKingaku*O20/100,0)/2,0)","v":{"$error":"#DIV/0!"}},null,null,null,null,null,{"$f":"ROUNDDOWN(HokenKingaku*U20/100,0)","v":0}]
[null,"加重平均損害率",null,null,null,null,null,null,null,null,null,null,{"$f":"M22/M$4*100","v":{"$error":"#DIV/0!"}}]
[]
[]
[]
[]
[null,null,"10年前","9年前","8年前","7年前","6年前","5年前","4年前","3年前","2年前","1年前","計",null,"保険料率","保険限度","補償の下限","危険段階","KEY",null,"標準保険料率","KEY"]
[null,"損害率",null,null,null,null,null,null,null,null,null,{"$f":"結果_Form!K78/'3年後見込'!O4*100","v":{"$error":"#DIV/0!"}},null,null,{"$f":"VLOOKUP(S29,保険料率!D:E,2,FALSE)","v":{"$error":"#DIV/0!"}},{"$f":"Hoken_HoshoGendo","v":80},{"$f":"Hoken_HoshoKagen","v":0},{"$f":"損害率!L27","v":{"$error":"#DIV/0!"}},{"$f":"TEXT(P29,\"00\")&TEXT(Q29,\"00\")&TEXT(R29+10,\"00\")","v":{"$error":"#DIV/0!"}},null,{"$f":"VLOOKUP(V29,保険料率!I:J,2,FALSE)","v":2.3570000000000002},{"$f":"TEXT(P29,\"00\")&TEXT(Q29,\"00\")","v":"8000"}]
[null,"ウェイト",null,null,null,null,null,null,null,null,null,{"$f":"L3","v":100},null,null,"保険料",null,null,null,null,null,"標準保険料"]
[null,"ポイント",{"$f":"C10","v":45000},null,null,null,null,null,null,null,null,{"$f":"L29*L30","v":{"$error":"#DIV/0!"}},{"$f":"SUM(C31:L31)","v":{"$error":"#DIV/0!"}},null,{"$f":"ROUNDUP(ROUNDDOWN(HokenKingaku*O29/100,0)/2,0)","v":{"$error":"#DIV/0!"}},null,null,null,null,null,{"$f":"ROUNDDOWN(HokenKingaku*U29/100,0)","v":0}]
[null,"加重平均損害率",null,null,null,null,null,null,null,null,null,null,{"$f":"M31/M$4*100","v":{"$error":"#DIV/0!"}}]
[]
[null,null,"10年前","9年前","8年前","7年前","6年前","5年前","4年前","3年前","2年前","1年前","計",null,"保険料率","保険限度","補償の下限","危険段階","KEY",null,"標準保険料率","KEY"]
[null,"損害率",null,null,null,null,null,null,null,null,{"$f":"L29","v":{"$error":"#DIV/0!"}},0,null,null,{"$f":"VLOOKUP(S35,保険料率!D:E,2,FALSE)","v":{"$error":"#DIV/0!"}},{"$f":"Hoken_HoshoGendo","v":80},{"$f":"Hoken_HoshoKagen","v":0},{"$f":"損害率!M27","v":{"$error":"#DIV/0!"}},{"$f":"TEXT(P35,\"00\")&TEXT(Q35,\"00\")&TEXT(R35+10,\"00\")","v":{"$error":"#DIV/0!"}},null,{"$f":"VLOOKUP(V35,保険料率!I:J,2,FALSE)","v":2.3570000000000002},{"$f":"TEXT(P35,\"00\")&TEXT(Q35,\"00\")","v":"8000"}]
[null,"ウェイト",null,null,null,null,null,null,null,null,{"$f":"K3","v":90},{"$f":"L3","v":100},null,null,"保険料",null,null,null,null,null,"標準保険料"]
[null,"ポイント",{"$f":"C16","v":36000},null,null,null,null,null,null,null,{"$f":"K35*K36","v":{"$error":"#DIV/0!"}},{"$f":"L35*L36","v":0},{"$f":"SUM(C37:L37)","v":{"$error":"#DIV/0!"}},null,{"$f":"ROUNDUP(ROUNDDOWN(HokenKingaku*O35/100,0)/2,0)","v":{"$error":"#DIV/0!"}},null,null,null,null,null,{"$f":"ROUNDDOWN(HokenKingaku*U35/100,0)","v":0}]
[null,"加重平均損害率",null,null,null,null,null,null,null,null,null,null,{"$f":"M37/M$4*100","v":{"$error":"#DIV/0!"}}]
[]
[null,null,"10年前","9年前","8年前","7年前","6年前","5年前","4年前","3年前","2年前","1年前","計",null,"保険料率","保険限度","補償の下限","危険段階","KEY",null,"標準保険料率","KEY"]
[null,"損害率",null,null,null,null,null,null,null,{"$f":"K35","v":{"$error":"#DIV/0!"}},0,0,null,null,{"$f":"VLOOKUP(S41,保険料率!D:E,2,FALSE)","v":{"$error":"#DIV/0!"}},{"$f":"Hoken_HoshoGendo","v":80},{"$f":"Hoken_HoshoKagen","v":0},{"$f":"損害率!N27","v":{"$error":"#DIV/0!"}},{"$f":"TEXT(P41,\"00\")&TEXT(Q41,\"00\")&TEXT(R41+10,\"00\")","v":{"$error":"#DIV/0!"}},null,{"$f":"VLOOKUP(V41,保険料率!I:J,2,FALSE)","v":2.3570000000000002},{"$f":"TEXT(P41,\"00\")&TEXT(Q41,\"00\")","v":"8000"}]
[null,"ウェイト",null,null,null,null,null,null,null,{"$f":"J3","v":80},{"$f":"K3","v":90},{"$f":"L3","v":100},null,null,"保険料",null,null,null,null,null,"標準保険料"]
[null,"ポイント",{"$f":"C22","v":28000},null,null,null,null,null,null,{"$f":"J41*J42","v":{"$error":"#DIV/0!"}},{"$f":"K41*K42","v":0},{"$f":"L41*L42","v":0},{"$f":"SUM(C43:L43)","v":{"$error":"#DIV/0!"}},null,{"$f":"ROUNDUP(ROUNDDOWN(HokenKingaku*O41/100,0)/2,0)","v":{"$error":"#DIV/0!"}},null,null,null,null,null,{"$f":"ROUNDDOWN(HokenKingaku*U41/100,0)","v":0}]
[null,"加重平均損害率",null,null,null,null,null,null,null,null,null,null,{"$f":"M43/M$4*100","v":{"$error":"#DIV/0!"}}]

{"sheet":"損害率","index":6,"n_rows":29,"n_cols":14,"rows_kept":29,"cut":false,"hidden":false,"merged":[[0,9,0,10],[0,11,1,11],[0,12,1,12],[0,13,1,13],[23,0,23,2],[23,8,23,10],[0,0,1,0],[0,1,0,2],[0,3,1,3],[0,4,1,4],[0,5,1,5],[0,8,1,8],[26,0,26,1],[26,8,26,9],[27,0,27,1],[27,8,27,9],[28,0,28,2],[28,8,28,10]]}
["危険段階区分","加重平均損害率",null,"1年後","2年後","3年後",null,null,"危険段階区分","加重平均損害率",null,"1年後","2年後","3年後"]
[null,"　上限　","　下限　",null,null,null,null,null,null,"　上限　","　下限　"]
[10,null,195,{"$f":"IF('3年後見込'!$M$11>=損害率!$C3,A3,0)","v":{"$error":"#DIV/0!"}},{"$f":"IF('3年後見込'!$M$17>=損害率!$C3,A3,0)","v":{"$error":"#DIV/0!"}},{"$f":"IF('3年後見込'!$M$23>=損害率!$C3,A3,0)","v":{"$error":"#DIV/0!"}},null,null,10,null,195,{"$f":"IF('3年後見込'!$M$32>=損害率!$C3,I3,0)","v":{"$error":"#DIV/0!"}},{"$f":"IF('3年後見込'!$M$38>=損害率!$C3,I3,0)","v":{"$error":"#DIV/0!"}},{"$f":"IF('3年後見込'!$M$44>=損害率!$C3,I3,0)","v":{"$error":"#DIV/0!"}}]
[9,195,185,{"$f":"IF(AND(損害率!$B4>'3年後見込'!$M$11,'3年後見込'!$M$11>=損害率!$C4),A4,0)","v":{"$error":"#DIV/0!"}},{"$f":"IF(AND(損害率!$B4>'3年後見込'!$M$17,'3年後見込'!$M$17>=損害率!$C4),A4,0)","v":{"$error":"#DIV/0!"}},{"$f":"IF(AND(損害率!$B4>'3年後見込'!$M$23,'3年後見込'!$M$23>=損害率!$C4),A4,0)","v":{"$error":"#DIV/0!"}},null,null,9,195,185,{"$f":"IF(AND(損害率!$B4>'3年後見込'!$M$32,'3年後見込'!$M$32>=損害率!$C4),I4,0)","v":{"$error":"#DIV/0!"}},{"$f":"IF(AND(損害率!$B4>'3年後見込'!$M$38,'3年後見込'!$M$38>=損害率!$C4),I4,0)","v":{"$error":"#DIV/0!"}},{"$f":"IF(AND(損害率!$B4>'3年後見込'!$M$44,'3年後見込'!$M$44>=損害率!$C4),I4,0)","v":{"$error":"#DIV/0!"}}]
[8,185,175,{"$f":"IF(AND(損害率!$B5>'3年後見込'!$M$11,'3年後見込'!$M$11>=損害率!$C5),A5,0)","v":{"$error":"#DIV/0!"}},{"$f":"IF(AND(損害率!$B5>'3年後見込'!$M$17,'3年後見込'!$M$17>=損害率!$C5),A5,0)","v":{"$error":"#DIV/0!"}},{"$f":"IF(AND(損害率!$B5>'3年後見込'!$M$23,'3年後見込'!$M$23>=損害率!$C5),A5,0)","v":{"$error":"#DIV/0!"}},null,null,8,185,175,{"$f":"IF(AND(損害率!$B5>'3年後見込'!$M$32,'3年後見込'!$M$32>=損害率!$C5),I5,0)","v":{"$error":"#DIV/0!"}},{"$f":"IF(AND(損害率!$B5>'3年後見込'!$M$38,'3年後見込'!$M$38>=損害率!$C5),I5,0)","v":{"$error":"#DIV/0!"}},{"$f":"IF(AND(損害率!$B5>'3年後見込'!$M$44,'3年後見込'!$M$44>=損害率!$C5),I5,0)","v":{"$error":"#DIV/0!"}}]
[7,175,165,{"$f":"IF(AND(損害率!$B6>'3年後見込'!$M$11,'3年後見込'!$M$11>=損害率!$C6),A6,0)","v":{"$error":"#DIV/0!"}},{"$f":"IF(AND(損害率!$B6>'3年後見込'!$M$17,'3年後見込'!$M$17>=損害率!$C6),A6,0)","v":{"$error":"#DIV/0!"}},{"$f":"IF(AND(損害率!$B6>'3年後見込'!$M$23,'3年後見込'!$M$23>=損害率!$C6),A6,0)","v":{"$error":"#DIV/0!"}},null,null,7,175,165,{"$f":"IF(AND(損害率!$B6>'3年後見込'!$M$32,'3年後見込'!$M$32>=損害率!$C6),I6,0)","v":{"$error":"#DIV/0!"}},{"$f":"IF(AND(損害率!$B6>'3年後見込'!$M$38,'3年後見込'!$M$38>=損害率!$C6),I6,0)","v":{"$error":"#DIV/0!"}},{"$f":"IF(AND(損害率!$B6>'3年後見込'!$M$44,'3年後見込'!$M$44>=損害率!$C6),I6,0)","v":{"$error":"#DIV/0!"}}]
[6,165,155,{"$f":"IF(AND(損害率!$B7>'3年後見込'!$M$11,'3年後見込'!$M$11>=損害率!$C7),A7,0)","v":{"$error":"#DIV/0!"}},{"$f":"IF(AND(損害率!$B7>'3年後見込'!$M$17,'3年後見込'!$M$17>=損害率!$C7),A7,0)","v":{"$error":"#DIV/0!"}},{"$f":"IF(AND(損害率!$B7>'3年後見込'!$M$23,'3年後見込'!$M$23>=損害率!$C7),A7,0)","v":{"$error":"#DIV/0!"}},null,null,6,165,155,{"$f":"IF(AND(損害率!$B7>'3年後見込'!$M$32,'3年後見込'!$M$32>=損害率!$C7),I7,0)","v":{"$error":"#DIV/0!"}},{"$f":"IF(AND(損害率!$B7>'3年後見込'!$M$38,'3年後見込'!$M$38>=損害率!$C7),I7,0)","v":{"$error":"#DIV/0!"}},{"$f":"IF(AND(損害率!$B7>'3年後見込'!$M$44,'3年後見込'!$M$44>=損害率!$C7),I7,0)","v":{"$error":"#DIV/0!"}}]
[5,155,145,{"$f":"IF(AND(損害率!$B8>'3年後見込'!$M$11,'3年後見込'!$M$11>=損害率!$C8),A8,0)","v":{"$error":"#DIV/0!"}},{"$f":"IF(AND(損害率!$B8>'3年後見込'!$M$17,'3年後見込'!$M$17>=損害率!$C8),A8,0)","v":{"$error":"#DIV/0!"}},{"$f":"IF(AND(損害率!$B8>'3年後見込'!$M$23,'3年後見込'!$M$23>=損害率!$C8),A8,0)","v":{"$error":"#DIV/0!"}},null,null,5,155,145,{"$f":"IF(AND(損害率!$B8>'3年後見込'!$M$32,'3年後見込'!$M$32>=損害率!$C8),I8,0)","v":{"$error":"#DIV/0!"}},{"$f":"IF(AND(損害率!$B8>'3年後見込'!$M$38,'3年後見込'!$M$38>=損害率!$C8),I8,0)","v":{"$error":"#DIV/0!"}},{"$f":"IF(AND(損害率!$B8>'3年後見込'!$M$44,'3年後見込'!$M$44>=損害率!$C8),I8,0)","v":{"$error":"#DIV/0!"}}]
[4,145,135,{"$f":"IF(AND(損害率!$B9>'3年後見込'!$M$11,'3年後見込'!$M$11>=損害率!$C9),A9,0)","v":{"$error":"#DIV/0!"}},{"$f":"IF(AND(損害率!$B9>'3年後見込'!$M$17,'3年後見込'!$M$17>=損害率!$C9),A9,0)","v":{"$error":"#DIV/0!"}},{"$f":"IF(AND(損害率!$B9>'3年後見込'!$M$23,'3年後見込'!$M$23>=損害率!$C9),A9,0)","v":{"$error":"#DIV/0!"}},null,null,4,145,135,{"$f":"IF(AND(損害率!$B9>'3年後見込'!$M$32,'3年後見込'!$M$32>=損害率!$C9),I9,0)","v":{"$error":"#DIV/0!"}},{"$f":"IF(AND(損害率!$B9>'3年後見込'!$M$38,'3年後見込'!$M$38>=損害率!$C9),I9,0)","v":{"$error":"#DIV/0!"}},{"$f":"IF(AND(損害率!$B9>'3年後見込'!$M$44,'3年後見込'!$M$44>=損害率!$C9),I9,0)","v":{"$error":"#DIV/0!"}}]
[3,135,125,{"$f":"IF(AND(損害率!$B10>'3年後見込'!$M$11,'3年後見込'!$M$11>=損害率!$C10),A10,0)","v":{"$error":"#DIV/0!"}},{"$f":"IF(AND(損害率!$B10>'3年後見込'!$M$17,'3年後見込'!$M$17>=損害率!$C10),A10,0)","v":{"$error":"#DIV/0!"}},{"$f":"IF(AND(損害率!$B10>'3年後見込'!$M$23,'3年後見込'!$M$23>=損害率!$C10),A10,0)","v":{"$error":"#DIV/0!"}},null,null,3,135,125,{"$f":"IF(AND(損害率!$B10>'3年後見込'!$M$32,'3年後見込'!$M$32>=損害率!$C10),I10,0)","v":{"$error":"#DIV/0!"}},{"$f":"IF(AND(損害率!$B10>'3年後見込'!$M$38,'3年後見込'!$M$38>=損害率!$C10),I10,0)","v":{"$error":"#DIV/0!"}},{"$f":"IF(AND(損害率!$B10>'3年後見込'!$M$44,'3年後見込'!$M$44>=損害率!$C10),I10,0)","v":{"$error":"#DIV/0!"}}]
[2,125,115,{"$f":"IF(AND(損害率!$B11>'3年後見込'!$M$11,'3年後見込'!$M$11>=損害率!$C11),A11,0)","v":{"$error":"#DIV/0!"}},{"$f":"IF(AND(損害率!$B11>'3年後見込'!$M$17,'3年後見込'!$M$17>=損害率!$C11),A11,0)","v":{"$error":"#DIV/0!"}},{"$f":"IF(AND(損害率!$B11>'3年後見込'!$M$23,'3年後見込'!$M$23>=損害率!$C11),A11,0)","v":{"$error":"#DIV/0!"}},null,null,2,125,115,{"$f":"IF(AND(損害率!$B11>'3年後見込'!$M$32,'3年後見込'!$M$32>=損害率!$C11),I11,0)","v":{"$error":"#DIV/0!"}},{"$f":"IF(AND(損害率!$B11>'3年後見込'!$M$38,'3年後見込'!$M$38>=損害率!$C11),I11,0)","v":{"$error":"#DIV/0!"}},{"$f":"IF(AND(損害率!$B11>'3年後見込'!$M$44,'3年後見込'!$M$44>=損害率!$C11),I11,0)","v":{"$error":"#DIV/0!"}}]
[1,115,105,{"$f":"IF(AND(損害率!$B12>'3年後見込'!$M$11,'3年後見込'!$M$11>=損害率!$C12),A12,0)","v":{"$error":"#DIV/0!"}},{"$f":"IF(AND(損害率!$B12>'3年後見込'!$M$17,'3年後見込'!$M$17>=損害率!$C12),A12,0)","v":{"$error":"#DIV/0!"}},{"$f":"IF(AND(損害率!$B12>'3年後見込'!$M$23,'3年後見込'!$M$23>=損害率!$C12),A12,0)","v":{"$error":"#DIV/0!"}},null,null,1,115,105,{"$f":"IF(AND(損害率!$B12>'3年後見込'!$M$32,'3年後見込'!$M$32>=損害率!$C12),I12,0)","v":{"$error":"#DIV/0!"}},{"$f":"IF(AND(損害率!$B12>'3年後見込'!$M$38,'3年後見込'!$M$38>=損害率!$C12),I12,0)","v":{"$error":"#DIV/0!"}},{"$f":"IF(AND(損害率!$B12>'3年後見込'!$M$44,'3年後見込'!$M$44>=損害率!$C12),I12,0)","v":{"$error":"#DIV/0!"}}]
[0,105,95,{"$f":"IF(AND(損害率!$B13>'3年後見込'!$M$11,'3年後見込'!$M$11>=損害率!$C13),A13,0)","v":{"$error":"#DIV/0!"}},{"$f":"IF(AND(損害率!$B13>'3年後見込'!$M$17,'3年後見込'!$M$17>=損害率!$C13),A13,0)","v":{"$error":"#DIV/0!"}},{"$f":"IF(AND(損害率!$B13>'3年後見込'!$M$23,'3年後見込'!$M$23>=損害率!$C13),A13,0)","v":{"$error":"#DIV/0!"}},null,null,0,105,95,{"$f":"IF(AND(損害率!$B13>'3年後見込'!$M$32,'3年後見込'!$M$32>=損害率!$C13),I13,0)","v":{"$error":"#DIV/0!"}},{"$f":"IF(AND(損害率!$B13>'3年後見込'!$M$38,'3年後見込'!$M$38>=損害率!$C13),I13,0)","v":{"$error":"#DIV/0!"}},{"$f":"IF(AND(損害率!$B13>'3年後見込'!$M$44,'3年後見込'!$M$44>=損害率!$C13),I13,0)","v":{"$error":"#DIV/0!"}}]
[-1,95,85,{"$f":"IF(AND(損害率!$B14>'3年後見込'!$M$11,'3年後見込'!$M$11>=損害率!$C14),A14,0)","v":{"$error":"#DIV/0!"}},{"$f":"IF(AND(損害率!$B14>'3年後見込'!$M$17,'3年後見込'!$M$17>=損害率!$C14),A14,0)","v":{"$error":"#DIV/0!"}},{"$f":"IF(AND(損害率!$B14>'3年後見込'!$M$23,'3年後見込'!$M$23>=損害率!$C14),A14,0)","v":{"$error":"#DIV/0!"}},null,null,-1,95,85,{"$f":"IF(AND(損害率!$B14>'3年後見込'!$M$32,'3年後見込'!$M$32>=損害率!$C14),I14,0)","v":{"$error":"#DIV/0!"}},{"$f":"IF(AND(損害率!$B14>'3年後見込'!$M$38,'3年後見込'!$M$38>=損害率!$C14),I14,0)","v":{"$error":"#DIV/0!"}},{"$f":"IF(AND(損害率!$B14>'3年後見込'!$M$44,'3年後見込'!$M$44>=損害率!$C14),I14,0)","v":{"$error":"#DIV/0!"}}]
[-2,85,75,{"$f":"IF(AND(損害率!$B15>'3年後見込'!$M$11,'3年後見込'!$M$11>=損害率!$C15),A15,0)","v":{"$error":"#DIV/0!"}},{"$f":"IF(AND(損害率!$B15>'3年後見込'!$M$17,'3年後見込'!$M$17>=損害率!$C15),A15,0)","v":{"$error":"#DIV/0!"}},{"$f":"IF(AND(損害率!$B15>'3年後見込'!$M$23,'3年後見込'!$M$23>=損害率!$C15),A15,0)","v":{"$error":"#DIV/0!"}},null,null,-2,85,75,{"$f":"IF(AND(損害率!$B15>'3年後見込'!$M$32,'3年後見込'!$M$32>=損害率!$C15),I15,0)","v":{"$error":"#DIV/0!"}},{"$f":"IF(AND(損害率!$B15>'3年後見込'!$M$38,'3年後見込'!$M$38>=損害率!$C15),I15,0)","v":{"$error":"#DIV/0!"}},{"$f":"IF(AND(損害率!$B15>'3年後見込'!$M$44,'3年後見込'!$M$44>=損害率!$C15),I15,0)","v":{"$error":"#DIV/0!"}}]
[-3,75,65,{"$f":"IF(AND(損害率!$B16>'3年後見込'!$M$11,'3年後見込'!$M$11>=損害率!$C16),A16,0)","v":{"$error":"#DIV/0!"}},{"$f":"IF(AND(損害率!$B16>'3年後見込'!$M$17,'3年後見込'!$M$17>=損害率!$C16),A16,0)","v":{"$error":"#DIV/0!"}},{"$f":"IF(AND(損害率!$B16>'3年後見込'!$M$23,'3年後見込'!$M$23>=損害率!$C16),A16,0)","v":{"$error":"#DIV/0!"}},null,null,-3,75,65,{"$f":"IF(AND(損害率!$B16>'3年後見込'!$M$32,'3年後見込'!$M$32>=損害率!$C16),I16,0)","v":{"$error":"#DIV/0!"}},{"$f":"IF(AND(損害率!$B16>'3年後見込'!$M$38,'3年後見込'!$M$38>=損害率!$C16),I16,0)","v":{"$error":"#DIV/0!"}},{"$f":"IF(AND(損害率!$B16>'3年後見込'!$M$44,'3年後見込'!$M$44>=損害率!$C16),I16,0)","v":{"$error":"#DIV/0!"}}]
[-4,65,55,{"$f":"IF(AND(損害率!$B17>'3年後見込'!$M$11,'3年後見込'!$M$11>=損害率!$C17),A17,0)","v":{"$error":"#DIV/0!"}},{"$f":"IF(AND(損害率!$B17>'3年後見込'!$M$17,'3年後見込'!$M$17>=損害率!$C17),A17,0)","v":{"$error":"#DIV/0!"}},{"$f":"IF(AND(損害率!$B17>'3年後見込'!$M$23,'3年後見込'!$M$23>=損害率!$C17),A17,0)","v":{"$error":"#DIV/0!"}},null,null,-4,65,55,{"$f":"IF(AND(損害率!$B17>'3年後見込'!$M$32,'3年後見込'!$M$32>=損害率!$C17),I17,0)","v":{"$error":"#DIV/0!"}},{"$f":"IF(AND(損害率!$B17>'3年後見込'!$M$38,'3年後見込'!$M$38>=損害率!$C17),I17,0)","v":{"$error":"#DIV/0!"}},{"$f":"IF(AND(損害率!$B17>'3年後見込'!$M$44,'3年後見込'!$M$44>=損害率!$C17),I17,0)","v":{"$error":"#DIV/0!"}}]
[-5,55,45,{"$f":"IF(AND(損害率!$B18>'3年後見込'!$M$11,'3年後見込'!$M$11>=損害率!$C18),A18,0)","v":{"$error":"#DIV/0!"}},{"$f":"IF(AND(損害率!$B18>'3年後見込'!$M$17,'3年後見込'!$M$17>=損害率!$C18),A18,0)","v":{"$error":"#DIV/0!"}},{"$f":"IF(AND(損害率!$B18>'3年後見込'!$M$23,'3年後見込'!$M$23>=損害率!$C18),A18,0)","v":{"$error":"#DIV/0!"}},null,null,-5,55,45,{"$f":"IF(AND(損害率!$B18>'3年後見込'!$M$32,'3年後見込'!$M$32>=損害率!$C18),I18,0)","v":{"$error":"#DIV/0!"}},{"$f":"IF(AND(損害率!$B18>'3年後見込'!$M$38,'3年後見込'!$M$38>=損害率!$C18),I18,0)","v":{"$error":"#DIV/0!"}},{"$f":"IF(AND(損害率!$B18>'3年後見込'!$M$44,'3年後見込'!$M$44>=損害率!$C18),I18,0)","v":{"$error":"#DIV/0!"}}]
[-6,45,35,{"$f":"IF(AND(損害率!$B19>'3年後見込'!$M$11,'3年後見込'!$M$11>=損害率!$C19),A19,0)","v":{"$error":"#DIV/0!"}},{"$f":"IF(AND(損害率!$B19>'3年後見込'!$M$17,'3年後見込'!$M$17>=損害率!$C19),A19,0)","v":{"$error":"#DIV/0!"}},{"$f":"IF(AND(損害率!$B19>'3年後見込'!$M$23,'3年後見込'!$M$23>=損害率!$C19),A19,0)","v":{"$error":"#DIV/0!"}},null,null,-6,45,35,{"$f":"IF(AND(損害率!$B19>'3年後見込'!$M$32,'3年後見込'!$M$32>=損害率!$C19),I19,0)","v":{"$error":"#DIV/0!"}},{"$f":"IF(AND(損害率!$B19>'3年後見込'!$M$38,'3年後見込'!$M$38>=損害率!$C19),I19,0)","v":{"$error":"#DIV/0!"}},{"$f":"IF(AND(損害率!$B19>'3年後見込'!$M$44,'3年後見込'!$M$44>=損害率!$C19),I19,0)","v":{"$error":"#DIV/0!"}}]
[-7,35,25,{"$f":"IF(AND(損害率!$B20>'3年後見込'!$M$11,'3年後見込'!$M$11>=損害率!$C20),A20,0)","v":{"$error":"#DIV/0!"}},{"$f":"IF(AND(損害率!$B20>'3年後見込'!$M$17,'3年後見込'!$M$17>=損害率!$C20),A20,0)","v":{"$error":"#DIV/0!"}},{"$f":"IF(AND(損害率!$B20>'3年後見込'!$M$23,'3年後見込'!$M$23>=損害率!$C20),A20,0)","v":{"$error":"#DIV/0!"}},null,null,-7,35,25,{"$f":"IF(AND(損害率!$B20>'3年後見込'!$M$32,'3年後見込'!$M$32>=損害率!$C20),I20,0)","v":{"$error":"#DIV/0!"}},{"$f":"IF(AND(損害率!$B20>'3年後見込'!$M$38,'3年後見込'!$M$38>=損害率!$C20),I20,0)","v":{"$error":"#DIV/0!"}},{"$f":"IF(AND(損害率!$B20>'3年後見込'!$M$44,'3年後見込'!$M$44>=損害率!$C20),I20,0)","v":{"$error":"#DIV/0!"}}]
[-8,25,15,{"$f":"IF(AND(損害率!$B21>'3年後見込'!$M$11,'3年後見込'!$M$11>=損害率!$C21),A21,0)","v":{"$error":"#DIV/0!"}},{"$f":"IF(AND(損害率!$B21>'3年後見込'!$M$17,'3年後見込'!$M$17>=損害率!$C21),A21,0)","v":{"$error":"#DIV/0!"}},{"$f":"IF(AND(損害率!$B21>'3年後見込'!$M$23,'3年後見込'!$M$23>=損害率!$C21),A21,0)","v":{"$error":"#DIV/0!"}},null,null,-8,25,15,{"$f":"IF(AND(損害率!$B21>'3年後見込'!$M$32,'3年後見込'!$M$32>=損害率!$C21),I21,0)","v":{"$error":"#DIV/0!"}},{"$f":"IF(AND(損害率!$B21>'3年後見込'!$M$38,'3年後見込'!$M$38>=損害率!$C21),I21,0)","v":{"$error":"#DIV/0!"}},{"$f":"IF(AND(損害率!$B21>'3年後見込'!$M$44,'3年後見込'!$M$44>=損害率!$C21),I21,0)","v":{"$error":"#DIV/0!"}}]
[-9,15,5,{"$f":"IF(AND(損害率!$B22>'3年後見込'!$M$11,'3年後見込'!$M$11>=損害率!$C22),A22,0)","v":{"$error":"#DIV/0!"}},{"$f":"IF(AND(損害率!$B22>'3年後見込'!$M$17,'3年後見込'!$M$17>=損害率!$C22),A22,0)","v":{"$error":"#DIV/0!"}},{"$f":"IF(AND(損害率!$B22>'3年後見込'!$M$23,'3年後見込'!$M$23>=損害率!$C22),A22,0)","v":{"$error":"#DIV/0!"}},null,null,-9,15,5,{"$f":"IF(AND(損害率!$B22>'3年後見込'!$M$32,'3年後見込'!$M$32>=損害率!$C22),I22,0)","v":{"$error":"#DIV/0!"}},{"$f":"IF(AND(損害率!$B22>'3年後見込'!$M$38,'3年後見込'!$M$38>=損害率!$C22),I22,0)","v":{"$error":"#DIV/0!"}},{"$f":"IF(AND(損害率!$B22>'3年後見込'!$M$44,'3年後見込'!$M$44>=損害率!$C22),I22,0)","v":{"$error":"#DIV/0!"}}]
[-10,5,0,{"$f":"IF(AND(損害率!$B23>'3年後見込'!$M$11,'3年後見込'!$M$11>=損害率!$C23),A23,0)","v":{"$error":"#DIV/0!"}},{"$f":"IF(AND(損害率!$B23>'3年後見込'!$M$17,'3年後見込'!$M$17>=損害率!$C23),A23,0)","v":{"$error":"#DIV/0!"}},{"$f":"IF(AND(損害率!$B23>'3年後見込'!$M$23,'3年後見込'!$M$23>=損害率!$C23),A23,0)","v":{"$error":"#DIV/0!"}},null,null,-10,5,0,{"$f":"IF(AND(損害率!$B23>'3年後見込'!$M$32,'3年後見込'!$M$32>=損害率!$C23),I23,0)","v":{"$error":"#DIV/0!"}},{"$f":"IF(AND(損害率!$B23>'3年後見込'!$M$38,'3年後見込'!$M$38>=損害率!$C23),I23,0)","v":{"$error":"#DIV/0!"}},{"$f":"IF(AND(損害率!$B23>'3年後見込'!$M$44,'3年後見込'!$M$44>=損害率!$C23),I23,0)","v":{"$error":"#DIV/0!"}}]
["ダイレクト適用危険段階区分",null,null,{"$f":"SUM(D3:D23)","v":{"$error":"#DIV/0!"}},{"$f":"SUM(E3:E23)","v":{"$error":"#DIV/0!"}},{"$f":"SUM(F3:F23)","v":{"$error":"#DIV/0!"}},null,null,"ダイレクト適用危険段階区分",null,null,{"$f":"SUM(L3:L23)","v":{"$error":"#DIV/0!"}},{"$f":"SUM(M3:M23)","v":{"$error":"#DIV/0!"}},{"$f":"SUM(N3:N23)","v":{"$error":"#DIV/0!"}}]
[]
[]
["適用危険段階区分",null,{"$f":"KikenDankai","v":0},{"$f":"IF(AND(GekihenKanwaSochi_Now=\"あり\",ZennenSeikyuUmu11=\"なし\"),IF(DirectKikenDankai_SeikyuSuru1YearAfter>KikenDankai_Now,KikenDankai_Now,IF(KikenDankai_Now>DirectKikenDankai_SeikyuSuru1YearAfter,KikenDankai_Now-1,DirectKikenDankai_SeikyuSuru1YearAfter)),IF(DirectKikenDankai_SeikyuSuru1YearAfter>KikenDankai_Now+3,KikenDankai_Now+3,DirectKikenDankai_SeikyuSuru1YearAfter))","v":{"$error":"#DIV/0!"}},{"$f":"IF(AND(GekihenKanwaSochi_SeikyuSuru1YearAfter=\"あり\",ZennenSeikyuUmu12=\"なし\"),IF(DirectKikenDankai_SeikyuSuru2YearAfter>KikenDankai_SeikyuSuru1YearAfter,KikenDankai_SeikyuSuru1YearAfter,IF(KikenDankai_SeikyuSuru1YearAfter>DirectKikenDankai_SeikyuSuru2YearAfter,KikenDankai_SeikyuSuru1YearAfter-1,DirectKikenDankai_SeikyuSuru2YearAfter)),IF(DirectKikenDankai_SeikyuSuru2YearAfter>KikenDankai_SeikyuSuru1YearAfter+3,KikenDankai_SeikyuSuru1YearAfter+3,DirectKikenDankai_SeikyuSuru2YearAfter))","v":{"$error":"#DIV/0!"}},{"$f":"IF(AND(GekihenKanwaSochi_SeikyuSuru2YearAfter=\"あり\",ZennenSeikyuUmu13=\"なし\"),IF(DirectKikenDankai_SeikyuSuru3YearAfter>KikenDankai_SeikyuSuru2YearAfter,KikenDankai_SeikyuSuru2YearAfter,IF(KikenDankai_SeikyuSuru2YearAfter>DirectKikenDankai_SeikyuSuru3YearAfter,KikenDankai_SeikyuSuru2YearAfter-1,DirectKikenDankai_SeikyuSuru3YearAfter)),IF(DirectKikenDankai_SeikyuSuru3YearAfter>KikenDankai_SeikyuSuru2YearAfter+3,KikenDankai_SeikyuSuru2YearAfter+3,DirectKikenDankai_SeikyuSuru3YearAfter))","v":{"$error":"#DIV/0!"}},null,null,"適用危険段階区分",null,{"$f":"KikenDankai_Now","v":0},{"$f":"IF(AND(GekihenKanwaSochi_Now2=\"あり\",ZennenSeikyuUmu21=\"なし\"),IF(DirectKikenDankai_SeikyuShinai1YearAfter>KikenDankai_Now2,KikenDankai_Now2,IF(KikenDankai_Now2>DirectKikenDankai_SeikyuShinai1YearAfter,KikenDankai_Now2-1,DirectKikenDankai_SeikyuShinai1YearAfter)),IF(DirectKikenDankai_SeikyuShinai1YearAfter>KikenDankai_Now2+3,KikenDankai_Now2+3,DirectKikenDankai_SeikyuShinai1YearAfter))","v":{"$error":"#DIV/0!"}},{"$f":"IF(AND(GekihenKanwaSochi_SeikyuShinai1YearAfter=\"あり\",ZennenSeikyuUmu22=\"なし\"),IF(DirectKikenDankai_SeikyuShinai2YearAfter>KikenDankai_SeikyuShinai1YearAfter,KikenDankai_SeikyuShinai1YearAfter,IF(KikenDankai_SeikyuShinai1YearAfter>DirectKikenDankai_SeikyuShinai2YearAfter,KikenDankai_SeikyuShinai1YearAfter-1,DirectKikenDankai_SeikyuShinai2YearAfter)),IF(DirectKikenDankai_SeikyuShinai2YearAfter>KikenDankai_SeikyuShinai1YearAfter+3,KikenDankai_SeikyuShinai1YearAfter+3,DirectKikenDankai_SeikyuShinai2YearAfter))","v":{"$error":"#DIV/0!"}},{"$f":"IF(AND(GekihenKanwaSochi_SeikyuShinai2YearAfter=\"あり\",ZennenSeikyuUmu23=\"なし\"),IF(DirectKikenDankai_SeikyuShinai3YearAfter>KikenDankai_SeikyuShinai2YearAfter,KikenDankai_SeikyuShinai2YearAfter,IF(KikenDankai_SeikyuShinai2YearAfter>DirectKikenDankai_SeikyuShinai3YearAfter,KikenDankai_SeikyuShinai2YearAfter-1,DirectKikenDankai_SeikyuShinai3YearAfter)),IF(DirectKikenDankai_SeikyuShinai3YearAfter>KikenDankai_SeikyuShinai2YearAfter+3,KikenDankai_SeikyuShinai2YearAfter+3,DirectKikenDankai_SeikyuShinai3YearAfter))","v":{"$error":"#DIV/0!"}}]
["激変緩和措置適用",null,{"$f":"IF(GekihenKanwaSochiTekiyo=\"激変緩和措置適用なし\",\"なし\",\"あり\")","v":"なし"},{"$f":"IF(AND(GekihenKanwaSochi_Now=\"あり\",KikenDankai_Now=-10),\"なし\",IF(AND(GekihenKanwaSochi_Now=\"なし\",DirectKikenDankai_SeikyuSuru1YearAfter>KikenDankai_SeikyuSuru1YearAfter),\"あり\",GekihenKanwaSochi_Now))","v":{"$error":"#DIV/0!"}},{"$f":"IF(AND(GekihenKanwaSochi_SeikyuSuru1YearAfter=\"あり\",KikenDankai_SeikyuSuru1YearAfter=-10),\"なし\",IF(AND(GekihenKanwaSochi_SeikyuSuru1YearAfter=\"なし\",DirectKikenDankai_SeikyuSuru2YearAfter>KikenDankai_SeikyuSuru2YearAfter),\"あり\",GekihenKanwaSochi_SeikyuSuru1YearAfter))","v":{"$error":"#DIV/0!"}},{"$f":"IF(AND(GekihenKanwaSochi_SeikyuSuru2YearAfter=\"あり\",KikenDankai_SeikyuSuru2YearAfter=-10),\"なし\",IF(AND(GekihenKanwaSochi_SeikyuSuru2YearAfter=\"なし\",DirectKikenDankai_SeikyuSuru3YearAfter>KikenDankai_SeikyuSuru3YearAfter),\"あり\",GekihenKanwaSochi_SeikyuSuru2YearAfter))","v":{"$error":"#DIV/0!"}},null,null,"激変緩和措置適用",null,{"$f":"IF(GekihenKanwaSochiTekiyo=\"激変緩和措置適用なし\",\"なし\",\"あり\")","v":"なし"},{"$f":"IF(AND(GekihenKanwaSochi_Now2=\"あり\",KikenDankai_Now2=-10),\"なし\",IF(AND(GekihenKanwaSochi_Now2=\"なし\",DirectKikenDankai_SeikyuShinai1YearAfter>KikenDankai_SeikyuShinai1YearAfter),\"あり\",GekihenKanwaSochi_Now2))","v":{"$error":"#DIV/0!"}},{"$f":"IF(AND(GekihenKanwaSochi_SeikyuShinai1YearAfter=\"あり\",KikenDankai_SeikyuShinai1YearAfter=-10),\"なし\",IF(AND(GekihenKanwaSochi_SeikyuShinai1YearAfter=\"なし\",DirectKikenDankai_SeikyuShinai2YearAfter>KikenDankai_SeikyuShinai2YearAfter),\"あり\",GekihenKanwaSochi_SeikyuShinai1YearAfter))","v":{"$error":"#DIV/0!"}},{"$f":"IF(AND(GekihenKanwaSochi_SeikyuShinai2YearAfter=\"あり\",KikenDankai_SeikyuShinai2YearAfter=-10),\"なし\",IF(AND(GekihenKanwaSochi_SeikyuShinai2YearAfter=\"なし\",DirectKikenDankai_SeikyuShinai3YearAfter>KikenDankai_SeikyuShinai3YearAfter),\"あり\",GekihenKanwaSochi_SeikyuShinai2YearAfter))","v":{"$error":"#DIV/0!"}}]
["前年度保険金請求",null,null,"あり","なし","なし",null,null,"前年度保険金請求",null,null,"なし","なし","なし"]

{"sheet":"保険料率","index":7,"n_rows":820,"n_cols":12,"rows_kept":820,"cut":false,"hidden":false,"merged":[]}
["保険限度","補償の下限","危険段階","KEY","危険段階別保険料率",null,"保険限度","補償の下限","KEY","保険料標準率",null,"2024/12/03更新"]
[90,0,10,{"$f":"TEXT(A2,\"00\")&TEXT(B2,\"00\")&TEXT(C2+10,\"00\")","v":"900020"},9.3219999999999992,null,90,0,{"$f":"TEXT(G2,\"00\")&TEXT(H2,\"00\")","v":"9000"},4.37]
[90,0,9,"900019",6.2990000000000004,null,90,50,"9050",4.173]
[90,0,8,"900018",6.085,null,90,60,"9060",3.944]
[90,0,7,"900017",5.8710000000000004,null,90,70,"9070",3.4630000000000001]
[90,0,6,"900016",5.6559999999999997,null,88,0,"8800",3.8650000000000002]
[90,0,5,"900015",5.4420000000000002,null,88,50,"8850",3.661]
[90,0,4,"900014",5.2279999999999998,null,88,60,"8860",3.4260000000000002]
[90,0,3,"900013",5.0129999999999999,null,88,70,"8870",2.931]
[90,0,2,"900012",4.7990000000000004,null,85,0,"8500",3.2109999999999999]
[90,0,1,"900011",4.5839999999999996,null,85,50,"8550",2.9969999999999999]
[90,0,0,"900010",4.37,null,85,60,"8560",2.7509999999999999]
[90,0,-1,"900009",4.1559999999999997,null,85,70,"8570",2.2349999999999999]
[90,0,-2,"900008",3.9409999999999998,null,83,0,"8300",2.8370000000000002]
[90,0,-3,"900007",3.7269999999999999,null,83,50,"8350",2.6150000000000002]
[90,0,-4,"900006",3.512,null,83,60,"8360",2.363]
[90,0,-5,"900005",3.298,null,83,70,"8370",1.83]
[90,0,-6,"900004",3.0840000000000001,null,80,0,"8000",2.3570000000000002]
[90,0,-7,"900003",2.8690000000000002,null,80,50,"8050",2.1240000000000001]
[90,0,-8,"900002",2.6549999999999998,null,80,60,"8060",1.86]
[90,0,-9,"900001",2.4409999999999998,null,80,70,"8070",1.304]
[90,0,-10,"900000",2.1850000000000001,null,78,0,"7800",2.0870000000000002]
[90,50,10,"905020",8.9019999999999992,null,78,50,"7850",1.847]
[90,50,9,"905019",6.0149999999999997,null,78,60,"7860",1.5760000000000001]
[90,50,8,"905018",5.8109999999999999,null,78,70,"7870",1.0009999999999999]
[90,50,7,"905017",5.6059999999999999,null,75,0,"7500",1.738]
[90,50,6,"905016",5.4009999999999998,null,75,50,"7550",1.484]
[90,50,5,"905015",5.1970000000000001,null,75,60,"7560",1.206]
[90,50,4,"905014",4.992,null,75,70,"7570",0.59799999999999998]
[90,50,3,"905013",4.7869999999999999,null,70,0,"7000",1.2909999999999999]
[90,50,2,"905012",4.5819999999999999,null,70,50,"7050",1.022]
[90,50,1,"905011",4.3780000000000001,null,70,60,"7060",0.71399999999999997]
[90,50,0,"905010",4.173,null,65,0,"6500",0.97599999999999998]
[90,50,-1,"905009",3.968,null,65,50,"6550",0.67800000000000005]
[90,50,-2,"905008",3.7639999999999998,null,65,60,"6560",0.34]
[90,50,-3,"905007",3.5590000000000002,null,60,0,"6000",0.73099999999999998]
[90,50,-4,"905006",3.3540000000000001,null,60,50,"6050",0.40899999999999997]
[90,50,-5,"905005",3.149,null,55,0,"5500",0.55100000000000005]
[90,50,-6,"905004",2.9449999999999998,null,55,50,"5550",0.192]
[90,50,-7,"905003",2.74,null,50,0,"5000",0.434]
[90,50,-8,"905002",2.5350000000000001]
[90,50,-9,"905001",2.331]
[90,50,-10,"905000",2.0870000000000002]
[90,60,10,"906020",8.4130000000000003]
[90,60,9,"906019",5.6849999999999996]
[90,60,8,"906018",5.492]
[90,60,7,"906017",5.298]
[90,60,6,"906016",5.1050000000000004]
[90,60,5,"906015",4.9109999999999996]
[90,60,4,"906014",4.718]
[90,60,3,"906013",4.524]
[90,60,2,"906012",4.3310000000000004]
[90,60,1,"906011",4.1369999999999996]
[90,60,0,"906010",3.944]
[90,60,-1,"906009",3.7509999999999999]
[90,60,-2,"906008",3.5569999999999999]
[90,60,-3,"906007",3.3639999999999999]
[90,60,-4,"906006",3.17]
[90,60,-5,"906005",2.9769999999999999]
[90,60,-6,"906004",2.7829999999999999]
[90,60,-7,"906003",2.59]
[90,60,-8,"906002",2.3959999999999999]
[90,60,-9,"906001",2.2029999999999998]
[90,60,-10,"906000",1.972]
[90,70,10,"907020",7.3869999999999996]
[90,70,9,{"$f":"TEXT(A66,\"00\")&TEXT(B66,\"00\")&TEXT(C66+10,\"00\")","v":"907019"},4.992]
[90,70,8,"907018",4.8220000000000001]
[90,70,7,"907017",4.6520000000000001]
[90,70,6,"907016",4.4820000000000002]
[90,70,5,"907015",4.3120000000000003]
[90,70,4,"907014",4.1429999999999998]
[90,70,3,"907013",3.9729999999999999]
[90,70,2,"907012",3.8029999999999999]
[90,70,1,"907011",3.633]
[90,70,0,"907010",3.4630000000000001]
[90,70,-1,"907009",3.2930000000000001]
[90,70,-2,"907008",3.1230000000000002]
[90,70,-3,"907007",2.9529999999999998]
[90,70,-4,"907006",2.7829999999999999]
[90,70,-5,"907005",2.6139999999999999]
[90,70,-6,"907004",2.444]
[90,70,-7,"907003",2.274]
[90,70,-8,"907002",2.1040000000000001]
[90,70,-9,"907001",1.9339999999999999]
[90,70,-10,"907000",1.732]
[88,0,10,"880020",8.2449999999999992]
[88,0,9,"880019",5.5709999999999997]
[88,0,8,"880018",5.3819999999999997]
[88,0,7,"880017",5.1920000000000002]
[88,0,6,"880016",5.0030000000000001]
[88,0,5,"880015",4.8129999999999997]
[88,0,4,"880014",4.6230000000000002]
[88,0,3,"880013",4.4340000000000002]
[88,0,2,"880012",4.2439999999999998]
[88,0,1,"880011",4.0549999999999997]
[88,0,0,"880010",3.8650000000000002]
[88,0,-1,"880009",3.6749999999999998]
[88,0,-2,"880008",3.4860000000000002]
[88,0,-3,"880007",3.2959999999999998]
[88,0,-4,"880006",3.1070000000000002]
[88,0,-5,"880005",2.9169999999999998]
[88,0,-6,"880004",2.7269999999999999]
[88,0,-7,"880003",2.5379999999999998]
[88,0,-8,"880002",2.3479999999999999]
[88,0,-9,"880001",2.1589999999999998]
[88,0,-10,"880000",1.9330000000000001]
[88,50,10,"885020",7.81]
[88,50,9,"885019",5.2770000000000001]
[88,50,8,"885018",5.0979999999999999]
[88,50,7,"885017",4.9180000000000001]
[88,50,6,"885016",4.7389999999999999]
[88,50,5,"885015",4.5590000000000002]
[88,50,4,"885014",4.3789999999999996]
[88,50,3,"885013",4.2]
[88,50,2,"885012",4.0199999999999996]
[88,50,1,"885011",3.8410000000000002]
[88,50,0,"885010",3.661]
[88,50,-1,"885009",3.4809999999999999]
[88,50,-2,"885008",3.302]
[88,50,-3,"885007",3.1219999999999999]
[88,50,-4,"885006",2.9430000000000001]
[88,50,-5,"885005",2.7629999999999999]
[88,50,-6,"885004",2.5830000000000002]
[88,50,-7,"885003",2.4039999999999999]
[88,50,-8,"885002",2.2240000000000002]
[88,50,-9,"885001",2.0449999999999999]
[88,50,-10,"885000",1.831]
[88,60,10,"886020",7.3079999999999998]
[88,60,9,"886019",4.9390000000000001]
[88,60,8,{"$f":"TEXT(A130,\"00\")&TEXT(B130,\"00\")&TEXT(C130+10,\"00\")","v":"886018"},4.7709999999999999]
[88,60,7,"886017",4.6020000000000003]
[88,60,6,"886016",4.4340000000000002]
[88,60,5,"886015",4.266]
[88,60,4,"886014",4.0979999999999999]
[88,60,3,"886013",3.93]
[88,60,2,"886012",3.762]
[88,60,1,"886011",3.5939999999999999]
[88,60,0,"886010",3.4260000000000002]
[88,60,-1,"886009",3.258]
[88,60,-2,"886008",3.09]
[88,60,-3,"886007",2.9220000000000002]
[88,60,-4,"886006",2.754]
[88,60,-5,"886005",2.5859999999999999]
[88,60,-6,"886004",2.4180000000000001]
[88,60,-7,"886003",2.25]
[88,60,-8,"886002",2.081]
[88,60,-9,"886001",1.913]
[88,60,-10,"886000",1.7130000000000001]
[88,70,10,"887020",6.2519999999999998]
[88,70,9,"887019",4.2249999999999996]
[88,70,8,"887018",4.0810000000000004]
[88,70,7,"887017",3.9380000000000002]
[88,70,6,"887016",3.794]
[88,70,5,"887015",3.65]
[88,70,4,"887014",3.5059999999999998]
[88,70,3,"887013",3.3620000000000001]
[88,70,2,"887012",3.2189999999999999]
[88,70,1,"887011",3.0750000000000002]
[88,70,0,"887010",2.931]
[88,70,-1,"887009",2.7869999999999999]
[88,70,-2,"887008",2.6429999999999998]
[88,70,-3,"887007",2.5]
[88,70,-4,"887006",2.3559999999999999]
[88,70,-5,"887005",2.2120000000000002]
[88,70,-6,"887004",2.0680000000000001]
[88,70,-7,"887003",1.9239999999999999]
[88,70,-8,"887002",1.7809999999999999]
[88,70,-9,"887001",1.637]
[88,70,-10,"887000",1.466]
[85,0,10,"850020",6.85]
[85,0,9,"850019",4.6289999999999996]
[85,0,8,"850018",4.4710000000000001]
[85,0,7,"850017",4.3140000000000001]
[85,0,6,"850016",4.1559999999999997]
[85,0,5,"850015",3.9990000000000001]
[85,0,4,"850014",3.8410000000000002]
[85,0,3,"850013",3.6840000000000002]
[85,0,2,"850012",3.5259999999999998]
[85,0,1,"850011",3.3690000000000002]
[85,0,0,"850010",3.2109999999999999]
[85,0,-1,"850009",3.0529999999999999]
[85,0,-2,"850008",2.8959999999999999]
[85,0,-3,"850007",2.738]
[85,0,-4,"850006",2.581]
[85,0,-5,"850005",2.423]
[85,0,-6,"850004",2.266]
[85,0,-7,"850003",2.1080000000000001]
[85,0,-8,"850002",1.9510000000000001]
[85,0,-9,"850001",1.7929999999999999]
[85,0,-10,"850000",1.6060000000000001]
[85,50,10,"855020",6.3929999999999998]
[85,50,9,"855019",4.32]
[85,50,8,"855018",4.173]
[85,50,7,{"$f":"TEXT(A194,\"00\")&TEXT(B194,\"00\")&TEXT(C194+10,\"00\")","v":"855017"},4.0259999999999998]
[85,50,6,"855016",3.879]
[85,50,5,"855015",3.7320000000000002]
[85,50,4,"855014",3.585]
[85,50,3,"855013",3.4380000000000002]
[85,50,2,"855012",3.2909999999999999]
[85,50,1,"855011",3.1440000000000001]
[85,50,0,"855010",2.9969999999999999]
[85,50,-1,"855009",2.85]
[85,50,-2,"855008",2.7029999999999998]
[85,50,-3,"855007",2.556]
[85,50,-4,"855006",2.4089999999999998]
[85,50,-5,"855005",2.262]
[85,50,-6,"855004",2.1150000000000002]
[85,50,-7,"855003",1.968]
[85,50,-8,"855002",1.821]
[85,50,-9,"855001",1.6739999999999999]
[85,50,-10,"855000",1.4990000000000001]
[85,60,10,"856020",5.8680000000000003]
[85,60,9,"856019",3.9660000000000002]
[85,60,8,"856018",3.831]
[85,60,7,"856017",3.6960000000000002]
[85,60,6,"856016",3.5609999999999999]
[85,60,5,"856015",3.4260000000000002]
[85,60,4,"856014",3.2909999999999999]
[85,60,3,"856013",3.1560000000000001]
[85,60,2,"856012",3.0209999999999999]
[85,60,1,"856011",2.8860000000000001]
[85,60,0,"856010",2.7509999999999999]
[85,60,-1,"856009",2.6160000000000001]
[85,60,-2,"856008",2.4809999999999999]
[85,60,-3,"856007",2.3460000000000001]
[85,60,-4,"856006",2.2109999999999999]
[85,60,-5,"856005",2.0760000000000001]
[85,60,-6,"856004",1.9410000000000001]
[85,60,-7,"856003",1.806]
[85,60,-8,"856002",1.671]
[85,60,-9,"856001",1.536]
[85,60,-10,"856000",1.3759999999999999]
[85,70,10,"857020",4.7679999999999998]
[85,70,9,"857019",3.222]
[85,70,8,"857018",3.1120000000000001]
[85,70,7,"857017",3.0019999999999998]
[85,70,6,"857016",2.8929999999999998]
[85,70,5,"857015",2.7829999999999999]
[85,70,4,"857014",2.6739999999999999]
[85,70,3,"857013",2.5640000000000001]
[85,70,2,"857012",2.4540000000000002]
[85,70,1,"857011",2.3450000000000002]
[85,70,0,"857010",2.2349999999999999]
[85,70,-1,"857009",2.125]
[85,70,-2,"857008",2.016]
[85,70,-3,"857007",1.9059999999999999]
[85,70,-4,"857006",1.796]
[85,70,-5,"857005",1.6870000000000001]
[85,70,-6,"857004",1.577]
[85,70,-7,"857003",1.468]
[85,70,-8,"857002",1.3580000000000001]
[85,70,-9,"857001",1.248]
[85,70,-10,"857000",1.1180000000000001]
[83,0,10,"830020",6.0519999999999996]
[83,0,9,"830019",4.09]
[83,0,8,"830018",3.95]
[83,0,7,"830017",3.8109999999999999]
[83,0,6,{"$f":"TEXT(A258,\"00\")&TEXT(B258,\"00\")&TEXT(C258+10,\"00\")","v":"830016"},3.6720000000000002]
[83,0,5,"830015",3.5329999999999999]
[83,0,4,"830014",3.3940000000000001]
[83,0,3,"830013",3.2549999999999999]
[83,0,2,"830012",3.1150000000000002]
[83,0,1,"830011",2.976]
[83,0,0,"830010",2.8370000000000002]
[83,0,-1,"830009",2.698]
[83,0,-2,"830008",2.5590000000000002]
[83,0,-3,"830007",2.419]
[83,0,-4,"830006",2.2799999999999998]
[83,0,-5,"830005",2.141]
[83,0,-6,"830004",2.0019999999999998]
[83,0,-7,"830003",1.863]
[83,0,-8,"830002",1.724]
[83,0,-9,"830001",1.5840000000000001]
[83,0,-10,"830000",1.419]
[83,50,10,"835020",5.5780000000000003]
[83,50,9,"835019",3.77]
[83,50,8,"835018",3.641]
[83,50,7,"835017",3.5129999999999999]
[83,50,6,"835016",3.3849999999999998]
[83,50,5,"835015",3.2559999999999998]
[83,50,4,"835014",3.1280000000000001]
[83,50,3,"835013",3]
[83,50,2,"835012",2.8719999999999999]
[83,50,1,"835011",2.7429999999999999]
[83,50,0,"835010",2.6150000000000002]
[83,50,-1,"835009",2.4870000000000001]
[83,50,-2,"835008",2.3580000000000001]
[83,50,-3,"835007",2.23]
[83,50,-4,"835006",2.1019999999999999]
[83,50,-5,"835005",1.974]
[83,50,-6,"835004",1.845]
[83,50,-7,"835003",1.7170000000000001]
[83,50,-8,"835002",1.589]
[83,50,-9,"835001",1.46]
[83,50,-10,"835000",1.3080000000000001]
[83,60,10,"836020",5.0410000000000004]
[83,60,9,"836019",3.4060000000000001]
[83,60,8,"836018",3.29]
[83,60,7,"836017",3.1739999999999999]
[83,60,6,"836016",3.0590000000000002]
[83,60,5,"836015",2.9430000000000001]
[83,60,4,"836014",2.827]
[83,60,3,"836013",2.7109999999999999]
[83,60,2,"836012",2.5950000000000002]
[83,60,1,"836011",2.4790000000000001]
[83,60,0,"836010",2.363]
[83,60,-1,"836009",2.2469999999999999]
[83,60,-2,"836008",2.1309999999999998]
[83,60,-3,"836007",2.0150000000000001]
[83,60,-4,"836006",1.899]
[83,60,-5,"836005",1.7829999999999999]
[83,60,-6,"836004",1.667]
[83,60,-7,"836003",1.552]
[83,60,-8,"836002",1.4359999999999999]
[83,60,-9,"836001",1.32]
[83,60,-10,"836000",1.1819999999999999]
[83,70,10,"837020",3.9039999999999999]
[83,70,9,"837019",2.6379999999999999]
[83,70,8,"837018",2.548]
[83,70,7,"837017",2.4580000000000002]
[83,70,6,"837016",2.3690000000000002]
[83,70,5,{"$f":"TEXT(A322,\"00\")&TEXT(B322,\"00\")&TEXT(C322+10,\"00\")","v":"837015"},2.2789999999999999]
[83,70,4,"837014",2.1890000000000001]
[83,70,3,"837013",2.0990000000000002]
[83,70,2,"837012",2.0099999999999998]
[83,70,1,"837011",1.92]
[83,70,0,"837010",1.83]
[83,70,-1,"837009",1.74]
[83,70,-2,"837008",1.65]
[83,70,-3,"837007",1.5609999999999999]
[83,70,-4,"837006",1.4710000000000001]
[83,70,-5,"837005",1.381]
[83,70,-6,"837004",1.2909999999999999]
[83,70,-7,"837003",1.202]
[83,70,-8,"837002",1.1120000000000001]
[83,70,-9,"837001",1.022]
[83,70,-10,"837000",0.91500000000000004]
[80,0,10,"800020",5.0279999999999996]
[80,0,9,"800019",3.3980000000000001]
[80,0,8,"800018",3.282]
[80,0,7,"800017",3.1659999999999999]
[80,0,6,"800016",3.0510000000000002]
[80,0,5,"800015",2.9350000000000001]
[80,0,4,"800014",2.82]
[80,0,3,"800013",2.7040000000000002]
[80,0,2,"800012",2.5880000000000001]
[80,0,1,"800011",2.4729999999999999]
[80,0,0,"800010",2.3570000000000002]
[80,0,-1,"800009",2.2410000000000001]
[80,0,-2,"800008",2.1259999999999999]
[80,0,-3,"800007",2.0099999999999998]
[80,0,-4,"800006",1.8939999999999999]
[80,0,-5,"800005",1.7789999999999999]
[80,0,-6,"800004",1.663]
[80,0,-7,"800003",1.548]
[80,0,-8,"800002",1.4319999999999999]
[80,0,-9,"800001",1.3160000000000001]
[80,0,-10,"800000",1.179]
[80,50,10,"805020",4.5309999999999997]
[80,50,9,"805019",3.0619999999999998]
[80,50,8,"805018",2.9580000000000002]
[80,50,7,"805017",2.8530000000000002]
[80,50,6,"805016",2.7490000000000001]
[80,50,5,"805015",2.645]
[80,50,4,"805014",2.5409999999999999]
[80,50,3,"805013",2.4369999999999998]
[80,50,2,"805012",2.3319999999999999]
[80,50,1,"805011",2.2280000000000002]
[80,50,0,"805010",2.1240000000000001]
[80,50,-1,"805009",2.02]
[80,50,-2,"805008",1.9159999999999999]
[80,50,-3,"805007",1.8109999999999999]
[80,50,-4,"805006",1.7070000000000001]
[80,50,-5,"805005",1.603]
[80,50,-6,"805004",1.4990000000000001]
[80,50,-7,"805003",1.395]
[80,50,-8,"805002",1.29]
[80,50,-9,"805001",1.1859999999999999]
[80,50,-10,"805000",1.0620000000000001]
[80,60,10,"806020",3.968]
[80,60,9,"806019",2.681]
[80,60,8,"806018",2.59]
[80,60,7,"806017",2.4990000000000001]
[80,60,6,"806016",2.407]
[80,60,5,"806015",2.3159999999999998]
[80,60,4,{"$f":"TEXT(A386,\"00\")&TEXT(B386,\"00\")&TEXT(C386+10,\"00\")","v":"806014"},2.2250000000000001]
[80,60,3,"806013",2.1339999999999999]
[80,60,2,"806012",2.0419999999999998]
[80,60,1,"806011",1.9510000000000001]
[80,60,0,"806010",1.86]
[80,60,-1,"806009",1.7689999999999999]
[80,60,-2,"806008",1.6779999999999999]
[80,60,-3,"806007",1.5860000000000001]
[80,60,-4,"806006",1.4950000000000001]
[80,60,-5,"806005",1.4039999999999999]
[80,60,-6,"806004",1.3129999999999999]
[80,60,-7,"806003",1.2210000000000001]
[80,60,-8,"806002",1.1299999999999999]
[80,60,-9,"806001",1.0389999999999999]
[80,60,-10,"806000",0.93]
[80,70,10,"807020",2.782]
[80,70,9,"807019",1.88]
[80,70,8,"807018",1.8160000000000001]
[80,70,7,"807017",1.752]
[80,70,6,"807016",1.6879999999999999]
[80,70,5,"807015",1.6240000000000001]
[80,70,4,"807014",1.56]
[80,70,3,"807013",1.496]
[80,70,2,"807012",1.4319999999999999]
[80,70,1,"807011",1.3680000000000001]
[80,70,0,"807010",1.304]
[80,70,-1,"807009",1.24]
[80,70,-2,"807008",1.1759999999999999]
[80,70,-3,"807007",1.1120000000000001]
[80,70,-4,"807006",1.048]
[80,70,-5,"807005",0.98399999999999999]
[80,70,-6,"807004",0.92]
[80,70,-7,"807003",0.85599999999999998]
[80,70,-8,"807002",0.79200000000000004]
[80,70,-9,"807001",0.72799999999999998]
[80,70,-10,"807000",0.65200000000000002]
[78,0,10,"780020",4.452]
[78,0,9,"780019",3.008]
[78,0,8,"780018",2.9060000000000001]
[78,0,7,"780017",2.8039999999999998]
[78,0,6,"780016",2.7010000000000001]
[78,0,5,"780015",2.5990000000000002]
[78,0,4,"780014",2.4969999999999999]
[78,0,3,"780013",2.3940000000000001]
[78,0,2,"780012",2.2919999999999998]
[78,0,1,"780011",2.1890000000000001]
[78,0,0,"780010",2.0870000000000002]
[78,0,-1,"780009",1.9850000000000001]
[78,0,-2,"780008",1.8819999999999999]
[78,0,-3,"780007",1.78]
[78,0,-4,"780006",1.677]
[78,0,-5,"780005",1.575]
[78,0,-6,"780004",1.4730000000000001]
[78,0,-7,"780003",1.37]
[78,0,-8,"780002",1.268]
[78,0,-9,"780001",1.1659999999999999]
[78,0,-10,"780000",1.044]
[78,50,10,"785020",3.94]
[78,50,9,"785019",2.6619999999999999]
[78,50,8,"785018",2.5720000000000001]
[78,50,7,"785017",2.4809999999999999]
[78,50,6,"785016",2.391]
[78,50,5,"785015",2.2999999999999998]
[78,50,4,"785014",2.2090000000000001]
[78,50,3,{"$f":"TEXT(A450,\"00\")&TEXT(B450,\"00\")&TEXT(C450+10,\"00\")","v":"785013"},2.1190000000000002]
[78,50,2,"785012",2.028]
[78,50,1,"785011",1.9379999999999999]
[78,50,0,"785010",1.847]
[78,50,-1,"785009",1.756]
[78,50,-2,"785008",1.6659999999999999]
[78,50,-3,"785007",1.575]
[78,50,-4,"785006",1.4850000000000001]
[78,50,-5,"785005",1.3939999999999999]
[78,50,-6,"785004",1.3029999999999999]
[78,50,-7,"785003",1.2130000000000001]
[78,50,-8,"785002",1.1220000000000001]
[78,50,-9,"785001",1.032]
[78,50,-10,"785000",0.92400000000000004]
[78,60,10,"786020",3.3620000000000001]
[78,60,9,"786019",2.2719999999999998]
[78,60,8,"786018",2.1949999999999998]
[78,60,7,"786017",2.117]
[78,60,6,"786016",2.04]
[78,60,5,"786015",1.9630000000000001]
[78,60,4,"786014",1.885]
[78,60,3,"786013",1.8080000000000001]
[78,60,2,"786012",1.7310000000000001]
[78,60,1,"786011",1.653]
[78,60,0,"786010",1.5760000000000001]
[78,60,-1,"786009",1.4990000000000001]
[78,60,-2,"786008",1.421]
[78,60,-3,"786007",1.3440000000000001]
[78,60,-4,"786006",1.2669999999999999]
[78,60,-5,"786005",1.1890000000000001]
[78,60,-6,"786004",1.1120000000000001]
[78,60,-7,"786003",1.0349999999999999]
[78,60,-8,"786002",0.95699999999999996]
[78,60,-9,"786001",0.88]
[78,60,-10,"786000",0.78800000000000003]
[78,70,10,"787020",2.1349999999999998]
[78,70,9,"787019",1.4430000000000001]
[78,70,8,"787018",1.3939999999999999]
[78,70,7,"787017",1.345]
[78,70,6,"787016",1.296]
[78,70,5,"787015",1.2470000000000001]
[78,70,4,"787014",1.1970000000000001]
[78,70,3,"787013",1.1479999999999999]
[78,70,2,"787012",1.099]
[78,70,1,"787011",1.05]
[78,70,0,"787010",1.0009999999999999]
[78,70,-1,"787009",0.95199999999999996]
[78,70,-2,"787008",0.90300000000000002]
[78,70,-3,"787007",0.85399999999999998]
[78,70,-4,"787006",0.80500000000000005]
[78,70,-5,"787005",0.755]
[78,70,-6,"787004",0.70599999999999996]
[78,70,-7,"787003",0.65700000000000003]
[78,70,-8,"787002",0.60799999999999998]
[78,70,-9,"787001",0.55900000000000005]
[78,70,-10,"787000",0.501]
[75,0,10,"750020",3.7080000000000002]
[75,0,9,"750019",2.5049999999999999]
[75,0,8,"750018",2.42]
[75,0,7,"750017",2.335]
[75,0,6,"750016",2.25]
[75,0,5,"750015",2.1640000000000001]
[75,0,4,"750014",2.0790000000000002]
[75,0,3,"750013",1.994]
[75,0,2,{"$f":"TEXT(A514,\"00\")&TEXT(B514,\"00\")&TEXT(C514+10,\"00\")","v":"750012"},1.909]
[75,0,1,"750011",1.823]
[75,0,0,"750010",1.738]
[75,0,-1,"750009",1.653]
[75,0,-2,"750008",1.5669999999999999]
[75,0,-3,"750007",1.482]
[75,0,-4,"750006",1.397]
[75,0,-5,"750005",1.3120000000000001]
[75,0,-6,"750004",1.226]
[75,0,-7,"750003",1.141]
[75,0,-8,"750002",1.056]
[75,0,-9,"750001",0.97099999999999997]
[75,0,-10,"750000",0.86899999999999999]
[75,50,10,"755020",3.1659999999999999]
[75,50,9,"755019",2.1389999999999998]
[75,50,8,"755018",2.0659999999999998]
[75,50,7,"755017",1.994]
[75,50,6,"755016",1.921]
[75,50,5,"755015",1.8480000000000001]
[75,50,4,"755014",1.7749999999999999]
[75,50,3,"755013",1.702]
[75,50,2,"755012",1.63]
[75,50,1,"755011",1.5569999999999999]
[75,50,0,"755010",1.484]
[75,50,-1,"755009",1.411]
[75,50,-2,"755008",1.3380000000000001]
[75,50,-3,"755007",1.266]
[75,50,-4,"755006",1.1930000000000001]
[75,50,-5,"755005",1.1200000000000001]
[75,50,-6,"755004",1.0469999999999999]
[75,50,-7,"755003",0.97399999999999998]
[75,50,-8,"755002",0.90200000000000002]
[75,50,-9,"755001",0.82899999999999996]
[75,50,-10,"755000",0.74199999999999999]
[75,60,10,"756020",2.573]
[75,60,9,"756019",1.738]
[75,60,8,"756018",1.679]
[75,60,7,"756017",1.62]
[75,60,6,"756016",1.5609999999999999]
[75,60,5,"756015",1.502]
[75,60,4,"756014",1.4430000000000001]
[75,60,3,"756013",1.383]
[75,60,2,"756012",1.3240000000000001]
[75,60,1,"756011",1.2649999999999999]
[75,60,0,"756010",1.206]
[75,60,-1,"756009",1.147]
[75,60,-2,"756008",1.0880000000000001]
[75,60,-3,"756007",1.0289999999999999]
[75,60,-4,"756006",0.96899999999999997]
[75,60,-5,"756005",0.91]
[75,60,-6,"756004",0.85099999999999998]
[75,60,-7,"756003",0.79200000000000004]
[75,60,-8,"756002",0.73299999999999998]
[75,60,-9,"756001",0.67400000000000004]
[75,60,-10,"756000",0.60299999999999998]
[75,70,10,"757020",1.276]
[75,70,9,"757019",0.86199999999999999]
[75,70,8,"757018",0.83299999999999996]
[75,70,7,"757017",0.80300000000000005]
[75,70,6,"757016",0.77400000000000002]
[75,70,5,"757015",0.745]
[75,70,4,"757014",0.71499999999999997]
[75,70,3,"757013",0.68600000000000005]
[75,70,2,"757012",0.65700000000000003]
[75,70,1,{"$f":"TEXT(A578,\"00\")&TEXT(B578,\"00\")&TEXT(C578+10,\"00\")","v":"757011"},0.627]
[75,70,0,"757010",0.59799999999999998]
[75,70,-1,"757009",0.56899999999999995]
[75,70,-2,"757008",0.53900000000000003]
[75,70,-3,"757007",0.51]
[75,70,-4,"757006",0.48099999999999998]
[75,70,-5,"757005",0.45100000000000001]
[75,70,-6,"757004",0.42199999999999999]
[75,70,-7,"757003",0.39300000000000002]
[75,70,-8,"757002",0.36299999999999999]
[75,70,-9,"757001",0.33400000000000002]
[75,70,-10,"757000",0.29899999999999999]
[70,0,10,"700020",2.754]
[70,0,9,"700019",1.861]
[70,0,8,"700018",1.798]
[70,0,7,"700017",1.734]
[70,0,6,"700016",1.671]
[70,0,5,"700015",1.6080000000000001]
[70,0,4,"700014",1.544]
[70,0,3,"700013",1.4810000000000001]
[70,0,2,"700012",1.4179999999999999]
[70,0,1,"700011",1.3540000000000001]
[70,0,0,"700010",1.2909999999999999]
[70,0,-1,"700009",1.228]
[70,0,-2,"700008",1.1639999999999999]
[70,0,-3,"700007",1.101]
[70,0,-4,"700006",1.038]
[70,0,-5,"700005",0.97399999999999998]
[70,0,-6,"700004",0.91100000000000003]
[70,0,-7,"700003",0.84799999999999998]
[70,0,-8,"700002",0.78400000000000003]
[70,0,-9,"700001",0.72099999999999997]
[70,0,-10,"700000",0.64600000000000002]
[70,50,10,"705020",2.1800000000000002]
[70,50,9,"705019",1.4730000000000001]
[70,50,8,"705018",1.423]
[70,50,7,"705017",1.373]
[70,50,6,"705016",1.323]
[70,50,5,"705015",1.2729999999999999]
[70,50,4,"705014",1.2230000000000001]
[70,50,3,"705013",1.1719999999999999]
[70,50,2,"705012",1.1220000000000001]
[70,50,1,"705011",1.0720000000000001]
[70,50,0,"705010",1.022]
[70,50,-1,"705009",0.97199999999999998]
[70,50,-2,"705008",0.92200000000000004]
[70,50,-3,"705007",0.872]
[70,50,-4,"705006",0.82099999999999995]
[70,50,-5,"705005",0.77100000000000002]
[70,50,-6,"705004",0.72099999999999997]
[70,50,-7,"705003",0.67100000000000004]
[70,50,-8,"705002",0.621]
[70,50,-9,"705001",0.57099999999999995]
[70,50,-10,"705000",0.51100000000000001]
[70,60,10,"706020",1.5229999999999999]
[70,60,9,"706019",1.0289999999999999]
[70,60,8,"706018",0.99399999999999999]
[70,60,7,"706017",0.95899999999999996]
[70,60,6,"706016",0.92400000000000004]
[70,60,5,"706015",0.88900000000000001]
[70,60,4,"706014",0.85399999999999998]
[70,60,3,"706013",0.81899999999999995]
[70,60,2,"706012",0.78400000000000003]
[70,60,1,"706011",0.749]
[70,60,0,{"$f":"TEXT(A642,\"00\")&TEXT(B642,\"00\")&TEXT(C642+10,\"00\")","v":"706010"},0.71399999999999997]
[70,60,-1,"706009",0.67900000000000005]
[70,60,-2,"706008",0.64400000000000002]
[70,60,-3,"706007",0.60899999999999999]
[70,60,-4,"706006",0.57399999999999995]
[70,60,-5,"706005",0.53900000000000003]
[70,60,-6,"706004",0.504]
[70,60,-7,"706003",0.46899999999999997]
[70,60,-8,"706002",0.434]
[70,60,-9,"706001",0.39900000000000002]
[70,60,-10,"706000",0.35699999999999998]
[65,0,10,"650020",2.0819999999999999]
[65,0,9,"650019",1.407]
[65,0,8,"650018",1.359]
[65,0,7,"650017",1.3109999999999999]
[65,0,6,"650016",1.2629999999999999]
[65,0,5,"650015",1.2150000000000001]
[65,0,4,"650014",1.1679999999999999]
[65,0,3,"650013",1.1200000000000001]
[65,0,2,"650012",1.0720000000000001]
[65,0,1,"650011",1.024]
[65,0,0,"650010",0.97599999999999998]
[65,0,-1,"650009",0.92800000000000005]
[65,0,-2,"650008",0.88]
[65,0,-3,"650007",0.83199999999999996]
[65,0,-4,"650006",0.78400000000000003]
[65,0,-5,"650005",0.73699999999999999]
[65,0,-6,"650004",0.68899999999999995]
[65,0,-7,"650003",0.64100000000000001]
[65,0,-8,"650002",0.59299999999999997]
[65,0,-9,"650001",0.54500000000000004]
[65,0,-10,"650000",0.48799999999999999]
[65,50,10,"655020",1.446]
[65,50,9,"655019",0.97699999999999998]
[65,50,8,"655018",0.94399999999999995]
[65,50,7,"655017",0.91100000000000003]
[65,50,6,"655016",0.878]
[65,50,5,"655015",0.84399999999999997]
[65,50,4,"655014",0.81100000000000005]
[65,50,3,"655013",0.77800000000000002]
[65,50,2,"655012",0.745]
[65,50,1,"655011",0.71099999999999997]
[65,50,0,"655010",0.67800000000000005]
[65,50,-1,"655009",0.64500000000000002]
[65,50,-2,"655008",0.61099999999999999]
[65,50,-3,"655007",0.57799999999999996]
[65,50,-4,"655006",0.54500000000000004]
[65,50,-5,"655005",0.51200000000000001]
[65,50,-6,"655004",0.47799999999999998]
[65,50,-7,"655003",0.44500000000000001]
[65,50,-8,"655002",0.41199999999999998]
[65,50,-9,"655001",0.379]
[65,50,-10,"655000",0.33900000000000002]
[65,60,10,"656020",0.72499999999999998]
[65,60,9,"656019",0.49]
[65,60,8,"656018",0.47299999999999998]
[65,60,7,"656017",0.45700000000000002]
[65,60,6,"656016",0.44]
[65,60,5,"656015",0.42299999999999999]
[65,60,4,"656014",0.40699999999999997]
[65,60,3,"656013",0.39]
[65,60,2,"656012",0.373]
[65,60,1,"656011",0.35699999999999998]
[65,60,0,"656010",0.34]
[65,60,-1,{"$f":"TEXT(A706,\"00\")&TEXT(B706,\"00\")&TEXT(C706+10,\"00\")","v":"656009"},0.32300000000000001]
[65,60,-2,"656008",0.307]
[65,60,-3,"656007",0.28999999999999998]
[65,60,-4,"656006",0.27300000000000002]
[65,60,-5,"656005",0.25700000000000001]
[65,60,-6,"656004",0.24]
[65,60,-7,"656003",0.223]
[65,60,-8,"656002",0.20699999999999999]
[65,60,-9,"656001",0.19]
[65,60,-10,"656000",0.17]
[60,0,10,"600020",1.5589999999999999]
[60,0,9,"600019",1.054]
[60,0,8,"600018",1.018]
[60,0,7,"600017",0.98199999999999998]
[60,0,6,"600016",0.94599999999999995]
[60,0,5,"600015",0.91]
[60,0,4,"600014",0.874]
[60,0,3,"600013",0.83899999999999997]
[60,0,2,"600012",0.80300000000000005]
[60,0,1,"600011",0.76700000000000002]
[60,0,0,"600010",0.73099999999999998]
[60,0,-1,"600009",0.69499999999999995]
[60,0,-2,"600008",0.65900000000000003]
[60,0,-3,"600007",0.623]
[60,0,-4,"600006",0.58799999999999997]
[60,0,-5,"600005",0.55200000000000005]
[60,0,-6,"600004",0.51600000000000001]
[60,0,-7,"600003",0.48]
[60,0,-8,"600002",0.44400000000000001]
[60,0,-9,"600001",0.40799999999999997]
[60,0,-10,"600000",0.36599999999999999]
[60,50,10,"605020",0.872]
[60,50,9,"605019",0.59]
[60,50,8,"605018",0.56999999999999995]
[60,50,7,"605017",0.54900000000000004]
[60,50,6,"605016",0.52900000000000003]
[60,50,5,"605015",0.50900000000000001]
[60,50,4,"605014",0.48899999999999999]
[60,50,3,"605013",0.46899999999999997]
[60,50,2,"605012",0.44900000000000001]
[60,50,1,"605011",0.42899999999999999]
[60,50,0,"605010",0.40899999999999997]
[60,50,-1,"605009",0.38900000000000001]
[60,50,-2,"605008",0.36899999999999999]
[60,50,-3,"605007",0.34899999999999998]
[60,50,-4,"605006",0.32900000000000001]
[60,50,-5,"605005",0.309]
[60,50,-6,"605004",0.28899999999999998]
[60,50,-7,"605003",0.26900000000000002]
[60,50,-8,"605002",0.248]
[60,50,-9,"605001",0.22800000000000001]
[60,50,-10,"605000",0.20499999999999999]
[55,0,10,"550020",1.175]
[55,0,9,"550019",0.79400000000000004]
[55,0,8,"550018",0.76700000000000002]
[55,0,7,"550017",0.74]
[55,0,6,"550016",0.71299999999999997]
[55,0,5,"550015",0.68600000000000005]
[55,0,4,"550014",0.65900000000000003]
[55,0,3,"550013",0.63200000000000001]
[55,0,2,"550012",0.60499999999999998]
[55,0,1,"550011",0.57799999999999996]
[55,0,0,"550010",0.55100000000000005]
[55,0,-1,"550009",0.52400000000000002]
[55,0,-2,{"$f":"TEXT(A770,\"00\")&TEXT(B770,\"00\")&TEXT(C770+10,\"00\")","v":"550008"},0.497]
[55,0,-3,"550007",0.47]
[55,0,-4,"550006",0.443]
[55,0,-5,"550005",0.41599999999999998]
[55,0,-6,"550004",0.38900000000000001]
[55,0,-7,"550003",0.36199999999999999]
[55,0,-8,"550002",0.33500000000000002]
[55,0,-9,"550001",0.308]
[55,0,-10,"550000",0.27600000000000002]
[55,50,10,"555020",0.41]
[55,50,9,"555019",0.27700000000000002]
[55,50,8,"555018",0.26700000000000002]
[55,50,7,"555017",0.25800000000000001]
[55,50,6,"555016",0.249]
[55,50,5,"555015",0.23899999999999999]
[55,50,4,"555014",0.23]
[55,50,3,"555013",0.22]
[55,50,2,"555012",0.21099999999999999]
[55,50,1,"555011",0.20100000000000001]
[55,50,0,"555010",0.192]
[55,50,-1,"555009",0.183]
[55,50,-2,"555008",0.17299999999999999]
[55,50,-3,"555007",0.16400000000000001]
[55,50,-4,"555006",0.154]
[55,50,-5,"555005",0.14499999999999999]
[55,50,-6,"555004",0.13500000000000001]
[55,50,-7,"555003",0.126]
[55,50,-8,"555002",0.11700000000000001]
[55,50,-9,"555001",0.107]
[55,50,-10,"555000",9.6000000000000002E-2]
[50,0,10,"500020",0.92600000000000005]
[50,0,9,"500019",0.626]
[50,0,8,"500018",0.60399999999999998]
[50,0,7,"500017",0.58299999999999996]
[50,0,6,"500016",0.56200000000000006]
[50,0,5,"500015",0.54]
[50,0,4,"500014",0.51900000000000002]
[50,0,3,"500013",0.498]
[50,0,2,"500012",0.47699999999999998]
[50,0,1,"500011",0.45500000000000002]
[50,0,0,"500010",0.434]
[50,0,-1,"500009",0.41299999999999998]
[50,0,-2,"500008",0.39100000000000001]
[50,0,-3,"500007",0.37]
[50,0,-4,"500006",0.34899999999999998]
[50,0,-5,"500005",0.32800000000000001]
[50,0,-6,"500004",0.30599999999999999]
[50,0,-7,"500003",0.28499999999999998]
[50,0,-8,"500002",0.26400000000000001]
[50,0,-9,"500001",0.24199999999999999]
[50,0,-10,"500000",0.217]

{"sheet":"ツール構成","index":8,"n_rows":132,"n_cols":25,"rows_kept":132,"cut":false,"hidden":false,"merged":[[4,1,4,24],[5,1,5,6],[5,7,5,12],[5,13,5,18],[5,19,5,24],[6,1,6,6],[6,7,6,12],[6,13,6,18],[6,19,6,24],[15,20,15,24],[20,1,20,24],[21,1,21,6],[21,13,21,18],[21,19,21,24],[22,1,22,6],[22,13,22,18],[22,19,22,24],[7,8,7,12],[12,1,12,24],[13,1,13,6],[13,19,13,24],[14,1,14,6],[14,19,14,24],[30,1,30,6],[30,7,30,12],[30,13,30,18],[30,19,30,24],[31,2,31,6],[31,8,31,12],[31,14,31,18],[31,20,31,24],[23,14,23,18],[23,20,23,24],[28,1,28,24],[29,1,29,6],[29,7,29,12],[29,13,29,18],[29,19,29,24],[36,1,36,24],[37,1,37,6],[37,7,37,12],[37,13,37,18],[37,19,37,24],[38,1,38,6],[38,7,38,12],[38,13,38,18],[38,19,38,24],[46,1,46,6],[46,7,46,12],[46,13,46,18],[46,19,46,24],[47,8,47,12],[47,14,47,18],[47,20,47,24],[39,14,39,18],[39,20,39,24],[44,1,44,24],[45,1,45,6],[45,7,45,12],[45,13,45,18],[45,19,45,24],[52,1,52,24],[53,1,53,6],[53,7,53,12],[53,13,53,18],[53,19,53,24],[54,1,54,6],[54,7,54,12],[54,13,54,18],[54,19,54,24],[62,1,62,6],[62,7,62,12],[62,13,62,18],[62,19,62,24],[63,8,63,12],[63,14,63,18],[63,20,63,24],[55,8,55,12],[55,14,55,18],[55,20,55,24],[60,1,60,24],[61,1,61,6],[61,7,61,12],[61,13,61,18],[61,19,61,24],[68,1,68,24],[69,1,69,6],[69,7,69,12],[69,13,69,18],[69,19,69,24],[70,1,70,6],[70,7,70,12],[70,13,70,18],[70,19,70,24],[78,1,78,6],[78,7,78,12],[78,13,78,18],[78,19,78,24],[79,8,79,12],[79,14,79,18],[79,20,79,24],[71,8,71,12],[71,14,71,18],[71,20,71,24],[76,1,76,24],[77,1,77,6],[77,7,77,12],[77,13,77,18],[77,19,77,24],[84,14,84,18],[84,20,84,24],[89,1,89,24],[90,1,90,6],[90,7,90,12],[90,13,90,18],[90,19,90,24],[82,7,82,12],[82,13,82,18],[82,19,82,24],[83,7,83,12],[83,13,83,18],[83,19,83,24],[96,1,96,24],[97,1,97,6],[97,19,97,24],[98,1,98,6],[98,19,98,24],[99,20,99,24],[91,1,91,6],[91,7,91,12],[91,13,91,18],[91,19,91,24],[92,2,92,6],[92,14,92,18],[92,20,92,24],[114,1,114,6],[114,7,114,12],[114,19,114,24],[115,8,115,12],[115,20,115,24],[120,1,120,24],[104,1,104,24],[105,19,105,24],[106,19,106,24],[107,20,107,24],[112,1,112,24],[113,1,113,6],[113,7,113,12],[113,19,113,24],[129,19,129,24],[130,19,130,24],[131,20,131,24],[121,1,121,6],[121,19,121,24],[122,1,122,6],[122,19,122,24],[123,20,123,24],[128,1,128,24]]}
["モジュール構成"]
["V6時点"]
[]
[]
[null,"Page_1（開始）"]
[null,"新規",null,null,null,null,null,"読み込み",null,null,null,null,null,"保険料率更新",null,null,null,null,null,"終了"]
[null,"Btn1_Start_Click",null,null,null,null,null,"Btn1_ReStart_Click",null,null,null,null,null,"Btn1_Koushin_Click",null,null,null,null,null,"Btn1_Quit_Click"]
[null,null,null,null,null,null,null,null,"→Page_14（再開読込）",null,null,null,null,null,null,null,null,null,"※画面移動なし",null,null,null,null,null,"プログラム終了"]
[]
[]
[]
[]
[null,"Page_2（利用にあたって）"]
[null,"次へ>>",null,null,null,null,null,null,null,null,null,null,null,null,null,null,null,null,null,"最初へ"]
[null,"Btn2_Next_Click",null,null,null,null,null,null,null,null,null,null,null,null,null,null,null,null,null,"Btn2_Top_Click"]
[null,null,null,null,null,null,null,null,null,null,null,null,null,null,null,null,null,null,null,null,"→Page_1（開始）"]
[null,null,null,null,null,null,null,null,null,null,null,null,null,null,null,null,null,null,null,null,null,null,null,null,"※初期化　実行"]
[]
[]
[]
[null,"Page_3（入力1（転記））"]
[null,"次へ>>",null,null,null,null,null,null,null,null,null,null,null,"保存",null,null,null,null,null,"最初へ"]
[null,"Btn3_Next_Click",null,null,null,null,null,null,null,null,null,null,null,"Btn3_Save_Click",null,null,null,null,null,"Btn3_Top_Click"]
[null,null,null,null,null,null,null,null,null,null,null,null,null,null,"→Page_15（保存）",null,null,null,null,null,"→Page_1（開始）"]
[null,null,null,null,null,null,null,null,null,null,null,null,null,null,null,null,null,null,null,null,null,null,null,null,"※初期化　実行"]
[]
[]
[]
[null,"Page_4（入力２（転記））"]
[null,"次へ>>",null,null,null,null,null,"<< 戻る",null,null,null,null,null,"保存",null,null,null,null,null,"最初へ"]
[null,"Btn4_Next_Click",null,null,null,null,null,"Btn4_Back_Click",null,null,null,null,null,"Btn4_Save_Click",null,null,null,null,null,"Btn4_Top_Click"]
[null,null,"→Page_6（入力４）",null,null,null,null,null,"→手前の画面へ",null,null,null,null,null,"→Page_15（保存）",null,null,null,null,null,"→Page_1（開始）"]
[null,null,null,null,null,null,null,null,null,null,null,null,null,null,null,null,null,null,null,null,null,null,null,null,"※初期化　実行"]
[]
[]
[]
[null,"Page_5（入力３）　※過去Verにて使用"]
[null,"次へ>>",null,null,null,null,null,"<< 戻る",null,null,null,null,null,"保存",null,null,null,null,null,"最初へ"]
[null,"Btn5_Next_Click",null,null,null,null,null,"Btn5_Back_Click",null,null,null,null,null,"Btn5_Save_Click",null,null,null,null,null,"Btn5_Top_Click"]
[null,null,null,null,null,null,null,null,null,null,null,null,null,null,"→Page_15（保存）",null,null,null,null,null,"→Page_1（開始）"]
[null,null,null,null,null,null,null,null,null,null,null,null,null,null,null,null,null,null,null,null,null,null,null,null,"※初期化　実行"]
[]
[]
[]
[null,"Page_6（入力４）"]
[null,"次へ>>",null,null,null,null,null,"<< 戻る",null,null,null,null,null,"保存",null,null,null,null,null,"最初へ"]
[null,"Btn6_Next_Click",null,null,null,null,null,"Btn6_Back_Click",null,null,null,null,null,"Btn6_Save_Click",null,null,null,null,null,"Btn6_Top_Click"]
[null,null,null,null,null,null,null,null,"→Page_4（入力２（転記））",null,null,null,null,null,"→Page_15（保存）",null,null,null,null,null,"→Page_1（開始）"]
[null,null,null,null,null,null,null,null,null,null,null,null,null,null,null,null,null,null,null,null,null,null,null,null,"※初期化　実行"]
[]
[]
[]
[null,"Page_7（入力５）"]
[null,"次へ>>",null,null,null,null,null,"<< 戻る",null,null,null,null,null,"保存",null,null,null,null,null,"最初へ"]
[null,"Btn7_Next_Click",null,null,null,null,null,"Btn7_Back_Click",null,null,null,null,null,"Btn7_Save_Click",null,null,null,null,null,"Btn7_Top_Click"]
[null,null,null,null,null,null,null,null,"→手前の画面へ",null,null,null,null,null,"→Page_15（保存）",null,null,null,null,null,"→Page_1（開始）"]
[null,null,null,null,null,null,null,null,null,null,null,null,null,null,null,null,null,null,null,null,null,null,null,null,"※初期化　実行"]
[]
[]
[]
[null,"Page_8（入力６）"]
[null,"次へ>>",null,null,null,null,null,"<< 戻る",null,null,null,null,null,"保存",null,null,null,null,null,"最初へ"]
[null,"Btn8_Next_Click",null,null,null,null,null,"Btn8_Back_Click",null,null,null,null,null,"Btn8_Save_Click",null,null,null,null,null,"Btn8_Top_Click"]
[null,null,null,null,null,null,null,null,"→手前の画面へ",null,null,null,null,null,"→Page_15（保存）",null,null,null,null,null,"→Page_1（開始）"]
[null,null,null,null,null,null,null,null,null,null,null,null,null,null,null,null,null,null,null,null,null,null,null,null,"※初期化　実行"]
[]
[]
[]
[null,"Page_9（結果１）"]
[null,"次へ>>",null,null,null,null,null,"<< 戻る",null,null,null,null,null,"保存",null,null,null,null,null,"最初へ"]
[null,"Btn9_Next_Click",null,null,null,null,null,"Btn9_Back_Click",null,null,null,null,null,"Btn9_Save_Click",null,null,null,null,null,"Btn9_Top_Click"]
[null,null,null,null,null,null,null,null,"→手前の画面へ",null,null,null,null,null,"→Page_15（保存）",null,null,null,null,null,"→Page_1（開始）"]
[null,null,null,null,null,null,null,null,null,null,null,null,null,null,null,null,null,null,null,null,null,null,null,null,"※初期化　実行"]
[]
[]
[]
[null,"Page_10（結果２）"]
[null,"次へ>>",null,null,null,null,null,"<< 戻る",null,null,null,null,null,"保存",null,null,null,null,null,"最初へ"]
[null,"Btn10_Next_Click",null,null,null,null,null,"Btn10_Back_Click",null,null,null,null,null,"Btn10_Save_Click",null,null,null,null,null,"Btn10_Top_Click"]
[null,null,null,null,null,null,null,null,"→手前の画面へ",null,null,null,null,null,"→Page_15（保存）",null,null,null,null,null,"→Page_1（開始）"]
[null,null,null,null,null,null,null,null,null,null,null,null,null,null,null,null,null,null,null,null,null,null,null,null,"※初期化　実行"]
[]
[null,null,null,null,null,null,null,"EXCEL出力",null,null,null,null,null,"翌年度以降-表示",null,null,null,null,null,"計算根拠-表示"]
[null,null,null,null,null,null,null,"Btn10_Excel_Click",null,null,null,null,null,"Btn10_HokenryoShisan_Click",null,null,null,null,null,"Btn10_KeisanKonkyo_Click"]
[null,null,null,null,null,null,null,null,null,null,null,null,"※画面移動なし",null,"→Page_12（前提条件）",null,null,null,null,null,"→Page_16（計算根拠）"]
[]
[]
[]
[]
[null,"Page_11（結果３）"]
[null,"<< 戻る",null,null,null,null,null,"EXCEL出力",null,null,null,null,null,"保存",null,null,null,null,null,"最初へ"]
[null,"Btn11_Back_Click",null,null,null,null,null,"Btn11_Excel_Click",null,null,null,null,null,"Btn11_Save_Click",null,null,null,null,null,"Btn11_Top_Click"]
[null,null,"→手前の画面へ",null,null,null,null,null,null,null,null,null,"※画面移動なし",null,"→Page_15（保存）",null,null,null,null,null,"→Page_1（開始）"]
[null,null,null,null,null,null,null,null,null,null,null,null,null,null,null,null,null,null,null,null,null,null,null,null,"※初期化　実行"]
[]
[]
[null,"Page_12（前提条件）"]
[null,"次へ>>",null,null,null,null,null,null,null,null,null,null,null,null,null,null,null,null,null,"<< 戻る"]
[null,"Btn12_Next_Click",null,null,null,null,null,null,null,null,null,null,null,null,null,null,null,null,null,"Btn12_Back_Click"]
[null,null,null,null,null,null,null,null,null,null,null,null,null,null,null,null,null,null,null,null,"→Page_10（結果２）"]
[]
[]
[]
[]
[null,"Page_13（保険請求後の保険料）"]
[null,null,null,null,null,null,null,null,null,null,null,null,null,null,null,null,null,null,null,"<< 戻る"]
[null,null,null,null,null,null,null,null,null,null,null,null,null,null,null,null,null,null,null,"Btn12_Back_Click"]
[null,null,null,null,null,null,null,null,null,null,null,null,null,null,null,null,null,null,null,null,"→Page_10（結果２）"]
[]
[]
[]
[]
[null,"Page_14（再開読込）"]
[null,"フォルダ指定",null,null,null,null,null,"読込",null,null,null,null,null,null,null,null,null,null,null,"<< 戻る"]
[null,"Btn14_FolderTarget_Click",null,null,null,null,null,"Btn14_LoadTarget_Click",null,null,null,null,null,null,null,null,null,null,null,"Btn14_Back_Click"]
[null,null,null,null,null,null,"※画面移動なし",null,"→Page_3（入力1（転記））",null,null,null,null,null,null,null,null,null,null,null,"→Page_1（開始）"]
[]
[]
[]
[]
[null,"Page_15（保存）"]
[null,"保存",null,null,null,null,null,null,null,null,null,null,null,null,null,null,null,null,null,"<< 戻る"]
[null,"Btn15_DataSaveButton_Click",null,null,null,null,null,null,null,null,null,null,null,null,null,null,null,null,null,"Btn14_Back_Click"]
[null,null,null,null,null,null,"※画面移動なし",null,null,null,null,null,null,null,null,null,null,null,null,null,"→（保存ボタン押下したページ）"]
[]
[]
[]
[]
[null,"Page_16（計算根拠）"]
[null,null,null,null,null,null,null,null,null,null,null,null,null,null,null,null,null,null,null,"閉じる"]
[null,null,null,null,null,null,null,null,null,null,null,null,null,null,null,null,null,null,null,"Btn16_Close_Click"]
[null,null,null,null,null,null,null,null,null,null,null,null,null,null,null,null,null,null,null,null,"→Page_10（結果２）"]

{"sheet":"結果_Form","index":9,"n_rows":100,"n_cols":35,"rows_kept":100,"cut":false,"hidden":false,"merged":[[0,0,0,34],[1,0,2,13],[1,30,1,34],[3,0,5,0],[3,1,5,5],[3,6,3,8],[3,9,3,11],[3,12,3,14],[3,15,3,21],[3,22,3,26],[3,27,3,30],[3,31,3,34],[4,6,5,8],[4,9,5,11],[4,12,5,14],[4,15,5,21],[4,22,5,26],[4,27,5,30],[4,31,5,34],[6,22,7,26],[6,27,7,30],[6,31,7,34],[9,0,11,0],[9,1,11,5],[9,6,10,8],[9,9,10,11],[9,12,10,14],[9,15,10,21],[9,22,10,26],[6,0,8,0],[6,1,8,5],[6,6,7,8],[6,9,7,11],[6,12,7,14],[6,15,7,21],[9,27,10,30],[9,31,10,34],[12,0,14,0],[12,1,14,5],[12,6,13,8],[12,9,13,11],[12,12,13,14],[12,15,13,21],[12,22,13,26],[12,27,13,30],[12,31,13,34],[15,0,17,0],[15,1,17,5],[15,6,16,8],[15,9,16,11],[15,12,16,14],[15,15,16,21],[15,22,16,26],[15,27,16,30],[15,31,16,34],[18,22,19,26],[18,27,19,30],[18,31,19,34],[21,0,23,0],[21,1,23,5],[21,6,22,8],[21,9,22,11],[21,12,22,14],[21,15,22,21],[21,22,22,26],[18,0,20,0],[18,1,20,5],[18,6,19,8],[18,9,19,11],[18,12,19,14],[18,15,19,21],[21,27,22,30],[21,31,22,34],[24,0,26,0],[24,1,26,5],[24,6,25,8],[24,9,25,11],[24,12,25,14],[24,15,25,21],[24,22,25,26],[24,27,25,30],[24,31,25,34],[27,0,29,0],[27,1,29,5],[27,6,28,8],[27,9,28,11],[27,12,28,14],[27,15,28,21],[27,22,28,26],[27,27,28,30],[27,31,28,34],[30,22,31,26],[30,27,31,30],[30,31,31,34],[33,0,35,0],[33,1,35,5],[33,6,34,8],[33,9,34,11],[33,12,34,14],[33,15,34,21],[33,22,34,26],[30,0,32,0],[30,1,32,5],[30,6,31,8],[30,9,31,11],[30,12,31,14],[30,15,31,21],[36,31,37,34],[44,3,44,8],[44,10,44,14],[45,3,45,8],[45,10,45,14],[46,10,46,14],[33,27,34,30],[33,31,34,34],[36,0,38,0],[36,1,38,5],[36,6,37,8],[36,9,37,11],[36,12,37,14],[36,15,37,21],[36,22,37,26],[36,27,37,30],[57,3,57,8],[57,10,57,14],[58,10,58,14],[59,10,59,14],[60,3,60,8],[60,10,60,14],[47,10,47,14],[51,3,51,9],[51,10,51,14],[52,3,52,9],[52,10,52,14],[56,3,56,8],[56,10,56,14],[60,20,61,28],[61,3,61,6],[61,7,61,9],[61,10,61,14],[68,2,69,4],[71,7,71,11],[71,13,71,15],[71,16,71,21],[71,22,71,24],[71,25,71,28],[71,29,71,34],[73,16,73,21],[73,22,73,24],[73,25,73,28],[73,29,73,34],[75,16,75,21],[75,22,75,24],[75,25,75,28],[75,29,75,34],[77,13,77,15],[77,16,77,21],[77,22,77,24],[77,25,77,28],[77,29,77,34],[79,16,79,21],[79,22,79,24],[79,25,79,28],[79,29,79,34],[88,9,88,14],[88,28,88,33],[89,10,89,14],[89,29,89,33],[90,9,90,14],[90,28,90,33],[82,2,83,7],[82,19,83,27],[85,2,85,9],[85,10,85,14],[85,29,85,33],[87,2,87,9],[87,10,87,14],[87,29,87,33],[97,10,97,14],[97,29,97,33],[99,5,99,14],[91,10,91,14],[91,29,91,33],[93,10,93,14],[93,29,93,33],[94,5,94,14],[95,2,95,9],[95,10,95,14],[95,29,95,33]]}
["「農業経営収入保険　保険金等見積額算出ツール」 出力結果"]
[null,null,null,null,null,null,null,null,null,null,null,null,null,null,null,null,null,null,null,null,null,null,null,null,null,null,null,null,null,null,{"$f":"TODAY()","v":"2025-11-12"}]
[]
["明細","種類・品目等",null,null,null,null,"期首棚卸高",null,null,"販売金額",null,null,"事業消費金額",null,null,"期末棚卸高",null,null,null,null,null,null,"農業収入金額",null,null,null,null,"見込農業収入金額",null,null,null,"農業収入増減額"]
[null,null,null,null,null,null,"①",null,null,"②",null,null,"③",null,null,"④",null,null,null,null,null,null,"⑤=②＋③＋④－①",null,null,null,null,"⑥",null,null,null,"⑦=⑤－⑥"]
[]
["０１",{"$f":"IF(ShuruiHinmoku1<>\"\",ShuruiHinmoku1,\"\")","v":""},null,null,null,null,{"$f":"KishuTanaoroshi1","v":0},null,null,{"$f":"ShunyuKingakuShinkoku1","v":0},null,null,{"$f":"JigyoShohiKingaku1","v":0},null,null,{"$f":"KimatsuTanaoroshiKingaku1","v":0},null,null,null,null,null,null,{"$f":"NogyoShunyuKingaku1","v":0},null,null,null,null,{"$f":"MikomiNogyoShunyu1","v":0},null,null,null,{"$f":"NogyoShunyuZogengaku1","v":0}]
[]
[null,null,null,null,null,null,null,null,"円",null,null,"円",null,null,"円",null,null,null,null,null,null,"円",null,null,null,null,"円",null,null,null,"円",null,null,null,"円"]
[{"$f":"IF(MikomiNogyoTaishoHinmoku2>=2,\"０２\",\"\")","v":{"$error":"#VALUE!"}},{"$f":"IF(ShuruiHinmoku2<>\"\",ShuruiHinmoku2,\"\")","v":""},null,null,null,null,{"$f":"IF(MikomiNogyoTaishoHinmoku2>=2,KishuTanaoroshi2,\"\")","v":{"$error":"#VALUE!"}},null,null,{"$f":"IF(MikomiNogyoTaishoHinmoku2>=2,ShunyuKingakuShinkoku2,\"\")","v":{"$error":"#VALUE!"}},null,null,{"$f":"IF(MikomiNogyoTaishoHinmoku2>=2,JigyoShohiKingaku2,\"\")","v":{"$error":"#VALUE!"}},null,null,{"$f":"IF(MikomiNogyoTaishoHinmoku2>=2,KimatsuTanaoroshiKingaku2,\"\")","v":{"$error":"#VALUE!"}},null,null,null,null,null,null,{"$f":"IF(MikomiNogyoTaishoHinmoku2>=2,NogyoShunyuKingaku2,\"\")","v":{"$error":"#VALUE!"}},null,null,null,null,{"$f":"IF(MikomiNogyoTaishoHinmoku2>=2,MikomiNogyoShunyu2,\"\")","v":{"$error":"#VALUE!"}},null,null,null,{"$f":"IF(MikomiNogyoTaishoHinmoku2>=2,NogyoShunyuZogengaku2,\"\")","v":{"$error":"#VALUE!"}}]
[]
[null,null,null,null,null,null,null,null,{"$f":"IF(MikomiNogyoTaishoHinmoku2>=2,\"円\",\"\")","v":{"$error":"#VALUE!"}},null,null,{"$f":"IF(MikomiNogyoTaishoHinmoku2>=2,\"円\",\"\")","v":{"$error":"#VALUE!"}},null,null,{"$f":"IF(MikomiNogyoTaishoHinmoku2>=2,\"円\",\"\")","v":{"$error":"#VALUE!"}},null,null,null,null,null,null,{"$f":"IF(MikomiNogyoTaishoHinmoku2>=2,\"円\",\"\")","v":{"$error":"#VALUE!"}},null,null,null,null,{"$f":"IF(MikomiNogyoTaishoHinmoku2>=2,\"円\",\"\")","v":{"$error":"#VALUE!"}},null,null,null,{"$f":"IF(MikomiNogyoTaishoHinmoku2>=2,\"円\",\"\")","v":{"$error":"#VALUE!"}},null,null,null,{"$f":"IF(MikomiNogyoTaishoHinmoku2>=2,\"円\",\"\")","v":{"$error":"#VALUE!"}}]
[{"$f":"IF(MikomiNogyoTaishoHinmoku2>=3,\"０３\",\"\")","v":{"$error":"#VALUE!"}},{"$f":"IF(ShuruiHinmoku3<>\"\",ShuruiHinmoku3,\"\")","v":""},null,null,null,null,{"$f":"IF(MikomiNogyoTaishoHinmoku2>=3,KishuTanaoroshi3,\"\")","v":{"$error":"#VALUE!"}},null,null,{"$f":"IF(MikomiNogyoTaishoHinmoku2>=3,ShunyuKingakuShinkoku3,\"\")","v":{"$error":"#VALUE!"}},null,null,{"$f":"IF(MikomiNogyoTaishoHinmoku2>=3,JigyoShohiKingaku3,\"\")","v":{"$error":"#VALUE!"}},null,null,{"$f":"IF(MikomiNogyoTaishoHinmoku2>=3,KimatsuTanaoroshiKingaku3,\"\")","v":{"$error":"#VALUE!"}},null,null,null,null,null,null,{"$f":"IF(MikomiNogyoTaishoHinmoku2>=3,NogyoShunyuKingaku3,\"\")","v":{"$error":"#VALUE!"}},null,null,null,null,{"$f":"IF(MikomiNogyoTaishoHinmoku2>=3,MikomiNogyoShunyu3,\"\")","v":{"$error":"#VALUE!"}},null,null,null,{"$f":"IF(MikomiNogyoTaishoHinmoku2>=3,NogyoShunyuZogengaku3,\"\")","v":{"$error":"#VALUE!"}}]
[]
[null,null,null,null,null,null,null,null,{"$f":"IF(MikomiNogyoTaishoHinmoku2>=3,\"円\",\"\")","v":{"$error":"#VALUE!"}},null,null,{"$f":"IF(MikomiNogyoTaishoHinmoku2>=3,\"円\",\"\")","v":{"$error":"#VALUE!"}},null,null,{"$f":"IF(MikomiNogyoTaishoHinmoku2>=3,\"円\",\"\")","v":{"$error":"#VALUE!"}},null,null,null,null,null,null,{"$f":"IF(MikomiNogyoTaishoHinmoku2>=3,\"円\",\"\")","v":{"$error":"#VALUE!"}},null,null,null,null,{"$f":"IF(MikomiNogyoTaishoHinmoku2>=3,\"円\",\"\")","v":{"$error":"#VALUE!"}},null,null,null,{"$f":"IF(MikomiNogyoTaishoHinmoku2>=3,\"円\",\"\")","v":{"$error":"#VALUE!"}},null,null,null,{"$f":"IF(MikomiNogyoTaishoHinmoku2>=3,\"円\",\"\")","v":{"$error":"#VALUE!"}}]
[{"$f":"IF(MikomiNogyoTaishoHinmoku2>=4,\"０４\",\"\")","v":{"$error":"#VALUE!"}},{"$f":"IF(ShuruiHinmoku4<>\"\",ShuruiHinmoku4,\"\")","v":""},null,null,null,null,{"$f":"IF(MikomiNogyoTaishoHinmoku2>=4,KishuTanaoroshi4,\"\")","v":{"$error":"#VALUE!"}},null,null,{"$f":"IF(MikomiNogyoTaishoHinmoku2>=4,ShunyuKingakuShinkoku4,\"\")","v":{"$error":"#VALUE!"}},null,null,{"$f":"IF(MikomiNogyoTaishoHinmoku2>=4,JigyoShohiKingaku4,\"\")","v":{"$error":"#VALUE!"}},null,null,{"$f":"IF(MikomiNogyoTaishoHinmoku2>=4,KimatsuTanaoroshiKingaku4,\"\")","v":{"$error":"#VALUE!"}},null,null,null,null,null,null,{"$f":"IF(MikomiNogyoTaishoHinmoku2>=4,NogyoShunyuKingaku4,\"\")","v":{"$error":"#VALUE!"}},null,null,null,null,{"$f":"IF(MikomiNogyoTaishoHinmoku2>=4,MikomiNogyoShunyu4,\"\")","v":{"$error":"#VALUE!"}},null,null,null,{"$f":"IF(MikomiNogyoTaishoHinmoku2>=4,NogyoShunyuZogengaku4,\"\")","v":{"$error":"#VALUE!"}}]
[]
[null,null,null,null,null,null,null,null,{"$f":"IF(MikomiNogyoTaishoHinmoku2>=4,\"円\",\"\")","v":{"$error":"#VALUE!"}},null,null,{"$f":"IF(MikomiNogyoTaishoHinmoku2>=4,\"円\",\"\")","v":{"$error":"#VALUE!"}},null,null,{"$f":"IF(MikomiNogyoTaishoHinmoku2>=4,\"円\",\"\")","v":{"$error":"#VALUE!"}},null,null,null,null,null,null,{"$f":"IF(MikomiNogyoTaishoHinmoku2>=4,\"円\",\"\")","v":{"$error":"#VALUE!"}},null,null,null,null,{"$f":"IF(MikomiNogyoTaishoHinmoku2>=4,\"円\",\"\")","v":{"$error":"#VALUE!"}},null,null,null,{"$f":"IF(MikomiNogyoTaishoHinmoku2>=4,\"円\",\"\")","v":{"$error":"#VALUE!"}},null,null,null,{"$f":"IF(MikomiNogyoTaishoHinmoku2>=4,\"円\",\"\")","v":{"$error":"#VALUE!"}}]
[{"$f":"IF(MikomiNogyoTaishoHinmoku2>=5,\"０５\",\"\")","v":{"$error":"#VALUE!"}},{"$f":"IF(ShuruiHinmoku5<>\"\",ShuruiHinmoku5,\"\")","v":""},null,null,null,null,{"$f":"IF(MikomiNogyoTaishoHinmoku2>=5,KishuTanaoroshi5,\"\")","v":{"$error":"#VALUE!"}},null,null,{"$f":"IF(MikomiNogyoTaishoHinmoku2>=5,ShunyuKingakuShinkoku5,\"\")","v":{"$error":"#VALUE!"}},null,null,{"$f":"IF(MikomiNogyoTaishoHinmoku2>=5,JigyoShohiKingaku5,\"\")","v":{"$error":"#VALUE!"}},null,null,{"$f":"IF(MikomiNogyoTaishoHinmoku2>=5,KimatsuTanaoroshiKingaku5,\"\")","v":{"$error":"#VALUE!"}},null,null,null,null,null,null,{"$f":"IF(MikomiNogyoTaishoHinmoku2>=5,NogyoShunyuKingaku5,\"\")","v":{"$error":"#VALUE!"}},null,null,null,null,{"$f":"IF(MikomiNogyoTaishoHinmoku2>=5,MikomiNogyoShunyu5,\"\")","v":{"$error":"#VALUE!"}},null,null,null,{"$f":"IF(MikomiNogyoTaishoHinmoku2>=5,NogyoShunyuZogengaku5,\"\")","v":{"$error":"#VALUE!"}}]
[]
[null,null,null,null,null,null,null,null,{"$f":"IF(MikomiNogyoTaishoHinmoku2>=5,\"円\",\"\")","v":{"$error":"#VALUE!"}},null,null,{"$f":"IF(MikomiNogyoTaishoHinmoku2>=5,\"円\",\"\")","v":{"$error":"#VALUE!"}},null,null,{"$f":"IF(MikomiNogyoTaishoHinmoku2>=5,\"円\",\"\")","v":{"$error":"#VALUE!"}},null,null,null,null,null,null,{"$f":"IF(MikomiNogyoTaishoHinmoku2>=5,\"円\",\"\")","v":{"$error":"#VALUE!"}},null,null,null,null,{"$f":"IF(MikomiNogyoTaishoHinmoku2>=5,\"円\",\"\")","v":{"$error":"#VALUE!"}},null,null,null,{"$f":"IF(MikomiNogyoTaishoHinmoku2>=5,\"円\",\"\")","v":{"$error":"#VALUE!"}},null,null,null,{"$f":"IF(MikomiNogyoTaishoHinmoku2>=5,\"円\",\"\")","v":{"$error":"#VALUE!"}}]
[{"$f":"IF(MikomiNogyoTaishoHinmoku2>=6,\"０６\",\"\")","v":{"$error":"#VALUE!"}},{"$f":"IF(ShuruiHinmoku6<>\"\",ShuruiHinmoku6,\"\")","v":""},null,null,null,null,{"$f":"IF(MikomiNogyoTaishoHinmoku2>=6,KishuTanaoroshi6,\"\")","v":{"$error":"#VALUE!"}},null,null,{"$f":"IF(MikomiNogyoTaishoHinmoku2>=6,ShunyuKingakuShinkoku6,\"\")","v":{"$error":"#VALUE!"}},null,null,{"$f":"IF(MikomiNogyoTaishoHinmoku2>=6,JigyoShohiKingaku6,\"\")","v":{"$error":"#VALUE!"}},null,null,{"$f":"IF(MikomiNogyoTaishoHinmoku2>=6,KimatsuTanaoroshiKingaku6,\"\")","v":{"$error":"#VALUE!"}},null,null,null,null,null,null,{"$f":"IF(MikomiNogyoTaishoHinmoku2>=6,NogyoShunyuKingaku6,\"\")","v":{"$error":"#VALUE!"}},null,null,null,null,{"$f":"IF(MikomiNogyoTaishoHinmoku2>=6,MikomiNogyoShunyu6,\"\")","v":{"$error":"#VALUE!"}},null,null,null,{"$f":"IF(MikomiNogyoTaishoHinmoku2>=6,NogyoShunyuZogengaku6,\"\")","v":{"$error":"#VALUE!"}}]
[]
[null,null,null,null,null,null,null,null,{"$f":"IF(MikomiNogyoTaishoHinmoku2>=6,\"円\",\"\")","v":{"$error":"#VALUE!"}},null,null,{"$f":"IF(MikomiNogyoTaishoHinmoku2>=6,\"円\",\"\")","v":{"$error":"#VALUE!"}},null,null,{"$f":"IF(MikomiNogyoTaishoHinmoku2>=6,\"円\",\"\")","v":{"$error":"#VALUE!"}},null,null,null,null,null,null,{"$f":"IF(MikomiNogyoTaishoHinmoku2>=6,\"円\",\"\")","v":{"$error":"#VALUE!"}},null,null,null,null,{"$f":"IF(MikomiNogyoTaishoHinmoku2>=6,\"円\",\"\")","v":{"$error":"#VALUE!"}},null,null,null,{"$f":"IF(MikomiNogyoTaishoHinmoku2>=6,\"円\",\"\")","v":{"$error":"#VALUE!"}},null,null,null,{"$f":"IF(MikomiNogyoTaishoHinmoku2>=6,\"円\",\"\")","v":{"$error":"#VALUE!"}}]
[{"$f":"IF(MikomiNogyoTaishoHinmoku2>=7,\"０７\",\"\")","v":{"$error":"#VALUE!"}},{"$f":"IF(ShuruiHinmoku7<>\"\",ShuruiHinmoku7,\"\")","v":""},null,null,null,null,{"$f":"IF(MikomiNogyoTaishoHinmoku2>=7,KishuTanaoroshi7,\"\")","v":{"$error":"#VALUE!"}},null,null,{"$f":"IF(MikomiNogyoTaishoHinmoku2>=7,ShunyuKingakuShinkoku7,\"\")","v":{"$error":"#VALUE!"}},null,null,{"$f":"IF(MikomiNogyoTaishoHinmoku2>=7,JigyoShohiKingaku7,\"\")","v":{"$error":"#VALUE!"}},null,null,{"$f":"IF(MikomiNogyoTaishoHinmoku2>=7,KimatsuTanaoroshiKingaku7,\"\")","v":{"$error":"#VALUE!"}},null,null,null,null,null,null,{"$f":"IF(MikomiNogyoTaishoHinmoku2>=7,NogyoShunyuKingaku7,\"\")","v":{"$error":"#VALUE!"}},null,null,null,null,{"$f":"IF(MikomiNogyoTaishoHinmoku2>=7,MikomiNogyoShunyu7,\"\")","v":{"$error":"#VALUE!"}},null,null,null,{"$f":"IF(MikomiNogyoTaishoHinmoku2>=7,NogyoShunyuZogengaku7,\"\")","v":{"$error":"#VALUE!"}}]
[]
[null,null,null,null,null,null,null,null,{"$f":"IF(MikomiNogyoTaishoHinmoku2>=7,\"円\",\"\")","v":{"$error":"#VALUE!"}},null,null,{"$f":"IF(MikomiNogyoTaishoHinmoku2>=7,\"円\",\"\")","v":{"$error":"#VALUE!"}},null,null,{"$f":"IF(MikomiNogyoTaishoHinmoku2>=7,\"円\",\"\")","v":{"$error":"#VALUE!"}},null,null,null,null,null,null,{"$f":"IF(MikomiNogyoTaishoHinmoku2>=7,\"円\",\"\")","v":{"$error":"#VALUE!"}},null,null,null,null,{"$f":"IF(MikomiNogyoTaishoHinmoku2>=7,\"円\",\"\")","v":{"$error":"#VALUE!"}},null,null,null,{"$f":"IF(MikomiNogyoTaishoHinmoku2>=7,\"円\",\"\")","v":{"$error":"#VALUE!"}},null,null,null,{"$f":"IF(MikomiNogyoTaishoHinmoku2>=7,\"円\",\"\")","v":{"$error":"#VALUE!"}}]
[{"$f":"IF(MikomiNogyoTaishoHinmoku2>=8,\"０８\",\"\")","v":{"$error":"#VALUE!"}},{"$f":"IF(ShuruiHinmoku8<>\"\",ShuruiHinmoku8,\"\")","v":""},null,null,null,null,{"$f":"IF(MikomiNogyoTaishoHinmoku2>=8,KishuTanaoroshi8,\"\")","v":{"$error":"#VALUE!"}},null,null,{"$f":"IF(MikomiNogyoTaishoHinmoku2>=8,ShunyuKingakuShinkoku8,\"\")","v":{"$error":"#VALUE!"}},null,null,{"$f":"IF(MikomiNogyoTaishoHinmoku2>=8,JigyoShohiKingaku8,\"\")","v":{"$error":"#VALUE!"}},null,null,{"$f":"IF(MikomiNogyoTaishoHinmoku2>=8,KimatsuTanaoroshiKingaku8,\"\")","v":{"$error":"#VALUE!"}},null,null,null,null,null,null,{"$f":"IF(MikomiNogyoTaishoHinmoku2>=8,NogyoShunyuKingaku8,\"\")","v":{"$error":"#VALUE!"}},null,null,null,null,{"$f":"IF(MikomiNogyoTaishoHinmoku2>=8,MikomiNogyoShunyu8,\"\")","v":{"$error":"#VALUE!"}},null,null,null,{"$f":"IF(MikomiNogyoTaishoHinmoku2>=8,NogyoShunyuZogengaku8,\"\")","v":{"$error":"#VALUE!"}}]
[]
[null,null,null,null,null,null,null,null,{"$f":"IF(MikomiNogyoTaishoHinmoku2>=8,\"円\",\"\")","v":{"$error":"#VALUE!"}},null,null,{"$f":"IF(MikomiNogyoTaishoHinmoku2>=8,\"円\",\"\")","v":{"$error":"#VALUE!"}},null,null,{"$f":"IF(MikomiNogyoTaishoHinmoku2>=8,\"円\",\"\")","v":{"$error":"#VALUE!"}},null,null,null,null,null,null,{"$f":"IF(MikomiNogyoTaishoHinmoku2>=8,\"円\",\"\")","v":{"$error":"#VALUE!"}},null,null,null,null,{"$f":"IF(MikomiNogyoTaishoHinmoku2>=8,\"円\",\"\")","v":{"$error":"#VALUE!"}},null,null,null,{"$f":"IF(MikomiNogyoTaishoHinmoku2>=8,\"円\",\"\")","v":{"$error":"#VALUE!"}},null,null,null,{"$f":"IF(MikomiNogyoTaishoHinmoku2>=8,\"円\",\"\")","v":{"$error":"#VALUE!"}}]
[{"$f":"IF(MikomiNogyoTaishoHinmoku2>=9,\"０９\",\"\")","v":{"$error":"#VALUE!"}},{"$f":"IF(ShuruiHinmoku9<>\"\",ShuruiHinmoku9,\"\")","v":""},null,null,null,null,{"$f":"IF(MikomiNogyoTaishoHinmoku2>=9,KishuTanaoroshi9,\"\")","v":{"$error":"#VALUE!"}},null,null,{"$f":"IF(MikomiNogyoTaishoHinmoku2>=9,ShunyuKingakuShinkoku9,\"\")","v":{"$error":"#VALUE!"}},null,null,{"$f":"IF(MikomiNogyoTaishoHinmoku2>=9,JigyoShohiKingaku9,\"\")","v":{"$error":"#VALUE!"}},null,null,{"$f":"IF(MikomiNogyoTaishoHinmoku2>=9,KimatsuTanaoroshiKingaku9,\"\")","v":{"$error":"#VALUE!"}},null,null,null,null,null,null,{"$f":"IF(MikomiNogyoTaishoHinmoku2>=9,NogyoShunyuKingaku9,\"\")","v":{"$error":"#VALUE!"}},null,null,null,null,{"$f":"IF(MikomiNogyoTaishoHinmoku2>=9,MikomiNogyoShunyu9,\"\")","v":{"$error":"#VALUE!"}},null,null,null,{"$f":"IF(MikomiNogyoTaishoHinmoku2>=9,NogyoShunyuZogengaku9,\"\")","v":{"$error":"#VALUE!"}}]
[]
[null,null,null,null,null,null,null,null,{"$f":"IF(MikomiNogyoTaishoHinmoku2>=9,\"円\",\"\")","v":{"$error":"#VALUE!"}},null,null,{"$f":"IF(MikomiNogyoTaishoHinmoku2>=9,\"円\",\"\")","v":{"$error":"#VALUE!"}},null,null,{"$f":"IF(MikomiNogyoTaishoHinmoku2>=9,\"円\",\"\")","v":{"$error":"#VALUE!"}},null,null,null,null,null,null,{"$f":"IF(MikomiNogyoTaishoHinmoku2>=9,\"円\",\"\")","v":{"$error":"#VALUE!"}},null,null,null,null,{"$f":"IF(MikomiNogyoTaishoHinmoku2>=9,\"円\",\"\")","v":{"$error":"#VALUE!"}},null,null,null,{"$f":"IF(MikomiNogyoTaishoHinmoku2>=9,\"円\",\"\")","v":{"$error":"#VALUE!"}},null,null,null,{"$f":"IF(MikomiNogyoTaishoHinmoku2>=9,\"円\",\"\")","v":{"$error":"#VALUE!"}}]
[{"$f":"IF(MikomiNogyoTaishoHinmoku2>=10,\"１０\",\"\")","v":{"$error":"#VALUE!"}},{"$f":"IF(ShuruiHinmoku10<>\"\",ShuruiHinmoku10,\"\")","v":""},null,null,null,null,{"$f":"IF(MikomiNogyoTaishoHinmoku2>=10,KishuTanaoroshi10,\"\")","v":{"$error":"#VALUE!"}},null,null,{"$f":"IF(MikomiNogyoTaishoHinmoku2>=10,ShunyuKingakuShinkoku10,\"\")","v":{"$error":"#VALUE!"}},null,null,{"$f":"IF(MikomiNogyoTaishoHinmoku2>=10,JigyoShohiKingaku10,\"\")","v":{"$error":"#VALUE!"}},null,null,{"$f":"IF(MikomiNogyoTaishoHinmoku2>=10,KimatsuTanaoroshiKingaku10,\"\")","v":{"$error":"#VALUE!"}},null,null,null,null,null,null,{"$f":"IF(MikomiNogyoTaishoHinmoku2>=10,NogyoShunyuKingaku10,\"\")","v":{"$error":"#VALUE!"}},null,null,null,null,{"$f":"IF(MikomiNogyoTaishoHinmoku2>=10,MikomiNogyoShunyu10,\"\")","v":{"$error":"#VALUE!"}},null,null,null,{"$f":"IF(MikomiNogyoTaishoHinmoku2>=10,NogyoShunyuZogengaku10,\"\")","v":{"$error":"#VALUE!"}}]
[]
[null,null,null,null,null,null,null,null,{"$f":"IF(MikomiNogyoTaishoHinmoku2>=10,\"円\",\"\")","v":{"$error":"#VALUE!"}},null,null,{"$f":"IF(MikomiNogyoTaishoHinmoku2>=10,\"円\",\"\")","v":{"$error":"#VALUE!"}},null,null,{"$f":"IF(MikomiNogyoTaishoHinmoku2>=10,\"円\",\"\")","v":{"$error":"#VALUE!"}},null,null,null,null,null,null,{"$f":"IF(MikomiNogyoTaishoHinmoku2>=10,\"円\",\"\")","v":{"$error":"#VALUE!"}},null,null,null,null,{"$f":"IF(MikomiNogyoTaishoHinmoku2>=10,\"円\",\"\")","v":{"$error":"#VALUE!"}},null,null,null,{"$f":"IF(MikomiNogyoTaishoHinmoku2>=10,\"円\",\"\")","v":{"$error":"#VALUE!"}},null,null,null,{"$f":"IF(MikomiNogyoTaishoHinmoku2>=10,\"円\",\"\")","v":{"$error":"#VALUE!"}}]
["合計",null,null,null,null,null,{"$f":"KishuTanaoroshi11","v":0},null,null,{"$f":"ShunyuKingakuShinkoku11","v":0},null,null,{"$f":"JigyoShohiKingaku11","v":0},null,null,{"$f":"KimatsuTanaoroshiKingaku11","v":0},null,null,null,null,null,null,{"$f":"NogyoShunyuKingaku11","v":0},null,null,null,null,{"$f":"MikomiNogyoShunyu11","v":0},null,null,null,{"$f":"NogyoShunyuZogengaku11","v":0}]
[]
[null,null,null,null,null,null,null,null,"円",null,null,"円",null,null,"円",null,null,null,null,null,null,"円",null,null,null,null,"円",null,null,null,"円",null,null,null,"円"]
[]
[]
[]
[null,"受取可能な保険金及び特約補てん金（以下、保険金等）については、以下のとおりです。"]
[]
[null,null,null,"保険金",null,null,null,null,null,"①",{"$f":"Hokenkin","v":0}]
[null,null,null,"特約補てん金",null,null,null,null,null,"②",{"$f":"TokuyakuHotenkin","v":0}]
[null,null,null,null,"うち、被保険者負担分",null,null,null,null,null,{"$f":"K46-INT(K46/4*3)","v":0}]
[null,null,null,null,"うち、国庫負担分",null,null,null,null,null,{"$f":"INT(K46/4*3)","v":0}]
[]
[null,"今回の保険金等の請求予定は以下のとおりです。"]
[]
[null,null,null,"保険金",null,null,null,null,null,null,{"$f":"IF(Hokenkin>0,IF(SeikyuSuruHokenkin=TRUE,\"請求する\",\"請求しない\"),\"－－－\")","v":"－－－"}]
[null,null,null,"特約補てん金",null,null,null,null,null,null,{"$f":"IF(HotenHoshiki=\"保険方式のみ\",\"ーーー\",IF(TokuyakuHotenkin>0,IF(SeikyuSuruTokuyakuHotenkin=TRUE,\"請求する\",\"請求しない\"),\"－－－\"))","v":"－－－"}]
[]
[null,{"$f":"\"上記の請求予定に基づく\"&IF(SUM(K57:O58)>=K61,\"振込額\",\"請求額\")&\"は以下のとおりです。\"","v":"上記の請求予定に基づく振込額は以下のとおりです。"}]
[]
[null,null,null,"保険金",null,null,null,null,null,"①",{"$f":"IF(K52=\"請求する\",K45,0)","v":0},null,null,null,null,null,null,null,null,null,"「収入保険補てん収入」として、"]
[null,null,null,"特約補てん金",null,null,null,null,null,"②",{"$f":"IF(K53=\"請求する\",K46,0)","v":0},null,null,null,null,null,null,null,null,null,"保険期間の雑収入に計上します。"]
[null,null,null,null,"うち、被保険者負担分",null,null,null,null,null,{"$f":"IF(K53=\"請求する\",K47,0)","v":0},null,null,null,null,null,null,null,null,null,"また、貸借対照表の資産の部の"]
[null,null,null,null,"うち、国庫負担分",null,null,null,null,null,{"$f":"IF(K53=\"請求する\",K48,0)","v":0},null,null,null,null,null,null,null,null,null,"未収金に計上します。"]
[null,null,null,"つなぎ資金貸付残高",null,null,null,null,null,"③",{"$f":"TsunagiZandaka","v":0},null,null,null,null,null,null,null,null,null,{"$f":"K57+K60","v":0}]
[null,null,null,{"$f":"IF(SUM(K57:O58)>=K61,\"振込額\",\"請求額\")","v":"振込額"},null,null,null,"①＋②－③",null,null,{"$f":"ABS(K57+K58-K61)","v":0}]
[]
[]
[]
[]
["保険金等の計算根拠"]
[]
[null,null,"補償内容"]
[]
[]
[null,null,null,"基準収入金額",null,null,null,{"$f":"KijunShunyu","v":0},null,null,null,null,null,"保険方式",null,null,"補償割合",null,null,null,null,null,{"$f":"Hoken_HoshoGendo","v":80},null,null,"保険限度額",null,null,null,{"$f":"HokenGendoGaku","v":0}]
[]
[null,null,null,null,null,null,null,null,null,null,null,null,null,null,null,null,"支払率",null,null,null,null,null,{"$f":"Hoken_Shiharairitsu","v":90},null,null,"保険金額",null,null,null,{"$f":"HokenKingaku","v":0}]
[]
[null,null,null,null,null,null,null,null,null,null,null,null,null,null,null,null,{"$f":"IF(StartY<>2019,\"補償の下限\",\"\")","v":"補償の下限"},null,null,null,null,null,{"$f":"IF(StartY<>2019,IF(Hoken_HoshoKagen=0,\"設定なし\",Hoken_HoshoKagen),\"\")","v":"設定なし"},null,null,{"$f":"IF(StartY<>2019,IF(Hoken_HoshoKagen<>0,\"保険金の支払限度の額\",\"\"),\"\")","v":""},null,null,null,{"$f":"IF(StartY<>2019,IF(Hoken_HoshoKagen<>0,HoshoKagen,\"\"),\"\")","v":""}]
[]
[null,null,null,null,null,null,null,null,null,null,null,null,null,{"$f":"IF(HotenHoshiki=\"保険方式＋積立方式\",\"積立方式\",\"\")","v":""},null,null,{"$f":"IF(HotenHoshiki=\"保険方式＋積立方式\",\"補償幅\",\"\")","v":""},null,null,null,null,null,{"$f":"IF(HotenHoshiki=\"保険方式＋積立方式\",Tsumitate_HoshoHaba,\"\")","v":""},null,null,{"$f":"IF(HotenHoshiki=\"保険方式＋積立方式\",\"基準補てん金額\",\"\")","v":""},null,null,null,{"$f":"IF(HotenHoshiki=\"保険方式＋積立方式\",KijunHotenKingaku,\"\")","v":""}]
[]
[null,null,null,null,null,null,null,null,null,null,null,null,null,null,null,null,{"$f":"IF(HotenHoshiki=\"保険方式＋積立方式\",\"支払率\",\"\")","v":""},null,null,null,null,null,{"$f":"IF(HotenHoshiki=\"保険方式＋積立方式\",Tsumitate_Shiharairitsu,\"\")","v":""},null,null,{"$f":"IF(HotenHoshiki=\"保険方式＋積立方式\",\"補てん対象金額\",\"\")","v":""},null,null,null,{"$f":"IF(HotenHoshiki=\"保険方式＋積立方式\",HotenTaishoKingaku,\"\")","v":""}]
[]
[]
[null,null,"保険金の計算根拠",null,null,null,null,null,null,null,null,null,null,null,null,null,null,null,null,{"$f":"IF(HotenHoshiki=\"保険方式＋積立方式\",\"特約補てん金の計算根拠\",\"\")","v":""}]
[]
[]
[null,null,"　　保険限度額",null,null,null,null,null,null,null,{"$f":"AD72","v":0},null,null,null,null,null,null,null,null,{"$f":"IF(HotenHoshiki=\"保険方式＋積立方式\",\"　　保険限度額＋基準補てん金額\",\"\")","v":""},null,null,null,null,null,null,null,null,null,{"$f":"IF(HotenHoshiki=\"保険方式＋積立方式\",HokenGendoGaku+KijunHotenKingaku,\"\")","v":""}]
[]
[null,null,"－ 保険期間の農業収入金額",null,null,null,null,null,null,null,{"$f":"IF(AND(NogyoShunyuKingaku11<HoshoKagen,Hoken_HoshoKagen>0,StartY<>2019),HoshoKagen,NogyoShunyuKingaku11)","v":0},null,null,null,null,null,null,null,null,{"$f":"IF(HotenHoshiki=\"保険方式＋積立方式\",\"－ 保険期間の農業収入金額\",\"\")","v":""},null,null,null,null,null,null,null,null,null,{"$f":"IF(HotenHoshiki=\"保険方式＋積立方式\",IF(AND(NogyoShunyuKingaku11<HoshoKagen,Hoken_HoshoKagen>0,StartY<>2019),HoshoKagen,NogyoShunyuKingaku11),\"\")","v":""}]
[null,null,null,null,null,null,null,null,null,{"$f":"IF(AND(NogyoShunyuKingaku11<HoshoKagen,Hoken_HoshoKagen>0,StartY<>2019),\"※補償の下限額を採用\",\"\")","v":""},null,null,null,null,null,null,null,null,null,null,null,null,null,null,null,null,null,null,{"$f":"IF(HotenHoshiki=\"保険方式＋積立方式\",IF(AND(NogyoShunyuKingaku11<HoshoKagen,Hoken_HoshoKagen>0,StartY<>2019),\"※補償の下限額を採用\",\"\"),\"\")","v":""}]
[null,null,null,null,null,null,null,null,null,null,{"$f":"IF(K86>K88,IF((K86-K88)>K86,K86,K86-K88),0)","v":0},null,null,null,null,null,null,null,null,null,null,null,null,null,null,null,null,null,null,{"$f":"IF(AND(AD86>AD88,HotenHoshiki=\"保険方式＋積立方式\"),IF(AD86-AD88>KijunHotenKingaku,KijunHotenKingaku,AD86-AD88),IF(HotenHoshiki=\"保険方式＋積立方式\",0,\"\"))","v":""}]
[null,null,null,null,null,null,null,null,null,{"$f":"IF(K86<K88,\"※0円未満は0円を採用\",IF(K86-K88>AD72,\"※保険限度額が上限\",\"\"))","v":""},null,null,null,null,null,null,null,null,null,null,null,null,null,null,null,null,null,null,{"$f":"IF(AND(AD86>AD88,HotenHoshiki=\"保険方式＋積立方式\"),IF(AD86-AD88>KijunHotenKingaku,\"※基準補てん金額が上限\",\"\"),IF(HotenHoshiki=\"保険方式＋積立方式\",\"※0円未満は0円を採用\",\"\"))","v":""}]
[null,null,"×　保険方式の支払率",null,null,null,null,null,null,null,{"$f":"W74","v":90},null,null,null,null,null,null,null,null,{"$f":"IF(HotenHoshiki=\"保険方式＋積立方式\",\"×　積立方式の支払率\",\"\")","v":""},null,null,null,null,null,null,null,null,null,{"$f":"IF(HotenHoshiki=\"保険方式＋積立方式\",Tsumitate_Shiharairitsu,\"\")","v":""}]
[]
[null,null,{"$f":"IF(OR(Baishokin2=TRUE,HotenChosei2=TRUE),\"　　保険金（減額考慮前）\",\"\")","v":""},null,null,null,null,null,null,null,{"$f":"IF(OR(Baishokin2=TRUE,HotenChosei2=TRUE),HokenkinYoteiGaku,\"\")","v":""},null,null,null,null,null,null,null,null,{"$f":"IF(AND(OR(Baishokin2=TRUE,HotenChosei2=TRUE),HotenHoshiki=\"保険方式＋積立方式\"),\"　　特約補てん金（減額考慮前）\",\"\")","v":""},null,null,null,null,null,null,null,null,null,{"$f":"IF(AND(OR(Baishokin2=TRUE,HotenChosei2=TRUE),HotenHoshiki=\"保険方式＋積立方式\"),TokuyakuHotenkinYoteiGaku,\"\")","v":""}]
[null,null,null,null,null,{"$f":"IF(AND(OR(Baishokin2=TRUE,HotenChosei2=TRUE),Hoken_HoshoKagen<>0,HokenkinYoteiGaku=HoshoKagen),\"※補償の下限による「保険金の支払限度の額」が上限\",\"\")","v":""}]
[null,null,{"$f":"IF(OR(Baishokin2=TRUE,HotenChosei2=TRUE),\"－ 減額（賠償金等を考慮）\",\"\")","v":""},null,null,null,null,null,null,null,{"$f":"IF(OR(Baishokin2=TRUE,HotenChosei2=TRUE),IF(HokenkinYoteiGaku-Hokenkin>0,HokenkinYoteiGaku-Hokenkin,0),\"\")","v":""},null,null,null,null,null,null,null,null,{"$f":"IF(AND(OR(Baishokin2=TRUE,HotenChosei2=TRUE),HotenHoshiki=\"保険方式＋積立方式\"),\"　　－ 減額（賠償金等を考慮）\",\"\")","v":""},null,null,null,null,null,null,null,null,null,{"$f":"IF(AND(OR(Baishokin2=TRUE,HotenChosei2=TRUE),HotenHoshiki=\"保険方式＋積立方式\"),IF(TokuyakuHotenkinYoteiGaku-TokuyakuHotenkin>0,TokuyakuHotenkinYoteiGaku-TokuyakuHotenkin,0),\"\")","v":""}]
[]
[null,null,"　　保険金",null,null,null,null,null,null,null,{"$f":"Hokenkin","v":0},null,null,null,null,null,null,null,null,{"$f":"IF(HotenHoshiki=\"保険方式＋積立方式\",\"　　特約補てん金\",\"\")","v":""},null,null,null,null,null,null,null,null,null,{"$f":"IF(HotenHoshiki=\"保険方式＋積立方式\",TokuyakuHotenkin,\"\")","v":""}]
[]
[null,null,null,null,null,{"$f":"IF(AND(Baishokin1=TRUE,HotenChosei1=TRUE,Hoken_HoshoKagen<>0,(K90*(K92/100))>HoshoKagen),\"※補償の下限による「保険金の支払限度の額」が上限\",\"\")","v":""}]